Ref No,Fund Type,Dept,Cost Centre Description    ,Description    ,Creditor Name    ,GL Code Net Amount,Payment date        
2,Revenue,CCHD,Supporting People Programme,Grants to Voluntary Bodies,1625 Independent People,17380, 01-Oct-2013
3,Revenue,CCHD,Home Care - Elderly - South,Other Small Contracts,3 Trees Community Support Ltd,95.52, 01-Oct-2013
4,Revenue,CCHD,Home Care - Elderly - North,Other Small Contracts,3 Trees Community Support Ltd,1671.6, 01-Oct-2013
5,Revenue,CCHD,Day Care - North,Private & Voluntary Day Care,3 Trees Community Support Ltd,47.76, 01-Oct-2013
6,Revenue,CCHD,Home Care - Elderly - North,Other Small Contracts,3 Trees Community Support Ltd,1639.76, 22-Oct-2013
7,Revenue,CCHD,Day Care - North,Private & Voluntary Day Care,3 Trees Community Support Ltd,47.76, 22-Oct-2013
8,Revenue,CCHD,Home Care - Elderly - South,Other Small Contracts,3 Trees Community Support Ltd,95.52, 15-Oct-2013
9,Revenue,CCHD,Home Care - Elderly - North,Other Small Contracts,3 Trees Community Support Ltd,1592, 15-Oct-2013
10,Revenue,CCHD,Day Care - North,Private & Voluntary Day Care,3 Trees Community Support Ltd,47.76, 15-Oct-2013
11,Revenue,CCHD,Supported Living - South,Private & Voluntary Home Care,3 Trees Community Support Ltd,589.18, 18-Oct-2013
12,Revenue,CCHD,Supported Living - South,Private & Voluntary Home Care,3 Trees Community Support Ltd,1772.85, 15-Oct-2013
13,Revenue,CCHD,Purchase of Non-Res Care - North,Private & Voluntary Day Care,3 Trees Community Support Ltd,4490.44, 15-Oct-2013
14,Revenue,CCHD,Purchase of Non-Res Care - North,Private & Voluntary Day Care,3 Trees Community Support Ltd,1718.4, 11-Oct-2013
15,Revenue,CCHD,Purchase of Non-Res Care - North,Private & Voluntary Day Care,3 Trees Community Support Ltd,1706.36, 15-Oct-2013
16,Revenue,CCHD,Purchase of Non-Res Care - North,Private & Voluntary Day Care,3 Trees Community Support Ltd,1309.93, 15-Oct-2013
17,Revenue,CCHD,Purchase of Non-Res Care - North,Private & Voluntary Day Care,3 Trees Community Support Ltd,3849.49, 17-Oct-2013
18,Revenue,CCHD,Purchase of Non-Res Care - South,Private & Voluntary Day Care,3 Trees Community Support Ltd,3084.2, 15-Oct-2013
19,Revenue,CCHD,Supported Living - North,Private & Voluntary Home Care,3 Trees Community Support Ltd,9541, 11-Oct-2013
20,Revenue,CCHD,Supported Living - North,Private & Voluntary Home Care,3 Trees Community Support Ltd,9964.77, 15-Oct-2013
21,Revenue,CCHD,Supported Living - South,Private & Voluntary Home Care,3 Trees Community Support Ltd,5103.8, 18-Oct-2013
22,Revenue,CCHD,Bed Purchasing - Under 65s PWLD - South,Residential Permanent,5Th Floor Harlech Court,31656.72, 01-Oct-2013
23,Revenue,CCHD,Bed purchasing - Under 65s PWLD - North,Residential Permanent,5Th Floor Harlech Court,27516.96, 01-Oct-2013
24,Revenue,CCHD,Bed purchasing - Under 65s PWLD - North,Residential Permanent,5Th Floor Harlech Court,32705.36, 01-Oct-2013
25,Revenue,CCHD,Bed purchasing - Under 65s PWLD - North,Residential Permanent,5Th Floor Harlech Court,27761.68, 01-Oct-2013
26,Revenue,CCHD,Direct Payments - Phys Dis - North,Grants to Voluntary Bodies,A4E Management Limited,23434.92, 30-Oct-2013
27,Revenue,CCHD,Bed Purchasing - Frenchay Hospital,Nursing Permanent,Aabletone Nursing Home,834.76, 01-Oct-2013
28,Revenue,CCHD,Bed Purchasing - Frenchay Hospital,Nursing Permanent,Aabletone Nursing Home,834.76, 29-Oct-2013
29,Revenue,CCHD,MH Purchasing - Younger,Residential Permanent,Abbey Grange,2067.44, 01-Oct-2013
30,Revenue,CCHD,MH Purchasing - Younger,Residential Permanent,Abbey Grange,1510.08, 29-Oct-2013
31,Revenue,CCHD,Bed purchasing - Phys Dis - North,Nursing Permanent,ABI Development Limited,6892.96, 01-Oct-2013
32,Revenue,CCHD,Bed purchasing - Phys Dis - North,Nursing Permanent,ABI Development Limited,6661.07, 29-Oct-2013
33,Revenue,CCHD,Bed and Breakfast,Storage & Removal,Ablemove-Wottons,420, 28-Oct-2013
34,Revenue,CCHD,Bed and Breakfast,Storage & Removal,Ablemove-Wottons,420, 28-Oct-2013
35,Revenue,CCHD,Tenancy Start Up Scheme,Other Supplies & Services,About Houses ltd,1290, 30-Oct-2013
36,Revenue,CCHD,Day Care - North,Private & Voluntary Day Care,About Me Care and Support Limited,1305.56, 15-Oct-2013
37,Revenue,CCHD,Day Care - South,Private & Voluntary Day Care,About Me Care and Support Limited,1048.07, 11-Oct-2013
38,Revenue,CCHD,Day Care - North,Private & Voluntary Day Care,About Me Care and Support Limited,561.6, 15-Oct-2013
39,Revenue,CCHD,Day Care - South,Private & Voluntary Day Care,About Me Care and Support Limited,780.15, 11-Oct-2013
40,Revenue,CCHD,Bed purchasing - Under 65s PWLD - North,Residential Permanent,Acorn Care Providers,5744.4, 01-Oct-2013
41,Revenue,CCHD,Bed purchasing - Under 65s PWLD - North,Residential Permanent,Acorn Care Providers,5744.4, 29-Oct-2013
42,Revenue,CCHD,Day Care - North,Private & Voluntary Day Care,Action on Hearing Loss,553.35, 11-Oct-2013
43,Revenue,CCHD,Day Care - North,Private & Voluntary Day Care,Action on Hearing Loss,530.9, 11-Oct-2013
44,Revenue,CCHD,Home Care - Elderly - North,Other Small Contracts,Adolphus Care Ltd,985.32, 29-Oct-2013
45,Revenue,CCHD,Home Care - Elderly - South,Other Small Contracts,Agincare Chippenham,1610.92, 14-Oct-2013
46,Revenue,CCHD,Home Care - Elderly - South,Other Small Contracts,Agincare Chippenham,1657.84, 14-Oct-2013
47,Revenue,CCHD,Home Care - Elderly - South,Other Small Contracts,Agincare Chippenham,1626.56, 14-Oct-2013
48,Revenue,CCHD,Home Care - Elderly - South,Other Small Contracts,Agincare Chippenham,1587.46, 15-Oct-2013
49,Revenue,CCHD,Home Care - Elderly - South,Other Small Contracts,Agincare Chippenham,1470.16, 14-Oct-2013
50,Revenue,CCHD,Home Care - Elderly - South,Other Small Contracts,Agincare Chippenham,1309.85, 15-Oct-2013
51,Revenue,CCHD,Home Care - Elderly - South,Other Small Contracts,Agincare Chippenham,1395.87, 15-Oct-2013
52,Revenue,CCHD,Home Care - Elderly - South,Other Small Contracts,Agincare Chippenham,1446.7, 31-Oct-2013
53,Revenue,CCHD,Home Care - Elderly - South,Other Small Contracts,Agincare UK Limited,848.47, 14-Oct-2013
54,Revenue,CCHD,Home Care - Elderly - North,Other Small Contracts,Agincare UK Limited,86.02, 14-Oct-2013
55,Revenue,CCHD,Day Care - South,Private & Voluntary Day Care,Agincare UK Limited,97.75, 14-Oct-2013
56,Revenue,CCHD,Elderly MH Day Care North,Private & Voluntary Day Care,Agincare UK Limited,117.3, 14-Oct-2013
57,Revenue,CCHD,Home Care - Elderly - South,Other Small Contracts,Agincare UK Limited,864.11, 14-Oct-2013
58,Revenue,CCHD,Home Care - Elderly - North,Other Small Contracts,Agincare UK Limited,86.02, 14-Oct-2013
59,Revenue,CCHD,Day Care - South,Private & Voluntary Day Care,Agincare UK Limited,93.84, 14-Oct-2013
60,Revenue,CCHD,Elderly MH Day Care North,Private & Voluntary Day Care,Agincare UK Limited,109.48, 14-Oct-2013
61,Revenue,CCHD,Home Care - Elderly - South,Other Small Contracts,Agincare UK Limited,762.45, 07-Oct-2013
62,Revenue,CCHD,Home Care - Elderly - North,Other Small Contracts,Agincare UK Limited,89.93, 07-Oct-2013
63,Revenue,CCHD,Day Care - South,Private & Voluntary Day Care,Agincare UK Limited,101.66, 07-Oct-2013
64,Revenue,CCHD,Elderly MH Day Care North,Private & Voluntary Day Care,Agincare UK Limited,117.3, 07-Oct-2013
65,Revenue,CCHD,Home Care - Elderly - South,Other Small Contracts,Agincare UK Limited,613.87, 15-Oct-2013
66,Revenue,CCHD,Home Care - Elderly - North,Other Small Contracts,Agincare UK Limited,86.02, 15-Oct-2013
67,Revenue,CCHD,Day Care - South,Private & Voluntary Day Care,Agincare UK Limited,62.56, 15-Oct-2013
68,Revenue,CCHD,Elderly MH Day Care North,Private & Voluntary Day Care,Agincare UK Limited,117.3, 15-Oct-2013
69,Revenue,CCHD,Home Care - Elderly - South,Other Small Contracts,Agincare UK Limited,535.67, 29-Oct-2013
70,Revenue,CCHD,Home Care - Elderly - North,Other Small Contracts,Agincare UK Limited,86.02, 29-Oct-2013
71,Revenue,CCHD,Day Care - South,Private & Voluntary Day Care,Agincare UK Limited,101.66, 29-Oct-2013
72,Revenue,CCHD,Elderly MH Day Care North,Private & Voluntary Day Care,Agincare UK Limited,117.3, 29-Oct-2013
73,Revenue,CCHD,Home Care - Elderly - South,Other Small Contracts,Agincare UK Limited,563.04, 15-Oct-2013
74,Revenue,CCHD,Home Care - Elderly - North,Other Small Contracts,Agincare UK Limited,82.11, 15-Oct-2013
75,Revenue,CCHD,Day Care - South,Private & Voluntary Day Care,Agincare UK Limited,101.66, 15-Oct-2013
76,Revenue,CCHD,Elderly MH Day Care North,Private & Voluntary Day Care,Agincare UK Limited,125.12, 15-Oct-2013
77,Revenue,CCHD,S117 Placements PCT,Residential Permanent,Alexandra House,6875.64, 01-Oct-2013
78,Revenue,CCHD,S117 Placements PCT,Residential Permanent,Alexandra House,6875.64, 29-Oct-2013
79,Revenue,CCHD,Bed Purchasing - Under 65s PWLD - South,Residential Permanent,Alexandra House,6069, 01-Oct-2013
80,Revenue,CCHD,Bed Purchasing - Under 65s PWLD - South,Residential Permanent,Alexandra House,6069, 29-Oct-2013
81,Revenue,CCHD,Section 117 Placements MH Younger,Residential Permanent,Alexandra House,6400.88, 01-Oct-2013
82,Revenue,CCHD,Section 117 Placements MH Younger,Residential Permanent,Alexandra House,6400.88, 29-Oct-2013
83,Revenue,CCHD,Home Care - Elderly - South,Other Small Contracts,AliMo Care Ltd,883.82, 02-Oct-2013
84,Revenue,CCHD,Home Care - Elderly - North,Other Small Contracts,AliMo Care Ltd,995.25, 02-Oct-2013
85,Revenue,CCHD,Bed Purchasing - Southmead Hospital,Nursing Permanent,Ambleside Nusing Ho!,1425.36, 01-Oct-2013
86,Revenue,CCHD,Bed Purchasing - Southmead Hospital,Nursing Permanent,Ambleside Nusing Ho!,1425.36, 29-Oct-2013
87,Revenue,CCHD,Bed Purchasing - Frenchay Hospital,Residential Permanent,Anbridge Care Home,822.44, 01-Oct-2013
88,Revenue,CCHD,Bed Purchasing - Frenchay Hospital,Residential Permanent,Anbridge Care Home,822.44, 29-Oct-2013
89,Revenue,CCHD,Bed Purchasing - Elderly - North,Nursing Permanent,Annabel House,1401.52, 01-Oct-2013
90,Revenue,CCHD,Bed Purchasing - Elderly - North,Residential Permanent,Annabel House,1101.19, 29-Oct-2013
91,Revenue,CCHD,Bed purchasing - Under 65s PWLD - North,Residential Permanent,Ark Care Homes Ltd,10163.76, 01-Oct-2013
92,Revenue,CCHD,Bed purchasing - Under 65s PWLD - North,Residential Permanent,Ark Care Homes Ltd,10163.76, 29-Oct-2013
93,Revenue,CCHD,Bed Purchasing - Elderly - South,Residential Permanent,Ashbourne House Care Home Limited,1107.96, 01-Oct-2013
94,Revenue,CCHD,Bed Purchasing - Elderly - South,Residential Permanent,Ashbourne House Care Home Limited,1107.96, 29-Oct-2013
95,Revenue,CCHD,Home Care - Elderly - South,Other Small Contracts,Ashley Commercial Finance Ltd,1321.89, 15-Oct-2013
96,Revenue,CCHD,Home Care - Elderly - North,Other Small Contracts,Ashley Commercial Finance Ltd,3569.52, 15-Oct-2013
97,Revenue,CCHD,Home Care - Elderly - South,Other Small Contracts,Ashley Commercial Finance Ltd,929.91, 04-Oct-2013
98,Revenue,CCHD,Home Care - Elderly - North,Other Small Contracts,Ashley Commercial Finance Ltd,4908.09, 04-Oct-2013
99,Revenue,CCHD,Home Care - Elderly - South,Other Small Contracts,Ashley Commercial Finance Ltd,888.21, 11-Oct-2013
100,Revenue,CCHD,Home Care - Elderly - North,Other Small Contracts,Ashley Commercial Finance Ltd,5066.55, 11-Oct-2013
101,Revenue,CCHD,Home Care - Elderly - South,Other Small Contracts,Ashley Commercial Finance Ltd,938.25, 23-Oct-2013
102,Revenue,CCHD,Home Care - Elderly - North,Other Small Contracts,Ashley Commercial Finance Ltd,4749.63, 23-Oct-2013
103,Revenue,CCHD,Home Care - Elderly - South,Other Small Contracts,Ashley Commercial Finance Ltd,863.19, 23-Oct-2013
104,Revenue,CCHD,Home Care - Elderly - North,Other Small Contracts,Ashley Commercial Finance Ltd,5370.96, 23-Oct-2013
105,Revenue,CCHD,Home Care - Elderly - South,Other Small Contracts,Ashley Commercial Finance Ltd,967.44, 16-Oct-2013
106,Revenue,CCHD,Home Care - Elderly - North,Other Small Contracts,Ashley Commercial Finance Ltd,5792.13, 16-Oct-2013
107,Revenue,CCHD,Home Care - Elderly - South,Other Small Contracts,Ashley Commercial Finance Ltd,696.39, 16-Oct-2013
108,Revenue,CCHD,Home Care - Elderly - North,Other Small Contracts,Ashley Commercial Finance Ltd,4916.43, 16-Oct-2013
109,Revenue,CCHD,Home Care - Elderly - South,Other Small Contracts,Ashley Commercial Finance Ltd,788.13, 23-Oct-2013
110,Revenue,CCHD,Home Care - Elderly - North,Other Small Contracts,Ashley Commercial Finance Ltd,4053.24, 23-Oct-2013
111,Revenue,CCHD,Home Care - Elderly - South,Other Small Contracts,Ashley Commercial Finance Ltd,775.62, 23-Oct-2013
112,Revenue,CCHD,Home Care - Elderly - North,Other Small Contracts,Ashley Commercial Finance Ltd,3790.53, 23-Oct-2013
113,Revenue,CCHD,Home Care - Elderly - South,Other Small Contracts,Ashley Commercial Finance Ltd,742.26, 30-Oct-2013
114,Revenue,CCHD,Home Care - Elderly - North,Other Small Contracts,Ashley Commercial Finance Ltd,3748.83, 30-Oct-2013
115,Revenue,CCHD,Bed and Breakfast,Bed & Breakfast,Ashley Guest Houses Limited,668, 02-Oct-2013
116,Revenue,CCHD,Bed and Breakfast,Bed & Breakfast,Ashley Guest Houses Limited,728, 09-Oct-2013
117,Revenue,CCHD,Bed and Breakfast,Bed & Breakfast,Ashley Guest Houses Limited,728, 16-Oct-2013
118,Revenue,CCHD,Bed and Breakfast,Bed & Breakfast,Ashley Guest Houses Limited,878, 30-Oct-2013
119,Revenue,CCHD,Bed purchasing - Under 65s PWLD - North,Residential Permanent,Aspects 2 Limited,6265.24, 01-Oct-2013
120,Revenue,CCHD,Bed purchasing - Under 65s PWLD - North,Residential Permanent,Aspects 2 Limited,6265.24, 29-Oct-2013
121,Revenue,CCHD,Supporting People Programme,Grants to Voluntary Bodies,Aspects and Milestones Trust,3172.58, 01-Oct-2013
122,Revenue,CCHD,Supporting People Programme,Grants to Voluntary Bodies,Aspects and Milestones Trust,1590.58, 01-Oct-2013
123,Revenue,CCHD,Supporting People Programme,Grants to Voluntary Bodies,Aspects and Milestones Trust,2414.33, 01-Oct-2013
124,Revenue,CCHD,Supported Living - South,Private & Voluntary Day Care,Aspirations Support Bristol Limited,511.5, 09-Oct-2013
125,Revenue,CCHD,Supported Living - South,Private & Voluntary Home Care,Aspirations Support Bristol Limited,676.5, 09-Oct-2013
126,Revenue,CCHD,Supported Living - South,Private & Voluntary Day Care,Aspirations Support Bristol Limited,660, 09-Oct-2013
127,Revenue,CCHD,Supported Living - South,Private & Voluntary Home Care,Aspirations Support Bristol Limited,523.9, 09-Oct-2013
128,Revenue,CCHD,Supported Living - South,Private & Voluntary Day Care,Aspirations Support Bristol Limited,3825.36, 09-Oct-2013
129,Revenue,CCHD,Supported Living - South,Private & Voluntary Day Care,Aspirations Support Bristol Limited,3754.61, 09-Oct-2013
130,Revenue,CCHD,Purchase of Non-Res Care - South,Private & Voluntary Day Care,Aspirations Support Bristol Limited,3124.35, 08-Oct-2013
131,Revenue,CCHD,Supported Living - South,Private & Voluntary Home Care,Aspirations Support Bristol Limited,548.08, 08-Oct-2013
132,Revenue,CCHD,Day Care - South,Private & Voluntary Day Care,Aspirations Support Bristol Limited,2030.73, 11-Oct-2013
133,Revenue,CCHD,Day Care - South,Private & Voluntary Day Care,Aspirations Support Bristol Limited,2302.56, 11-Oct-2013
134,Revenue,CCHD,Bed Purchasing - Under 65s PWLD - South,Residential Permanent,Autism Specialised Care Homes,5584.12, 01-Oct-2013
135,Revenue,CCHD,Bed Purchasing - Under 65s PWLD - South,Residential Permanent,Autism Specialised Care Homes,5584.12, 29-Oct-2013
136,Revenue,CCHD,Younger Adult Mental Health,Health Services (Third Party Payments),Avon & Wiltshire Mental Health,5000, 02-Oct-2013
137,Revenue,CCHD,Purchase of Non-Res Care - North,Private & Voluntary Day Care,Avon Autistic Foundation Limited,2301.6, 09-Oct-2013
138,Revenue,CCHD,Purchase of Non-Res Care - North,Private & Voluntary Day Care,Avon Autistic Foundation Limited,3378.04, 09-Oct-2013
139,Revenue,CCHD,Bed Purchasing - Southmead Hospital,Nursing Permanent,Bamfield Lodge,925.84, 25-Oct-2013
140,Revenue,CCHD,Bed Purchasing - Frenchay Hospital,Nursing Permanent,Bayview Nursing & Residential Home,1463.36, 01-Oct-2013
141,Revenue,CCHD,Bed Purchasing - Frenchay Hospital,Nursing Permanent,Bayview Nursing & Residential Home,1463.36, 29-Oct-2013
142,Revenue,CCHD,South Glos Users in South Glos Homes,Nursing Permanent,Beaufort Grange Care Home,16398.17, 29-Oct-2013
143,Revenue,CCHD,Bed Purchasing - Elderly - North,Residential Permanent,Beaufort House,1801.76, 01-Oct-2013
144,Revenue,CCHD,Bed Purchasing - Elderly - North,Residential Permanent,Beaufort House,1801.76, 29-Oct-2013
145,Revenue,CCHD,Bed purchasing - Elderly MH - North,Residential Permanent,Beaufort House,3368.86, 29-Oct-2013
146,Revenue,CCHD,Bed purchasing - Elderly MH - North,Residential Permanent,Beaufort House,1814, 29-Oct-2013
147,Revenue,CCHD,Bed purchasing - Elderly MH - North,Residential Permanent,Beaufort House,1514.84, 01-Oct-2013
148,Revenue,CCHD,Bed purchasing - Elderly MH - North,Residential Permanent,Beaufort House,1514.84, 29-Oct-2013
149,Revenue,CCHD,Bed Purchasing - Elderly S117- North,Residential Permanent,Beaufort House,2322.08, 01-Oct-2013
150,Revenue,CCHD,Bed Purchasing - Elderly S117- North,Residential Permanent,Beaufort House,2322.08, 29-Oct-2013
151,Revenue,CCHD,Bed purchasing - Elderly MH - North,Residential Permanent,Beaufort House,1383.68, 01-Oct-2013
152,Revenue,CCHD,Bed purchasing - Elderly MH - North,Residential Permanent,Beaufort House,1383.68, 29-Oct-2013
153,Revenue,CCHD,Bed purchasing - Elderly MH - North,Residential Permanent,Beaufort House,1150, 29-Oct-2013
154,Revenue,CCHD,Bed Purchasing - Elderly - North,Residential Permanent,Beaufort House,1836.08, 01-Oct-2013
155,Revenue,CCHD,Bed Purchasing - Elderly - North,Residential Permanent,Beaufort House,1836.08, 29-Oct-2013
156,Revenue,CCHD,Bed Purchasing - Frenchay Hospital,Residential Permanent,Beaufort House,1285.32, 01-Oct-2013
157,Revenue,CCHD,Bed Purchasing - Frenchay Hospital,Residential Permanent,Beaufort House,1285.32, 29-Oct-2013
158,Revenue,CCHD,Bed Purchasing - Elderly - North,Residential Permanent,Beaufort House,1200.4, 01-Oct-2013
159,Revenue,CCHD,Bed Purchasing - Elderly - North,Residential Permanent,Beaufort House,1726.68, 01-Oct-2013
160,Revenue,CCHD,Bed Purchasing - Elderly - North,Residential Permanent,Beaufort House,1726.68, 29-Oct-2013
161,Revenue,CCHD,Bed purchasing - Elderly MH - North,Residential Permanent,Beaufort House,1684.12, 01-Oct-2013
162,Revenue,CCHD,Bed purchasing - Elderly MH - North,Residential Permanent,Beaufort House,1684.12, 29-Oct-2013
163,Revenue,CCHD,Bed Purchasing - Elderly - North,Residential Permanent,Beaufort House,1519.32, 01-Oct-2013
164,Revenue,CCHD,Bed Purchasing - Elderly - North,Residential Permanent,Beaufort House,1519.32, 29-Oct-2013
165,Revenue,CCHD,Bed purchasing - Elderly PWLD - South,Residential Permanent,Bedrock Lodge,2909.4, 01-Oct-2013
166,Revenue,CCHD,Bed purchasing - Elderly PWLD - South,Residential Permanent,Bedrock Lodge,2909.4, 29-Oct-2013
167,Revenue,CCHD,Section 117 Placements MH Younger,Residential Permanent,Bedrock Lodge,1837.68, 01-Oct-2013
168,Revenue,CCHD,Section 117 Placements MH Younger,Residential Permanent,Bedrock Lodge,1837.68, 29-Oct-2013
169,Revenue,CCHD,Bed Purchasing - Elderly - North,Residential Permanent,Beech House,6644.14, 01-Oct-2013
170,Revenue,CCHD,Bed Purchasing - Elderly - North,Residential Permanent,Beech House,2514, 01-Oct-2013
171,Revenue,CCHD,Bed Purchasing - Elderly - North,Residential Permanent,Beech House,7358.72, 29-Oct-2013
172,Revenue,CCHD,Bed Purchasing - Elderly - North,Residential Permanent,Beech House,2020.04, 29-Oct-2013
173,Revenue,CCHD,Bed Purchasing - Elderly - North,Residential Permanent,Beech House,1189.28, 29-Oct-2013
174,Revenue,CCHD,Bed Purchasing - Elderly - North,Residential Permanent,Beech House,3252.86, 01-Oct-2013
175,Revenue,CCHD,Bed Purchasing - Elderly - North,Residential Permanent,Beech House,2769.74, 01-Oct-2013
176,Revenue,CCHD,Bed Purchasing - Elderly - North,Residential Permanent,Beech House,1885.64, 29-Oct-2013
177,Revenue,CCHD,Bed Purchasing - Elderly - North,Nursing Permanent,Beech House,2095.68, 01-Oct-2013
178,Revenue,CCHD,Bed Purchasing - Elderly - North,Nursing Permanent,Beech House,2095.68, 29-Oct-2013
179,Revenue,CCHD,Bed Purchasing - Elderly - North,Nursing Permanent,Beech House,725.16, 01-Oct-2013
180,Revenue,CCHD,Bed Purchasing - Elderly - North,Nursing Permanent,Beech House,725.16, 29-Oct-2013
181,Revenue,CCHD,Bed Purchasing - Elderly - North,Nursing Permanent,Beech House,2220.52, 01-Oct-2013
182,Revenue,CCHD,Bed Purchasing - Elderly - North,Nursing Permanent,Beech House,2220.52, 29-Oct-2013
183,Revenue,CCHD,Bed Purchasing - Frenchay Hospital,Residential Permanent,Belmont View,1352.08, 01-Oct-2013
184,Revenue,CCHD,Bed Purchasing - Frenchay Hospital,Residential Permanent,Belmont View,1352.08, 29-Oct-2013
185,Revenue,CCHD,Bed purchasing - Elderly MH - North,Nursing Permanent,Blossom Field,1042.16, 01-Oct-2013
186,Revenue,CCHD,Bed purchasing - Elderly MH - North,Nursing Permanent,Blossom Field,1042.16, 29-Oct-2013
187,Revenue,CCHD,Bed Purchasing - Elderly - North,Nursing Permanent,Blossom Field,1911, 01-Oct-2013
188,Revenue,CCHD,Bed Purchasing - Elderly - North,Nursing Permanent,Blossom Field,1911, 29-Oct-2013
189,Revenue,CCHD,South Glos Users in South Glos Homes,Nursing Permanent,Blossom Field,2634.96, 01-Oct-2013
190,Revenue,CCHD,Bed Purchasing - Elderly - North,Nursing Permanent,Blossom Field,1096.6, 01-Oct-2013
191,Revenue,CCHD,Bed Purchasing - Elderly - North,Nursing Permanent,Blossom Field,1096.6, 29-Oct-2013
192,Revenue,CCHD,Bed purchasing - Elderly MH - North,Nursing Permanent,Blossom Field,1400.04, 01-Oct-2013
193,Revenue,CCHD,Bed purchasing - Elderly MH - North,Nursing Permanent,Blossom Field,1400.04, 29-Oct-2013
194,Revenue,CCHD,Bed Purchasing - Elderly - South,Nursing Permanent,Blossom Field,1884.56, 01-Oct-2013
195,Revenue,CCHD,Bed Purchasing - Elderly - South,Nursing Permanent,Blossom Field,1884.56, 29-Oct-2013
196,Revenue,CCHD,Bed Purchasing - Elderly - North,Nursing Permanent,Blossom Fields,2551.21, 25-Oct-2013
197,Revenue,CCHD,Bed Purchasing - Southmead Hospital,Nursing Permanent,Blossom Fields,2065.21, 25-Oct-2013
198,Revenue,CCHD,South Glos Users in South Glos Homes,Nursing Permanent,Blossom Fields,878.32, 25-Oct-2013
199,Revenue,CCHD,Bed purchasing - Elderly MH - North,Nursing Permanent,Blossom Fields,1544.57, 25-Oct-2013
200,Revenue,CCHD,Bed purchasing - Under 65s PWLD - North,Residential Permanent,Bradbury House,8632.8, 01-Oct-2013
201,Revenue,CCHD,Bed purchasing - Under 65s PWLD - North,Residential Permanent,Bradbury House,8632.8, 29-Oct-2013
202,Revenue,CCHD,Home Care - Elderly - South,Other Small Contracts,Bradley House Home Care Services,147.35, 14-Oct-2013
203,Revenue,CCHD,Home Care - Elderly - North,Other Small Contracts,Bradley House Home Care Services,1705.05, 14-Oct-2013
204,Revenue,CCHD,Day Care - North,Private & Voluntary Day Care,Bradley House Home Care Services,101.04, 14-Oct-2013
205,Revenue,CCHD,Home Care - Elderly - South,Other Small Contracts,Bradley House Home Care Services,75.78, 14-Oct-2013
206,Revenue,CCHD,Home Care - Elderly - North,Other Small Contracts,Bradley House Home Care Services,1751.36, 14-Oct-2013
207,Revenue,CCHD,Day Care - North,Private & Voluntary Day Care,Bradley House Home Care Services,101.04, 14-Oct-2013
208,Revenue,CCHD,Home Care - Elderly - North,Other Small Contracts,Bradley House Home Care Services,1768.2, 14-Oct-2013
209,Revenue,CCHD,Day Care - North,Private & Voluntary Day Care,Bradley House Home Care Services,101.04, 14-Oct-2013
210,Revenue,CCHD,Home Care - Elderly - North,Other Small Contracts,Bradley House Home Care Services,1860.82, 28-Oct-2013
211,Revenue,CCHD,Day Care - North,Private & Voluntary Day Care,Bradley House Home Care Services,101.04, 28-Oct-2013
212,Revenue,CCHD,Home Care - Elderly - North,Other Small Contracts,Bradley House Home Care Services,1873.45, 28-Oct-2013
213,Revenue,CCHD,Day Care - North,Private & Voluntary Day Care,Bradley House Home Care Services,101.04, 28-Oct-2013
214,Revenue,CCHD,Alexandra Way,"Provisions (Food, etc)",Brake Bros,512.32, 03-Oct-2013
215,Revenue,CCHD,Alexandra Way,"Provisions (Food, etc)",Brake Bros,542.85, 03-Oct-2013
216,Revenue,CCHD,Woodleaze,"Provisions (Food, etc)",Brake Bros,907.05, 02-Oct-2013
217,Revenue,CCHD,Woodleaze,"Provisions (Food, etc)",Brake Bros,789.94, 10-Oct-2013
218,Revenue,CCHD,Alexandra Way,"Provisions (Food, etc)",Brake Bros,515.85, 18-Oct-2013
219,Revenue,CCHD,Woodleaze,"Provisions (Food, etc)",Brake Bros,759.36, 17-Oct-2013
220,Revenue,CCHD,Alexandra Way,"Provisions (Food, etc)",Brake Bros,497.11, 25-Oct-2013
221,Revenue,CCHD,Woodleaze,"Provisions (Food, etc)",Brake Bros,782.69, 23-Oct-2013
222,Revenue,CCHD,Bed Purchasing - S28A - Over 65- North,Residential Permanent,Brandon Trust,3054.48, 01-Oct-2013
223,Revenue,CCHD,Bed Purchasing - S28A - Over 65- North,Residential Permanent,Brandon Trust,3054.48, 29-Oct-2013
224,Revenue,CCHD,Bed Purchasing - Under 65s PWLD - South,Residential Permanent,Brandon Trust,9082.96, 01-Oct-2013
225,Revenue,CCHD,Bed Purchasing - Under 65s PWLD - South,Residential Permanent,Brandon Trust,10019.04, 29-Oct-2013
226,Revenue,CCHD,Bed Purchasing - Under 65s PWLD - South,Residential Permanent,Brandon Trust,1404.12, 29-Oct-2013
227,Revenue,CCHD,Bed Purchasing - Under 65s PWLD - South,Residential Permanent,Brandon Trust,3976.8, 01-Oct-2013
228,Revenue,CCHD,Bed Purchasing - Under 65s PWLD - South,Residential Permanent,Brandon Trust,3976.8, 29-Oct-2013
229,Revenue,CCHD,Bed purchasing - Elderly PWLD - South,Residential Permanent,Brandon Trust,3412.04, 01-Oct-2013
230,Revenue,CCHD,Bed purchasing - Elderly PWLD - South,Residential Permanent,Brandon Trust,3412.04, 29-Oct-2013
231,Revenue,CCHD,Bed Purchasing - LD S28A- Over 65- South,Nursing Permanent,Brandon Trust,4792.12, 01-Oct-2013
232,Revenue,CCHD,Bed Purchasing - LD S28A- Over 65- South,Nursing Permanent,Brandon Trust,948.55, 01-Oct-2013
233,Revenue,CCHD,Bed Purchasing - LD S28A- Over 65- South,Nursing Permanent,Brandon Trust,4792.12, 29-Oct-2013
234,Revenue,CCHD,Bed Purchasing - Under 65s PWLD - South,Nursing Permanent,Brandon Trust,4962.92, 01-Oct-2013
235,Revenue,CCHD,Bed Purchasing - Under 65s PWLD - South,Nursing Permanent,Brandon Trust,4962.92, 29-Oct-2013
236,Revenue,CCHD,Bed purchasing - S28A Under 65 - South,Nursing Permanent,Brandon Trust,5280.52, 01-Oct-2013
237,Revenue,CCHD,Bed purchasing - S28A Under 65 - South,Nursing Permanent,Brandon Trust,5280.52, 29-Oct-2013
238,Revenue,CCHD,Bed purchasing - S28A Under 65 - South,Residential Permanent,Brandon Trust,4832.6, 01-Oct-2013
239,Revenue,CCHD,Bed purchasing - S28A Under 65 - South,Residential Permanent,Brandon Trust,4832.6, 29-Oct-2013
240,Revenue,CCHD,Bed purchasing - S28A Under 65 - South,Nursing Permanent,Brandon Trust,5280.52, 01-Oct-2013
241,Revenue,CCHD,Bed purchasing - S28A Under 65 - South,Nursing Permanent,Brandon Trust,5280.52, 29-Oct-2013
242,Revenue,CCHD,Bed Purchasing - LD S28A- Over 65- South,Nursing Permanent,Brandon Trust,5109.72, 01-Oct-2013
243,Revenue,CCHD,Bed Purchasing - LD S28A- Over 65- South,Nursing Permanent,Brandon Trust,5109.72, 29-Oct-2013
244,Revenue,CCHD,Bed Purchasing - LD S28A- Over 65- South,Nursing Permanent,Brandon Trust,4777.8, 01-Oct-2013
245,Revenue,CCHD,Bed Purchasing - LD S28A- Over 65- South,Nursing Permanent,Brandon Trust,4777.8, 29-Oct-2013
246,Revenue,CCHD,Bed Purchasing - Under 65s PWLD - South,Residential Permanent,Brandon Trust,3225.28, 01-Oct-2013
247,Revenue,CCHD,Bed Purchasing - Under 65s PWLD - South,Residential Permanent,Brandon Trust,3225.28, 29-Oct-2013
248,Revenue,CCHD,Bed Purchasing - S28A - Over 65- North,Nursing Permanent,Brandon Trust,4742.68, 01-Oct-2013
249,Revenue,CCHD,Bed Purchasing - S28A - Over 65- North,Nursing Permanent,Brandon Trust,4742.68, 29-Oct-2013
250,Revenue,CCHD,Bed purchasing - S28A Under 65 - South,Residential Permanent,Brandon Trust,5126.44, 01-Oct-2013
251,Revenue,CCHD,Bed purchasing - S28A Under 65 - South,Residential Permanent,Brandon Trust,5126.44, 29-Oct-2013
252,Revenue,CCHD,Bed purchasing - S28A Under 65 - South,Residential Permanent,Brandon Trust,5181.28, 01-Oct-2013
253,Revenue,CCHD,Bed purchasing - S28A Under 65 - South,Residential Permanent,Brandon Trust,5181.28, 29-Oct-2013
254,Revenue,CCHD,Bed Purchasing - S28A - Over 65- North,Residential Permanent,Brandon Trust,8912.16, 01-Oct-2013
255,Revenue,CCHD,Bed Purchasing - S28A - Over 65- North,Residential Permanent,Brandon Trust,10730.8, 29-Oct-2013
256,Revenue,CCHD,Bed Purchasing - S28A - Over 65- North,Residential Permanent,Brandon Trust,2727.96, 29-Oct-2013
257,Revenue,CCHD,Bed purchasing - S28A Under 65 - South,Nursing Permanent,Brandon Trust,5280.52, 01-Oct-2013
258,Revenue,CCHD,Bed purchasing - S28A Under 65 - South,Nursing Permanent,Brandon Trust,5280.52, 29-Oct-2013
259,Revenue,CCHD,Bed purchasing - S28A Under 65 - South,Nursing Permanent,Brandon Trust,5280.52, 01-Oct-2013
260,Revenue,CCHD,Bed purchasing - S28A Under 65 - South,Nursing Permanent,Brandon Trust,5280.52, 29-Oct-2013
261,Revenue,CCHD,Bed purchasing -S28A  Under 65 - North,Nursing Permanent,Brandon Trust,4712.96, 01-Oct-2013
262,Revenue,CCHD,Bed purchasing -S28A  Under 65 - North,Nursing Permanent,Brandon Trust,4712.96, 29-Oct-2013
263,Revenue,CCHD,Bed purchasing - S28A Under 65 - South,Residential Permanent,Brandon Trust,5181.28, 01-Oct-2013
264,Revenue,CCHD,Bed purchasing - S28A Under 65 - South,Residential Permanent,Brandon Trust,5181.28, 29-Oct-2013
265,Revenue,CCHD,Bed Purchasing - LD S28A- Over 65- South,Residential Permanent,Brandon Trust,4681.52, 01-Oct-2013
266,Revenue,CCHD,Bed Purchasing - LD S28A- Over 65- South,Residential Permanent,Brandon Trust,4681.52, 29-Oct-2013
267,Revenue,CCHD,Bed Purchasing - Elderly - North,Residential Permanent,Bridge House Care Home,1753.07, 29-Oct-2013
268,Revenue,CCHD,Bed Purchasing - Elderly - North,Residential Permanent,Bridge House Care Home,1173.15, 29-Oct-2013
269,Revenue,CCHD,Bed Purchasing - Elderly - North,Residential Permanent,Bridge House Care Home,1452.14, 01-Oct-2013
270,Revenue,CCHD,Bed Purchasing - Elderly - North,Residential Permanent,Bridge House Care Home,1253.57, 29-Oct-2013
271,Revenue,CCHD,Bed Purchasing - Elderly - North,Residential Permanent,Bridge House Care Home,623.56, 29-Oct-2013
272,Revenue,CCHD,Bed Purchasing - Elderly - North,Residential Permanent,Bridge House Care Home,1217.14, 01-Oct-2013
273,Revenue,CCHD,Bed Purchasing - Elderly - North,Residential Permanent,Bridge House Care Home,1150.56, 01-Oct-2013
274,Revenue,CCHD,Bed Purchasing - Elderly - North,Residential Permanent,Bridge House Care Home,1150.56, 29-Oct-2013
275,Revenue,CCHD,Bed Purchasing - Elderly MH - South,Residential Permanent,Brightbow,2067.28, 01-Oct-2013
276,Revenue,CCHD,Bed Purchasing - Elderly MH - South,Residential Permanent,Brightbow,2067.28, 29-Oct-2013
277,Revenue,CCHD,MH Purchasing - Younger,Residential Permanent,Brightbow,920.8, 01-Oct-2013
278,Revenue,CCHD,MH Purchasing - Younger,Residential Permanent,Brightbow,920.8, 29-Oct-2013
279,Revenue,CCHD,Supported Living - North,Private & Voluntary Home Care,Bristol Houses UK Limited,1171.07, 09-Oct-2013
280,Revenue,CCHD,Supported Living - North,Private & Voluntary Home Care,Bristol Houses UK Limited,1056.6, 09-Oct-2013
281,Revenue,CCHD,Day Care - North,Private & Voluntary Day Care,Bristol Houses UK Limited,1549.68, 01-Oct-2013
282,Revenue,CCHD,Day Care - North,Private & Voluntary Day Care,Bristol Houses UK Limited,1496.85, 09-Oct-2013
283,Revenue,CCHD,Day Care - North,Private & Voluntary Day Care,Bristol Houses UK Limited,2377.35, 09-Oct-2013
284,Revenue,CCHD,Supported Living - North,Private & Voluntary Home Care,Bristol Houses UK Limited,832.7, 09-Oct-2013
285,Revenue,CCHD,Day Care - North,Private & Voluntary Day Care,Bristol Houses UK Limited,514.76, 07-Oct-2013
286,Revenue,CCHD,Day Care - North,Private & Voluntary Day Care,Bristol Houses UK Limited,711.58, 09-Oct-2013
287,Revenue,CCHD,Bed and Breakfast,Bed & Breakfast,Bristol Housing & Support Limited,1050, 28-Oct-2013
288,Revenue,CCHD,Bed and Breakfast,Bed & Breakfast,Bristol Housing & Support Limited,1050, 17-Oct-2013
289,Revenue,CCHD,Bed and Breakfast,Bed & Breakfast,Bristol Housing & Support Limited,1050, 28-Oct-2013
290,Revenue,CCHD,Bed and Breakfast,Bed & Breakfast,Bristol Housing & Support Limited,1470, 28-Oct-2013
291,Revenue,CCHD,Day Care - South,Private & Voluntary Day Care,Britannia House,901.6, 01-Oct-2013
292,Revenue,CCHD,Day Care - South,Private & Voluntary Day Care,Britannia House,901.6, 29-Oct-2013
293,Revenue,CCHD,Day Care - South,Private & Voluntary Day Care,Britannia House,676.2, 01-Oct-2013
294,Revenue,CCHD,Day Care - South,Private & Voluntary Day Care,Britannia House,676.2, 29-Oct-2013
295,Revenue,CCHD,Day Care - North,Private & Voluntary Day Care,Britannia House,901.6, 01-Oct-2013
296,Revenue,CCHD,Day Care - North,Private & Voluntary Day Care,Britannia House,901.6, 29-Oct-2013
297,Revenue,CCHD,Day Care - South,Private & Voluntary Day Care,Britannia House,676.2, 01-Oct-2013
298,Revenue,CCHD,Day Care - South,Private & Voluntary Day Care,Britannia House,676.2, 29-Oct-2013
299,Revenue,CCHD,Day Care - South,Private & Voluntary Day Care,Britannia House,901.6, 01-Oct-2013
300,Revenue,CCHD,Day Care - North,Private & Voluntary Day Care,Britannia House,901.6, 01-Oct-2013
301,Revenue,CCHD,Day Care - North,Private & Voluntary Day Care,Britannia House,901.6, 29-Oct-2013
302,Revenue,CCHD,Day Care - South,Private & Voluntary Day Care,Britannia House,1127, 01-Oct-2013
303,Revenue,CCHD,Day Care - South,Private & Voluntary Day Care,Britannia House,1127, 29-Oct-2013
304,Revenue,CCHD,Day Care - North,Private & Voluntary Day Care,Britannia House,961.76, 01-Oct-2013
305,Revenue,CCHD,Home Care - Elderly - South,Other Small Contracts,Britannia House,676.2, 01-Oct-2013
306,Revenue,CCHD,Home Care - Elderly - South,Other Small Contracts,Britannia House,676.2, 29-Oct-2013
307,Revenue,CCHD,Day Care - South,Private & Voluntary Day Care,Britannia House,676.2, 01-Oct-2013
308,Revenue,CCHD,Day Care - South,Private & Voluntary Day Care,Britannia House,676.2, 29-Oct-2013
309,Revenue,CCHD,Day Care - South,Private & Voluntary Day Care,Britannia House,676.2, 01-Oct-2013
310,Revenue,CCHD,Day Care - South,Private & Voluntary Day Care,Britannia House,676.2, 29-Oct-2013
311,Revenue,CCHD,Supporting People Programme,Grants to Voluntary Bodies,Bromford Housing Group,14050.25, 01-Oct-2013
312,Revenue,CCHD,"Sexual Health Services - Advice, Prevent",Other Small Contracts,Brook Advisory Centre (Avon),42000, 01-Oct-2013
313,Revenue,CCHD,Bed Purchasing - Elderly - North,Residential Permanent,Brook Lane Residential Home,910.08, 01-Oct-2013
314,Revenue,CCHD,Bed Purchasing - Elderly - North,Residential Permanent,Brook Lane Residential Home,910.08, 29-Oct-2013
315,Revenue,CCHD,Home Care - Elderly - North,Private & Voluntary Home Care,Brunelcare,15809.01, 07-Oct-2013
316,Revenue,CCHD,Home Care - Elderly - North,Private & Voluntary Home Care,Brunelcare,15809.01, 14-Oct-2013
317,Revenue,CCHD,Home Care - Elderly - North,Private & Voluntary Home Care,Brunelcare,15809.01, 21-Oct-2013
318,Revenue,CCHD,Home Care - Elderly - North,Private & Voluntary Home Care,Brunelcare,15809.01, 28-Oct-2013
319,Revenue,CCHD,Elderly MH Day Care South,Private & Voluntary Day Care,Brunelcare,540, 04-Oct-2013
320,Revenue,CCHD,Elderly MH Day Care South,Private & Voluntary Day Care,Brunelcare,540, 04-Oct-2013
321,Revenue,CCHD,Home Care - Elderly - South,Other Small Contracts,Brunelcare,2521.44, 14-Oct-2013
322,Revenue,CCHD,Home Care - Elderly - North,Other Small Contracts,Brunelcare,4616.16, 14-Oct-2013
323,Revenue,CCHD,Day Care - South,Private & Voluntary Day Care,Brunelcare,77.52, 14-Oct-2013
324,Revenue,CCHD,Day Care - North,Private & Voluntary Day Care,Brunelcare,48.96, 14-Oct-2013
325,Revenue,CCHD,Home Care - Elderly - South,Other Small Contracts,Brunelcare,2700.96, 14-Oct-2013
326,Revenue,CCHD,Home Care - Elderly - North,Other Small Contracts,Brunelcare,4787.8, 14-Oct-2013
327,Revenue,CCHD,Day Care - South,Private & Voluntary Day Care,Brunelcare,73.44, 14-Oct-2013
328,Revenue,CCHD,Day Care - North,Private & Voluntary Day Care,Brunelcare,77.52, 14-Oct-2013
329,Revenue,CCHD,Home Care - Elderly - South,Other Small Contracts,Brunelcare,2672.4, 28-Oct-2013
330,Revenue,CCHD,Home Care - Elderly - North,Other Small Contracts,Brunelcare,4697.84, 28-Oct-2013
331,Revenue,CCHD,Day Care - South,Private & Voluntary Day Care,Brunelcare,73.44, 28-Oct-2013
332,Revenue,CCHD,Day Care - North,Private & Voluntary Day Care,Brunelcare,81.6, 28-Oct-2013
333,Revenue,CCHD,Home Care - Elderly - North,Private & Voluntary Home Care,Brunelcare,9490.36, 24-Oct-2013
334,Revenue,CCHD,Information Systems - Software,Computer Equipment - Purchase,BT Global Services Solutions,978.04, 10-Oct-2013
335,Revenue,CCHD,Bed Purchasing - Frenchay Hospital,Nursing Permanent,Bupa Care Service,1302, 14-Oct-2013
336,Revenue,CCHD,Bed Purchasing - Southmead Hospital,Nursing Permanent,Bupa Care Services  Bridge House,1764.76, 01-Oct-2013
337,Revenue,CCHD,Bed purchasing - Phys Dis - North,Nursing Permanent,Bupa Care Services  Bridge House,5851.68, 01-Oct-2013
338,Revenue,CCHD,South Glos Users in all other LA Homes,Nursing Permanent,Bupa Care Services  Bridge House,604.4, 01-Oct-2013
339,Revenue,CCHD,Bed purchasing - Phys Dis - North,Nursing Permanent,Bupa Care Services  Bridge House,5851.68, 29-Oct-2013
340,Revenue,CCHD,South Glos Users in all other LA Homes,Nursing Permanent,Bupa Care Services  Bridge House,604.4, 29-Oct-2013
341,Revenue,CCHD,Bed purchasing - Elderly MH - North,Residential Permanent,Bupa Care Services  Bridge House,1900, 01-Oct-2013
342,Revenue,CCHD,Bed Purchasing - Frenchay Hospital,Nursing Permanent,Bupa Care Services  Bridge House,2604, 01-Oct-2013
343,Revenue,CCHD,Tenancy Start Up Scheme,Other Supplies & Services,C J Hole Estate Agents,1896, 31-Oct-2013
344,Revenue,CCHD,Supported Living - North,Private & Voluntary Home Care,Camphill Communities Thornbury Limited,2132.92, 02-Oct-2013
345,Revenue,CCHD,Supported Living - North,Private & Voluntary Home Care,Camphill Communities Thornbury Limited,2450.96, 02-Oct-2013
346,Revenue,CCHD,Supported Living - North,Private & Voluntary Home Care,Camphill Communities Thornbury Limited,2016.48, 03-Oct-2013
347,Revenue,CCHD,Supported Living - North,Private & Voluntary Home Care,Camphill Communities Thornbury Limited,2237.32, 03-Oct-2013
348,Revenue,CCHD,Supported Living - North,Private & Voluntary Home Care,Camphill Communities Thornbury Limited,1792.96, 03-Oct-2013
349,Revenue,CCHD,Supported Living - North,Private & Voluntary Home Care,Camphill Communities Thornbury Limited,2303.08, 03-Oct-2013
350,Revenue,CCHD,Supported Living - North,Private & Voluntary Home Care,Camphill Communities Thornbury Limited,2203.08, 03-Oct-2013
351,Revenue,CCHD,Supported Living - North,Private & Voluntary Home Care,Camphill Communities Thornbury Limited,2793.8, 10-Oct-2013
352,Revenue,CCHD,Supported Living - South,Private & Voluntary Home Care,Camphill Communities Thornbury Limited,1753.08, 16-Oct-2013
353,Revenue,CCHD,Supported Living - North,Private & Voluntary Home Care,Camphill Communities Thornbury Limited,2498.76, 16-Oct-2013
354,Revenue,CCHD,Supported Living - North,Private & Voluntary Home Care,Camphill Communities Thornbury Limited,2597.48, 16-Oct-2013
355,Revenue,CCHD,Supported Living - North,Private & Voluntary Home Care,Camphill Communities Thornbury Limited,1822.24, 18-Oct-2013
356,Revenue,CCHD,Supported Living - North,Private & Voluntary Home Care,Camphill Communities Thornbury Limited,2290.92, 23-Oct-2013
357,Revenue,CCHD,Supported Living - North,Private & Voluntary Home Care,Camphill Communities Thornbury Limited,2049.76, 23-Oct-2013
358,Revenue,CCHD,Supported Living - North,Private & Voluntary Home Care,Camphill Communities Thornbury Limited,2016.48, 23-Oct-2013
359,Revenue,CCHD,Supported Living - North,Private & Voluntary Home Care,Camphill Communities Thornbury Limited,2132.92, 30-Oct-2013
360,Revenue,CCHD,Supported Living - North,Private & Voluntary Home Care,Camphill Communities Thornbury Limited,2450.96, 30-Oct-2013
361,Revenue,CCHD,Supported Living - North,Private & Voluntary Home Care,Camphill Communities Thornbury Limited,2016.48, 31-Oct-2013
362,Revenue,CCHD,Supported Living - North,Private & Voluntary Home Care,Camphill Communities Thornbury Limited,2237.32, 31-Oct-2013
363,Revenue,CCHD,Supported Living - North,Private & Voluntary Home Care,Camphill Communities Thornbury Limited,1792.96, 31-Oct-2013
364,Revenue,CCHD,Supported Living - North,Private & Voluntary Home Care,Camphill Communities Thornbury Limited,2303.08, 31-Oct-2013
365,Revenue,CCHD,Supported Living - North,Private & Voluntary Home Care,Camphill Communities Thornbury Limited,2203.08, 31-Oct-2013
366,Revenue,CCHD,Supported Living - North,Private & Voluntary Home Care,Camphill Devon,1909.95, 02-Oct-2013
367,Revenue,CCHD,Supported Living - North,Private & Voluntary Home Care,Camphill Devon,2546.6, 02-Oct-2013
368,Revenue,CCHD,Supported Living - North,Private & Voluntary Home Care,Camphill Devon,2546.6, 02-Oct-2013
369,Revenue,CCHD,Supported Living - North,Private & Voluntary Home Care,Camphill Devon,1364.25, 02-Oct-2013
370,Revenue,CCHD,Supported Living - South,Private & Voluntary Home Care,Camphill Village Trust,1449.11, 11-Oct-2013
371,Revenue,CCHD,Bed Purchasing - Elderly S117- North,Residential Permanent,Canjayor,2300, 01-Oct-2013
372,Revenue,CCHD,Bed Purchasing - Elderly S117- North,Residential Permanent,Canjayor,2300, 29-Oct-2013
373,Revenue,CCHD,Home Care - Elderly - South,Other Small Contracts,Care 1st Homecare,4791.91, 15-Oct-2013
374,Revenue,CCHD,Home Care - Elderly - North,Other Small Contracts,Care 1st Homecare,6072.26, 15-Oct-2013
375,Revenue,CCHD,Day Care - North,Private & Voluntary Day Care,Care 1st Homecare,57.26, 15-Oct-2013
376,Revenue,CCHD,Home care - Elderly MH - North,Other Small Contracts,Care 1st Homecare,53.17, 15-Oct-2013
377,Revenue,CCHD,Home Care - Elderly - South,Other Small Contracts,Care 1st Homecare,4840.67, 22-Oct-2013
378,Revenue,CCHD,Home Care - Elderly - North,Other Small Contracts,Care 1st Homecare,6198.83, 22-Oct-2013
379,Revenue,CCHD,Day Care - North,Private & Voluntary Day Care,Care 1st Homecare,53.17, 22-Oct-2013
380,Revenue,CCHD,Home care - Elderly MH - North,Other Small Contracts,Care 1st Homecare,65.44, 22-Oct-2013
381,Revenue,CCHD,Home Care - Elderly - South,Other Small Contracts,Care 1st Homecare,4673.82, 22-Oct-2013
382,Revenue,CCHD,Home Care - Elderly - North,Other Small Contracts,Care 1st Homecare,6780.7, 22-Oct-2013
383,Revenue,CCHD,Day Care - North,Private & Voluntary Day Care,Care 1st Homecare,114.52, 22-Oct-2013
384,Revenue,CCHD,Under 65s -MH  Home Care Purch,Other Small Contracts,Care 1st Homecare,57.26, 22-Oct-2013
385,Revenue,CCHD,Home care - Elderly MH - North,Other Small Contracts,Care 1st Homecare,65.44, 22-Oct-2013
386,Revenue,CCHD,Bed Purchasing - PWLD S 117 Placements,Residential Permanent,Care Community Ltd,7536.4, 01-Oct-2013
387,Revenue,CCHD,Bed Purchasing - PWLD S 117 Placements,Residential Permanent,Care Community Ltd,7536.4, 29-Oct-2013
388,Revenue,CCHD,Home Care - Elderly - North,Other Small Contracts,Care Horizons Limited,2056.53, 01-Oct-2013
389,Revenue,CCHD,Day Care - South,Private & Voluntary Day Care,Care Horizons Limited,359.16, 01-Oct-2013
390,Revenue,CCHD,Home Care - Elderly - North,Other Small Contracts,Care Horizons Limited,2047.02, 15-Oct-2013
391,Revenue,CCHD,Day Care - South,Private & Voluntary Day Care,Care Horizons Limited,354.78, 15-Oct-2013
392,Revenue,CCHD,Supported Living - North,Private & Voluntary Home Care,Care Horizons Limited,5497.69, 17-Oct-2013
393,Revenue,CCHD,Purchase of Non-Res Care - North,Private & Voluntary Day Care,Care Horizons Limited,1309.81, 17-Oct-2013
394,Revenue,CCHD,Purchase of Non-Res Care - North,Private & Voluntary Day Care,Care Horizons Limited,1053.1, 17-Oct-2013
395,Revenue,CCHD,Purchase of Non-Res Care - North,Private & Voluntary Day Care,Care Horizons Limited,1273.1, 17-Oct-2013
396,Revenue,CCHD,Supported Living - South,Private & Voluntary Home Care,Care Horizons Limited,1967.54, 21-Oct-2013
397,Revenue,CCHD,Supported Living - North,Private & Voluntary Home Care,Care Horizons Limited,5373.79, 31-Oct-2013
398,Revenue,CCHD,Home Care - Elderly - North,Other Small Contracts,Care Horizons Limited,2163.17, 22-Oct-2013
399,Revenue,CCHD,Day Care - South,Private & Voluntary Day Care,Care Horizons Limited,337.26, 22-Oct-2013
400,Revenue,CCHD,Electronic Home Care Monitoring,Other Supplies & Services,Care Monitoring 2000 Limited,7766.71, 11-Oct-2013
401,Revenue,CCHD,Home Care - Elderly - South,Other Small Contracts,Care UK,5986.86, 09-Oct-2013
402,Revenue,CCHD,Home Care - Elderly - North,Other Small Contracts,Care UK,2704.21, 09-Oct-2013
403,Revenue,CCHD,Day Care - South,Private & Voluntary Day Care,Care UK,243.18, 09-Oct-2013
404,Revenue,CCHD,Day Care - North,Private & Voluntary Day Care,Care UK,576.72, 09-Oct-2013
405,Revenue,CCHD,Home care - Elderly MH - North,Other Small Contracts,Care UK,579, 09-Oct-2013
406,Revenue,CCHD,Elderly MH Day Care North,Private & Voluntary Day Care,Care UK,135.1, 09-Oct-2013
407,Revenue,CCHD,Home Care - Elderly - South,Other Small Contracts,Care UK,5898.08, 10-Oct-2013
408,Revenue,CCHD,Home Care - Elderly - North,Other Small Contracts,Care UK,2632.52, 10-Oct-2013
409,Revenue,CCHD,Day Care - South,Private & Voluntary Day Care,Care UK,270.2, 10-Oct-2013
410,Revenue,CCHD,Day Care - North,Private & Voluntary Day Care,Care UK,494.08, 10-Oct-2013
411,Revenue,CCHD,Home care - Elderly MH - North,Other Small Contracts,Care UK,579, 10-Oct-2013
412,Revenue,CCHD,Elderly MH Day Care North,Private & Voluntary Day Care,Care UK,142.82, 10-Oct-2013
413,Revenue,CCHD,Home Care - Elderly - North,Other Small Contracts,Carers R Us (Bristol) Limited,532.68, 22-Oct-2013
414,Revenue,CCHD,Home Care - Elderly - North,Other Small Contracts,Carers R Us (Bristol) Limited,582.86, 15-Oct-2013
415,Revenue,CCHD,Home Care - Elderly - North,Other Small Contracts,Carers R Us (Bristol) Limited,582.86, 15-Oct-2013
416,Revenue,CCHD,Home Care - Elderly - North,Other Small Contracts,Carers R Us (Bristol) Limited,579, 15-Oct-2013
417,Revenue,CCHD,Home Care - Elderly - South,Other Small Contracts,Carewatch (Bristol),1105, 01-Oct-2013
418,Revenue,CCHD,Home Care - Elderly - North,Other Small Contracts,Carewatch (Bristol),1126.25, 01-Oct-2013
419,Revenue,CCHD,Home Care - Elderly - South,Other Small Contracts,Carewatch (Bristol),888.25, 15-Oct-2013
420,Revenue,CCHD,Home Care - Elderly - North,Other Small Contracts,Carewatch (Bristol),1100.75, 15-Oct-2013
421,Revenue,CCHD,Home Care - Elderly - South,Other Small Contracts,Carewatch (Bristol),1075.25, 15-Oct-2013
422,Revenue,CCHD,Home Care - Elderly - North,Other Small Contracts,Carewatch (Bristol),1113.5, 15-Oct-2013
423,Revenue,CCHD,Home Care - Elderly - South,Other Small Contracts,Carewatch (Bristol),1109.25, 15-Oct-2013
424,Revenue,CCHD,Home Care - Elderly - North,Other Small Contracts,Carewatch (Bristol),1054, 15-Oct-2013
425,Revenue,CCHD,Elderly MH Day Care South,Private & Voluntary Day Care,Caring Home Healthcare Group Limited,500, 23-Oct-2013
426,Revenue,CCHD,Management & Support costs,Other Supplies & Services,Carol Davies,1000, 02-Oct-2013
427,Revenue,CCHD,Home Care - Elderly - South,Other Small Contracts,Cash Friday at Lloyds TSB,101.4, 31-Oct-2013
428,Revenue,CCHD,Home Care - Elderly - North,Other Small Contracts,Cash Friday at Lloyds TSB,900.9, 31-Oct-2013
429,Revenue,CCHD,Home Care - Elderly - South,Other Small Contracts,Cash Friday at Lloyds TSB,101.4, 07-Oct-2013
430,Revenue,CCHD,Home Care - Elderly - North,Other Small Contracts,Cash Friday at Lloyds TSB,865.8, 07-Oct-2013
431,Revenue,CCHD,Home Care - Elderly - South,Other Small Contracts,Cash Friday at Lloyds TSB,101.4, 09-Oct-2013
432,Revenue,CCHD,Home Care - Elderly - North,Other Small Contracts,Cash Friday at Lloyds TSB,912.6, 09-Oct-2013
433,Revenue,CCHD,Home Care - Elderly - South,Other Small Contracts,Cash Friday at Lloyds TSB,101.4, 09-Oct-2013
434,Revenue,CCHD,Home Care - Elderly - North,Other Small Contracts,Cash Friday at Lloyds TSB,908.7, 09-Oct-2013
435,Revenue,CCHD,Home Care - Elderly - South,Other Small Contracts,Cash Friday at Lloyds TSB,101.4, 31-Oct-2013
436,Revenue,CCHD,Home Care - Elderly - North,Other Small Contracts,Cash Friday at Lloyds TSB,900.9, 31-Oct-2013
437,Revenue,CCHD,Home Care - Elderly - South,Other Small Contracts,Cash Friday at Lloyds TSB,101.4, 31-Oct-2013
438,Revenue,CCHD,Home Care - Elderly - North,Other Small Contracts,Cash Friday at Lloyds TSB,920.4, 31-Oct-2013
439,Revenue,CCHD,Home Care - Elderly - South,Other Small Contracts,Cash Friday at Lloyds TSB,101.4, 31-Oct-2013
440,Revenue,CCHD,Home Care - Elderly - North,Other Small Contracts,Cash Friday at Lloyds TSB,900.9, 31-Oct-2013
441,Revenue,CCHD,Bed Purchasing - Elderly - South,Residential Permanent,Cepen Lodge Care Home,2176.28, 01-Oct-2013
442,Revenue,CCHD,Bed Purchasing - Elderly - South,Residential Permanent,Cepen Lodge Care Home,2176.28, 29-Oct-2013
443,Revenue,CCHD,Bed Purchasing - Southmead Hospital,Residential Permanent,Charlton House Residential Home,1385.36, 01-Oct-2013
444,Revenue,CCHD,Bed Purchasing - Southmead Hospital,Residential Permanent,Charlton House Residential Home,1385.36, 29-Oct-2013
445,Revenue,CCHD,Home Care - Elderly - South,Other Small Contracts,Cherish Able Care Limited,5312.32, 04-Oct-2013
446,Revenue,CCHD,Home Care - Elderly - South,Other Small Contracts,Cherish Able Care Limited,5204.16, 11-Oct-2013
447,Revenue,CCHD,Home Care - Elderly - South,Other Small Contracts,Cherish Able Care Limited,5104.32, 18-Oct-2013
448,Revenue,CCHD,Home Care - Elderly - South,Other Small Contracts,Cherish Able Care Limited,5075.2, 25-Oct-2013
449,Revenue,CCHD,Home Care - Elderly - South,Other Small Contracts,Cherish Able Care Limited,5145.92, 31-Oct-2013
450,Revenue,CCHD,Bed purchasing -S28A  Under 65 - North,Residential Permanent,Chescombe Lodge,8569.72, 01-Oct-2013
451,Revenue,CCHD,Bed purchasing -S28A  Under 65 - North,Residential Permanent,Chescombe Lodge,8569.72, 29-Oct-2013
452,Revenue,CCHD,Bed Purchasing - Under 65s PWLD - South,Residential Permanent,Chosen Court,6910.16, 01-Oct-2013
453,Revenue,CCHD,Bed Purchasing - Under 65s PWLD - South,Residential Permanent,Chosen Court,6910.16, 29-Oct-2013
454,Revenue,CCHD,Bed Purchasing - PWLD S 117 Placements,Residential Permanent,Chosen Court,8801.84, 01-Oct-2013
455,Revenue,CCHD,Bed Purchasing - PWLD S 117 Placements,Residential Permanent,Chosen Court,8801.84, 29-Oct-2013
456,Revenue,CCHD,Bed Purchasing - Under 65s PWLD - South,Residential Permanent,Chosen Court,5375.48, 01-Oct-2013
457,Revenue,CCHD,Bed Purchasing - Under 65s PWLD - South,Residential Permanent,Chosen Court,5375.48, 29-Oct-2013
458,Revenue,CCHD,Training - Adult Services,Training Expenses,Chris Garnier,1175, 24-Oct-2013
459,Revenue,CCHD,Bed purchasing - Under 65s PWLD - North,Residential Permanent,Church House,20708.88, 01-Oct-2013
460,Revenue,CCHD,Bed purchasing - Under 65s PWLD - North,Residential Permanent,Church House,10354.44, 29-Oct-2013
461,Revenue,CCHD,Bed purchasing - Under 65s PWLD - North,Residential Permanent,Church House,11666.08, 01-Oct-2013
462,Revenue,CCHD,Bed purchasing - Under 65s PWLD - North,Residential Permanent,Church House,5821.64, 29-Oct-2013
463,Revenue,CCHD,Supported Living - South,Private & Voluntary Home Care,Cintre Community,511.5, 11-Oct-2013
464,Revenue,CCHD,Bed Purchasing - Under 65s PWLD - South,Residential Permanent,Clearwater Care ( Hackney) Limited,3557.92, 28-Oct-2013
465,Revenue,CCHD,Bed Purchasing - Elderly - North,Residential Permanent,Cleeve Court,6078.57, 29-Oct-2013
466,Revenue,CCHD,Bed Purchasing - Southmead Hospital,Residential Permanent,Cleeve Lodge,1435.24, 01-Oct-2013
467,Revenue,CCHD,Bed Purchasing - Southmead Hospital,Residential Permanent,Cleeve Lodge,1435.24, 29-Oct-2013
468,Revenue,CCHD,Bed Purchasing - Elderly - South,Residential Permanent,Cleeve Lodge,514.29, 01-Oct-2013
469,Revenue,CCHD,Bed Purchasing - Elderly - North,Residential Permanent,Cleeve Lodge,1150, 01-Oct-2013
470,Revenue,CCHD,Bed Purchasing - Elderly - South,Residential Permanent,Cleeve Lodge,1028.57, 01-Oct-2013
471,Revenue,CCHD,Bed Purchasing - Elderly - South,Residential Permanent,Cleeve Lodge,1764.48, 01-Oct-2013
472,Revenue,CCHD,Bed Purchasing - Elderly - South,Residential Permanent,Cleeve Lodge,1764.48, 29-Oct-2013
473,Revenue,CCHD,Bed Purchasing - Elderly - North,Residential Permanent,Cleeve Lodge,771.43, 01-Oct-2013
474,Revenue,CCHD,Bed Purchasing - Elderly - South,Residential Permanent,Cleeve Lodge,2258.44, 01-Oct-2013
475,Revenue,CCHD,Bed Purchasing - Elderly - South,Residential Permanent,Cleeve Lodge,2258.44, 29-Oct-2013
476,Revenue,CCHD,Bed Purchasing - Elderly - North,Residential Permanent,Cleeve Lodge,1383.2, 01-Oct-2013
477,Revenue,CCHD,Bed Purchasing - Elderly - North,Residential Permanent,Cleeve Lodge,1383.2, 29-Oct-2013
478,Revenue,CCHD,Bed Purchasing - Elderly - South,Residential Permanent,Cleeve Lodge,1779.92, 01-Oct-2013
479,Revenue,CCHD,Bed Purchasing - Elderly - South,Residential Permanent,Cleeve Lodge,1779.92, 29-Oct-2013
480,Revenue,CCHD,Bed Purchasing - Elderly - South,Residential Permanent,Collingwood Residential Home,1298.48, 01-Oct-2013
481,Revenue,CCHD,Bed Purchasing - Elderly - South,Residential Permanent,Collingwood Residential Home,1298.48, 29-Oct-2013
482,Revenue,CCHD,Bed Purchasing - Elderly - South,Residential Permanent,Collingwood Residential Home,1403.68, 01-Oct-2013
483,Revenue,CCHD,Bed Purchasing - Elderly - South,Residential Permanent,Collingwood Residential Home,1403.68, 29-Oct-2013
484,Revenue,CCHD,Bed Purchasing - Elderly - South,Residential Permanent,Collingwood Residential Home,1421, 01-Oct-2013
485,Revenue,CCHD,Bed Purchasing - Elderly - South,Residential Permanent,Collingwood Residential Home,1421, 29-Oct-2013
486,Revenue,CCHD,Bed Purchasing - Elderly - South,Residential Permanent,Collingwood Residential Home,1089.96, 01-Oct-2013
487,Revenue,CCHD,Bed Purchasing - Elderly - South,Residential Permanent,Collingwood Residential Home,1089.96, 29-Oct-2013
488,Revenue,CCHD,Bed Purchasing - Elderly - South,Residential Permanent,Collingwood Residential Home,1334.28, 01-Oct-2013
489,Revenue,CCHD,Bed Purchasing - Elderly MH - South,Residential Permanent,Collingwood Residential Home,1306.28, 01-Oct-2013
490,Revenue,CCHD,Bed Purchasing - Elderly MH - South,Residential Permanent,Collingwood Residential Home,1306.28, 29-Oct-2013
491,Revenue,CCHD,Bed Purchasing - Elderly - South,Residential Permanent,Collingwood Residential Home,1156.52, 01-Oct-2013
492,Revenue,CCHD,Bed Purchasing - Elderly - South,Residential Permanent,Collingwood Residential Home,1156.52, 29-Oct-2013
493,Revenue,CCHD,Bed Purchasing - Elderly - South,Residential Permanent,Collingwood Residential Home,1268.04, 01-Oct-2013
494,Revenue,CCHD,Bed Purchasing - Elderly - South,Residential Permanent,Collingwood Residential Home,1268.04, 29-Oct-2013
495,Revenue,CCHD,Bed Purchasing - Elderly - South,Residential Permanent,Collingwood Residential Home,1405.32, 01-Oct-2013
496,Revenue,CCHD,Bed Purchasing - Elderly - South,Residential Permanent,Collingwood Residential Home,1405.32, 29-Oct-2013
497,Revenue,CCHD,Bed and Breakfast,Bed & Breakfast,Connolly & Callaghan Limited,441, 21-Oct-2013
498,Revenue,CCHD,Bed and Breakfast,Bed & Breakfast,Connolly & Callaghan Limited,441, 21-Oct-2013
499,Revenue,CCHD,Bed and Breakfast,Bed & Breakfast,Connolly & Callaghan Limited,651, 21-Oct-2013
500,Revenue,CCHD,Bed and Breakfast,Bed & Breakfast,Connolly & Callaghan Limited,441, 21-Oct-2013
501,Revenue,CCHD,Bed and Breakfast,Bed & Breakfast,Connolly & Callaghan Limited,686, 21-Oct-2013
502,Revenue,CCHD,Bed and Breakfast,Bed & Breakfast,Connolly & Callaghan Limited,511, 21-Oct-2013
503,Revenue,CCHD,Bed and Breakfast,Bed & Breakfast,Connolly & Callaghan Limited,546, 21-Oct-2013
504,Revenue,CCHD,Bed and Breakfast,Bed & Breakfast,Connolly & Callaghan Limited,441, 21-Oct-2013
505,Revenue,CCHD,Bed and Breakfast,Bed & Breakfast,Connolly & Callaghan Limited,651, 21-Oct-2013
506,Revenue,CCHD,Bed and Breakfast,Bed & Breakfast,Connolly & Callaghan Limited,441, 17-Oct-2013
507,Revenue,CCHD,Bed and Breakfast,Bed & Breakfast,Connolly & Callaghan Limited,438, 17-Oct-2013
508,Revenue,CCHD,Bed and Breakfast,Bed & Breakfast,Connolly & Callaghan Limited,686, 16-Oct-2013
509,Revenue,CCHD,Bed and Breakfast,Bed & Breakfast,Connolly & Callaghan Limited,651, 16-Oct-2013
510,Revenue,CCHD,Bed and Breakfast,Bed & Breakfast,Connolly & Callaghan Limited,441, 16-Oct-2013
511,Revenue,CCHD,Bed and Breakfast,Bed & Breakfast,Connolly & Callaghan Limited,686, 16-Oct-2013
512,Revenue,CCHD,Bed and Breakfast,Bed & Breakfast,Connolly & Callaghan Limited,511, 16-Oct-2013
513,Revenue,CCHD,Bed and Breakfast,Bed & Breakfast,Connolly & Callaghan Limited,546, 17-Oct-2013
514,Revenue,CCHD,Bed and Breakfast,Bed & Breakfast,Connolly & Callaghan Limited,441, 18-Oct-2013
515,Revenue,CCHD,Bed and Breakfast,Bed & Breakfast,Connolly & Callaghan Limited,651, 17-Oct-2013
516,Revenue,CCHD,Bed and Breakfast,Bed & Breakfast,Connolly & Callaghan Limited,441, 23-Oct-2013
517,Revenue,CCHD,Bed and Breakfast,Bed & Breakfast,Connolly & Callaghan Limited,511, 24-Oct-2013
518,Revenue,CCHD,Bed and Breakfast,Bed & Breakfast,Connolly & Callaghan Limited,498, 23-Oct-2013
519,Revenue,CCHD,Bed and Breakfast,Bed & Breakfast,Connolly & Callaghan Limited,476, 24-Oct-2013
520,Revenue,CCHD,Bed and Breakfast,Bed & Breakfast,Connolly & Callaghan Limited,686, 23-Oct-2013
521,Revenue,CCHD,Bed and Breakfast,Bed & Breakfast,Connolly & Callaghan Limited,651, 23-Oct-2013
522,Revenue,CCHD,Bed and Breakfast,Bed & Breakfast,Connolly & Callaghan Limited,441, 23-Oct-2013
523,Revenue,CCHD,Bed and Breakfast,Bed & Breakfast,Connolly & Callaghan Limited,511, 23-Oct-2013
524,Revenue,CCHD,Bed and Breakfast,Bed & Breakfast,Connolly & Callaghan Limited,476, 24-Oct-2013
525,Revenue,CCHD,Bed and Breakfast,Bed & Breakfast,Connolly & Callaghan Limited,546, 23-Oct-2013
526,Revenue,CCHD,Bed and Breakfast,Bed & Breakfast,Connolly & Callaghan Limited,651, 23-Oct-2013
527,Revenue,CCHD,Bed and Breakfast,Bed & Breakfast,Connolly & Callaghan Limited,581, 30-Oct-2013
528,Revenue,CCHD,Bed and Breakfast,Bed & Breakfast,Connolly & Callaghan Limited,686, 30-Oct-2013
529,Revenue,CCHD,Bed and Breakfast,Bed & Breakfast,Connolly & Callaghan Limited,651, 30-Oct-2013
530,Revenue,CCHD,Bed and Breakfast,Bed & Breakfast,Connolly & Callaghan Limited,441, 30-Oct-2013
531,Revenue,CCHD,Bed and Breakfast,Bed & Breakfast,Connolly & Callaghan Limited,546, 30-Oct-2013
532,Revenue,CCHD,Bed and Breakfast,Bed & Breakfast,Connolly & Callaghan Limited,651, 30-Oct-2013
533,Revenue,CCHD,Bed and Breakfast,Bed & Breakfast,Connolly & Callaghan Limited,522.9, 31-Oct-2013
534,Revenue,CCHD,Bed and Breakfast,Bed & Breakfast,Connolly & Callaghan Limited,617.4, 31-Oct-2013
535,Revenue,CCHD,Bed and Breakfast,Bed & Breakfast,Connolly & Callaghan Limited,585.9, 31-Oct-2013
536,Revenue,CCHD,Bed and Breakfast,Bed & Breakfast,Connolly & Callaghan Limited,573.3, 31-Oct-2013
537,Revenue,CCHD,Bed and Breakfast,Bed & Breakfast,Connolly & Callaghan Limited,491.4, 31-Oct-2013
538,Revenue,CCHD,Bed Purchasing - Frenchay Hospital,Residential Permanent,Coombs Wood House,962.96, 01-Oct-2013
539,Revenue,CCHD,Bed Purchasing - Frenchay Hospital,Residential Permanent,Coombs Wood House,962.96, 29-Oct-2013
540,Revenue,CCHD,Bed purchasing -S28A  Under 65 - North,Residential Permanent,Cream Ii Ltd  Longrun House,7924.8, 01-Oct-2013
541,Revenue,CCHD,Bed purchasing -S28A  Under 65 - North,Residential Permanent,Cream Ii Ltd  Longrun House,7924.8, 29-Oct-2013
542,Revenue,CCHD,Bed Purchasing - Under 65s PWLD - South,Residential Permanent,Cream Ii Ltd  Longrun House,5546.44, 01-Oct-2013
543,Revenue,CCHD,Bed Purchasing - Under 65s PWLD - South,Residential Permanent,Cream Ii Ltd  Longrun House,5546.44, 29-Oct-2013
544,Revenue,CCHD,Bed purchasing -S28A  Under 65 - North,Residential Permanent,Creedy Court,9157.32, 01-Oct-2013
545,Revenue,CCHD,Bed purchasing -S28A  Under 65 - North,Residential Permanent,Creedy Court,9157.32, 29-Oct-2013
546,Revenue,CCHD,Bed Purchasing - S28A - Over 65- North,Residential Permanent,Creedy Court,7616.76, 01-Oct-2013
547,Revenue,CCHD,Bed Purchasing - S28A - Over 65- North,Residential Permanent,Creedy Court,7616.76, 29-Oct-2013
548,Revenue,CCHD,Brokerage and Information Service,Grants to Voluntary Bodies,D H I,9210.08, 25-Oct-2013
549,Revenue,CCHD,Purchase of Non-Res Care - South,Private & Voluntary Day Care,Daneswood,1618.28, 09-Oct-2013
550,Revenue,CCHD,Bed Purchasing - Under 65s PWLD - South,Residential Permanent,Daneswood,10848.44, 01-Oct-2013
551,Revenue,CCHD,Bed Purchasing - Under 65s PWLD - South,Residential Permanent,Daneswood,10848.44, 29-Oct-2013
552,Revenue,CCHD,Bed purchasing - Under 65s PWLD - North,Residential Permanent,Daneswood,8986.84, 01-Oct-2013
553,Revenue,CCHD,Bed purchasing - Under 65s PWLD - North,Residential Permanent,Daneswood,8986.84, 29-Oct-2013
554,Revenue,CCHD,Learning Difficulties PSL,Other Supplies & Services,Individual,2016.44, 22-Oct-2013
555,Revenue,CCHD,Purchase of Non-Res Care - North,Private & Voluntary Day Care,Design 4 Life Ltd,1551.6, 07-Oct-2013
556,Revenue,CCHD,Purchase of Non-Res Care - North,Private & Voluntary Day Care,Design 4 Life Ltd,1293, 07-Oct-2013
557,Revenue,CCHD,Purchase of Non-Res Care - North,Private & Voluntary Day Care,Design 4 Life Ltd,1486.16, 09-Oct-2013
558,Revenue,CCHD,Purchase of Non-Res Care - North,Private & Voluntary Day Care,Design 4 Life Ltd,1486.16, 18-Oct-2013
559,Revenue,CCHD,Purchase of Non-Res Care - North,Private & Voluntary Day Care,Design 4 Life Ltd,1034.4, 18-Oct-2013
560,Revenue,CCHD,Bed Purchasing - Under 65s PWLD - South,Residential Permanent,Devon & Cornwall Autistic Community Trus,8668.84, 01-Oct-2013
561,Revenue,CCHD,Bed Purchasing - Under 65s PWLD - South,Residential Permanent,Devon & Cornwall Autistic Community Trus,8668.84, 29-Oct-2013
562,Revenue,CCHD,Day Care - South,Private & Voluntary Day Care,Dhek Bhal,919.16, 11-Oct-2013
563,Revenue,CCHD,Day Care - South,Private & Voluntary Day Care,Dhek Bhal,731.15, 11-Oct-2013
564,Revenue,CCHD,Day Care - South,Private & Voluntary Day Care,Dhek Bhal,668.48, 24-Oct-2013
565,Revenue,CCHD,Day Care - South,Private & Voluntary Day Care,Dhek Bhal,835.6, 24-Oct-2013
566,Revenue,CCHD,Bed Purchasing - Under 65s PWLD - South,Residential Permanent,Dimensions (Uk),4808.36, 01-Oct-2013
567,Revenue,CCHD,Bed Purchasing - Under 65s PWLD - South,Residential Permanent,Dimensions (Uk),4808.36, 29-Oct-2013
568,Revenue,CCHD,Supported Living - South,Private & Voluntary Home Care,Dimensions (UK) Ltd,1171.35, 01-Oct-2013
569,Revenue,CCHD,Supported Living - South,Private & Voluntary Home Care,Dimensions (UK) Ltd,7748.4, 24-Oct-2013
570,Revenue,CCHD,Home Care - Elderly - South,Other Small Contracts,DoCare Ltd,4712.03, 28-Oct-2013
571,Revenue,CCHD,Home Care - Elderly - North,Other Small Contracts,DoCare Ltd,6706.12, 28-Oct-2013
572,Revenue,CCHD,Day Care - North,Private & Voluntary Day Care,DoCare Ltd,172.79, 28-Oct-2013
573,Revenue,CCHD,Home Care - Elderly - South,Other Small Contracts,DoCare Ltd,4595.28, 28-Oct-2013
574,Revenue,CCHD,Home Care - Elderly - North,Other Small Contracts,DoCare Ltd,6514.65, 28-Oct-2013
575,Revenue,CCHD,Day Care - North,Private & Voluntary Day Care,DoCare Ltd,168.12, 28-Oct-2013
576,Revenue,CCHD,Home Care - Elderly - South,Other Small Contracts,DoCare Ltd,4884.82, 29-Oct-2013
577,Revenue,CCHD,Home Care - Elderly - North,Other Small Contracts,DoCare Ltd,6495.97, 29-Oct-2013
578,Revenue,CCHD,Day Care - North,Private & Voluntary Day Care,DoCare Ltd,168.12, 29-Oct-2013
579,Revenue,CCHD,Home Care - Elderly - South,Other Small Contracts,DoCare Ltd,5151.01, 29-Oct-2013
580,Revenue,CCHD,Home Care - Elderly - North,Other Small Contracts,DoCare Ltd,5010.91, 29-Oct-2013
581,Revenue,CCHD,Day Care - North,Private & Voluntary Day Care,DoCare Ltd,168.12, 29-Oct-2013
582,Revenue,CCHD,Bed Purchasing - Under 65s PWLD - South,Residential Permanent,Dudbridge House,6546.16, 01-Oct-2013
583,Revenue,CCHD,Bed Purchasing - Under 65s PWLD - South,Residential Permanent,Dudbridge House,6546.16, 29-Oct-2013
584,Revenue,CCHD,Bed Purchasing - Elderly - South,Nursing Permanent,Dunkirk Memorial House,1158.8, 01-Oct-2013
585,Revenue,CCHD,Bed Purchasing - Elderly - South,Nursing Permanent,Dunkirk Memorial House,1158.8, 29-Oct-2013
586,Revenue,CCHD,MH Purchasing - Younger,Residential Permanent,Dunraven House,1826.8, 01-Oct-2013
587,Revenue,CCHD,MH Purchasing - Younger,Residential Permanent,Dunraven House,1826.8, 29-Oct-2013
588,Revenue,CCHD,Bed and Breakfast,Bed & Breakfast,E J Bartlett,837, 02-Oct-2013
589,Revenue,CCHD,Bed and Breakfast,Bed & Breakfast,E J Bartlett,992, 02-Oct-2013
590,Revenue,CCHD,Bed and Breakfast,Bed & Breakfast,E J Bartlett,651, 14-Oct-2013
591,Revenue,CCHD,Bed and Breakfast,Bed & Breakfast,E J Bartlett,868, 14-Oct-2013
592,Revenue,CCHD,Bed and Breakfast,Bed & Breakfast,E J Bartlett,651, 15-Oct-2013
593,Revenue,CCHD,Bed and Breakfast,Bed & Breakfast,E J Bartlett,868, 15-Oct-2013
594,Revenue,CCHD,Bed and Breakfast,Bed & Breakfast,E J Bartlett,651, 23-Oct-2013
595,Revenue,CCHD,Bed and Breakfast,Bed & Breakfast,E J Bartlett,558, 23-Oct-2013
596,Revenue,CCHD,Bed and Breakfast,Bed & Breakfast,E J Bartlett,868, 23-Oct-2013
597,Revenue,CCHD,Bed and Breakfast,Bed & Breakfast,E J Bartlett,434, 30-Oct-2013
598,Revenue,CCHD,Bed and Breakfast,Bed & Breakfast,E J Bartlett,868, 30-Oct-2013
599,Revenue,CCHD,Bed purchasing - Under 65s PWLD - North,Residential Permanent,East Court,2180.72, 01-Oct-2013
600,Revenue,CCHD,Bed purchasing - Under 65s PWLD - North,Residential Permanent,East Court,2180.72, 29-Oct-2013
601,Revenue,CCHD,Day Care - South,Private & Voluntary Day Care,Easton Community Centre,512.88, 01-Oct-2013
602,Revenue,CCHD,Day Care - South,Private & Voluntary Day Care,Easton Community Centre,512.88, 29-Oct-2013
603,Revenue,CCHD,Day Care - South,Private & Voluntary Day Care,Easton Community Centre,512.88, 01-Oct-2013
604,Revenue,CCHD,Day Care - South,Private & Voluntary Day Care,Easton Community Centre,512.88, 29-Oct-2013
605,Revenue,CCHD,Younger MH non-res purchasing,Private & Voluntary Day Care,Easton Community Centre,512.88, 01-Oct-2013
606,Revenue,CCHD,Younger MH non-res purchasing,Private & Voluntary Day Care,Easton Community Centre,512.88, 29-Oct-2013
607,Revenue,CCHD,Day Care - South,Private & Voluntary Day Care,Easton Community Centre,512.88, 01-Oct-2013
608,Revenue,CCHD,Day Care - South,Private & Voluntary Day Care,Easton Community Centre,512.88, 29-Oct-2013
609,Revenue,CCHD,Day Care - South,Private & Voluntary Day Care,Easton Community Centre,512.88, 01-Oct-2013
610,Revenue,CCHD,Day Care - South,Private & Voluntary Day Care,Easton Community Centre,512.88, 29-Oct-2013
611,Revenue,CCHD,Bed Purchasing - Elderly - South,Residential Permanent,Edgecumbe Lodge,1514, 01-Oct-2013
612,Revenue,CCHD,Bed Purchasing - Elderly - South,Residential Permanent,Edgecumbe Lodge,1514, 29-Oct-2013
613,Revenue,CCHD,Bed Purchasing - Southmead Hospital,Residential Permanent,Edgecumbe Lodge,1246, 01-Oct-2013
614,Revenue,CCHD,Bed Purchasing - Southmead Hospital,Residential Permanent,Edgecumbe Lodge,1246, 29-Oct-2013
615,Revenue,CCHD,Bed Purchasing - Elderly - South,Residential Permanent,Edgecumbe Lodge,1000, 01-Oct-2013
616,Revenue,CCHD,Bed Purchasing - Elderly - South,Residential Permanent,Edgecumbe Lodge,1052.16, 01-Oct-2013
617,Revenue,CCHD,Bed Purchasing - Elderly - South,Residential Permanent,Edgecumbe Lodge,1052.16, 29-Oct-2013
618,Revenue,CCHD,Bed Purchasing - Elderly - South,Residential Permanent,Edgecumbe Lodge,1312.64, 01-Oct-2013
619,Revenue,CCHD,Bed Purchasing - Elderly - South,Residential Permanent,Edgecumbe Lodge,1312.64, 29-Oct-2013
620,Revenue,CCHD,Bed Purchasing - Southmead Hospital,Residential Permanent,Edgecumbe Lodge,1414, 29-Oct-2013
621,Revenue,CCHD,Bed Purchasing - Southmead Hospital,Residential Permanent,Edgecumbe Lodge,959.5, 29-Oct-2013
622,Revenue,CCHD,Bed Purchasing - Elderly - South,Residential Permanent,Edgecumbe Lodge,1405.12, 01-Oct-2013
623,Revenue,CCHD,Bed Purchasing - Elderly - South,Residential Permanent,Edgecumbe Lodge,1405.12, 29-Oct-2013
624,Revenue,CCHD,Bed Purchasing - Southmead Hospital,Residential Permanent,Edgecumbe Lodge,1514, 01-Oct-2013
625,Revenue,CCHD,Bed Purchasing - Southmead Hospital,Residential Permanent,Edgecumbe Lodge,1514, 29-Oct-2013
626,Revenue,CCHD,Bed Purchasing - Elderly - South,Residential Permanent,Edgecumbe Lodge,991.96, 01-Oct-2013
627,Revenue,CCHD,Bed Purchasing - Elderly - South,Residential Permanent,Edgecumbe Lodge,991.96, 29-Oct-2013
628,Revenue,CCHD,Bed Purchasing - Elderly - South,Residential Permanent,Edgecumbe Lodge,1276.24, 01-Oct-2013
629,Revenue,CCHD,Bed Purchasing - Elderly - South,Residential Permanent,Edgecumbe Lodge,1276.24, 29-Oct-2013
630,Revenue,CCHD,Bed Purchasing - Elderly - South,Residential Permanent,Edgecumbe Lodge,1223.16, 01-Oct-2013
631,Revenue,CCHD,Bed Purchasing - Elderly - South,Residential Permanent,Edgecumbe Lodge,1223.16, 29-Oct-2013
632,Revenue,CCHD,Bed Purchasing - Elderly - South,Residential Permanent,Edgemont House Ltd,1039.29, 01-Oct-2013
633,Revenue,CCHD,Bed Purchasing - Southmead Hospital,Residential Permanent,Edgemont House Ltd,1414, 01-Oct-2013
634,Revenue,CCHD,Bed Purchasing - Southmead Hospital,Residential Permanent,Edgemont House Ltd,1414, 29-Oct-2013
635,Revenue,CCHD,Bed Purchasing - Elderly - South,Residential Permanent,Edgemont House Ltd,9212.28, 01-Oct-2013
636,Revenue,CCHD,Bed Purchasing - Elderly - South,Residential Permanent,Edgemont House Ltd,1454, 01-Oct-2013
637,Revenue,CCHD,Bed Purchasing - Elderly - South,Residential Permanent,Edgemont House Ltd,1454, 29-Oct-2013
638,Revenue,CCHD,Bed Purchasing - Elderly - South,Residential Permanent,Edgemont House Ltd,1246, 01-Oct-2013
639,Revenue,CCHD,Bed Purchasing - Elderly - South,Residential Permanent,Edgemont House Ltd,1246, 29-Oct-2013
640,Revenue,CCHD,Bed Purchasing - Elderly - South,Residential Permanent,Edgemont House Ltd,1246, 01-Oct-2013
641,Revenue,CCHD,Bed Purchasing - Elderly - South,Residential Permanent,Edgemont House Ltd,1246, 29-Oct-2013
642,Revenue,CCHD,Bed Purchasing - Elderly - South,Residential Permanent,Edgemont House Ltd,1412.04, 01-Oct-2013
643,Revenue,CCHD,Bed Purchasing - Elderly - South,Residential Permanent,Edgemont House Ltd,1412.04, 29-Oct-2013
644,Revenue,CCHD,Bed Purchasing - Elderly - South,Residential Permanent,Edgemont House Ltd,1260.96, 01-Oct-2013
645,Revenue,CCHD,Bed Purchasing - Elderly - South,Residential Permanent,Edgemont House Ltd,1260.96, 29-Oct-2013
646,Revenue,CCHD,Bed Purchasing - Elderly - South,Residential Permanent,Edgemont House Ltd,1947.14, 01-Oct-2013
647,Revenue,CCHD,Bed Purchasing - Elderly - South,Nursing Permanent,Edgemont View Nursing Home,836.01, 01-Oct-2013
648,Revenue,CCHD,Bed Purchasing - Elderly - South,Nursing Permanent,Edgemont View Nursing Home,1427.52, 01-Oct-2013
649,Revenue,CCHD,Bed Purchasing - Elderly - South,Nursing Permanent,Edgemont View Nursing Home,1427.52, 29-Oct-2013
650,Revenue,CCHD,Bed Purchasing - Frenchay Hospital,Nursing Permanent,Edgemont View Nursing Home,797.4, 01-Oct-2013
651,Revenue,CCHD,Bed Purchasing - Frenchay Hospital,Nursing Permanent,Edgemont View Nursing Home,797.4, 29-Oct-2013
652,Revenue,CCHD,Bed Purchasing - Elderly - South,Nursing Permanent,Edgemont View Nursing Home,1302, 01-Oct-2013
653,Revenue,CCHD,Bed Purchasing - Elderly - South,Nursing Permanent,Edgemont View Nursing Home,1302, 29-Oct-2013
654,Revenue,CCHD,Bed Purchasing - Elderly - South,Nursing Permanent,Edgemont View Nursing Home,1613.52, 01-Oct-2013
655,Revenue,CCHD,Bed Purchasing - Elderly - South,Nursing Permanent,Edgemont View Nursing Home,1613.52, 29-Oct-2013
656,Revenue,CCHD,Bed Purchasing - Elderly - South,Nursing Permanent,Edgemont View Nursing Home,1177.24, 01-Oct-2013
657,Revenue,CCHD,Bed Purchasing - Elderly - South,Nursing Permanent,Edgemont View Nursing Home,1177.24, 29-Oct-2013
658,Revenue,CCHD,Supporting People Programme,Grants to Voluntary Bodies,Elim Housing Association Limited,4945.25, 01-Oct-2013
659,Revenue,CCHD,Home Care - Elderly - South,Other Small Contracts,Elite Home Care Ltd,4588.02, 07-Oct-2013
660,Revenue,CCHD,Home care - Elderly MH - North,Other Small Contracts,Elite Home Care Ltd,157.32, 07-Oct-2013
661,Revenue,CCHD,Home Care - Elderly - South,Other Small Contracts,Elite Home Care Ltd,4461.29, 07-Oct-2013
662,Revenue,CCHD,Home care - Elderly MH - North,Other Small Contracts,Elite Home Care Ltd,157.32, 07-Oct-2013
663,Revenue,CCHD,Home Care - Elderly - South,Other Small Contracts,Elite Home Care Ltd,4553.06, 14-Oct-2013
664,Revenue,CCHD,Home care - Elderly MH - North,Other Small Contracts,Elite Home Care Ltd,152.95, 14-Oct-2013
665,Revenue,CCHD,Home Care - Elderly - South,Other Small Contracts,Elite Home Care Ltd,4544.32, 14-Oct-2013
666,Revenue,CCHD,Home care - Elderly MH - North,Other Small Contracts,Elite Home Care Ltd,157.32, 14-Oct-2013
667,Revenue,CCHD,Home Care - Elderly - South,Other Small Contracts,Elite Home Care Ltd,4889.55, 28-Oct-2013
668,Revenue,CCHD,Home care - Elderly MH - North,Other Small Contracts,Elite Home Care Ltd,157.32, 28-Oct-2013
669,Revenue,CCHD,Bed Purchasing - Elderly - South,Residential Permanent,Elmbridge Residential Home Ltd,2635.12, 01-Oct-2013
670,Revenue,CCHD,Bed Purchasing - Frenchay Hospital,Nursing Permanent,Elmwood Nursing Home,2223.88, 01-Oct-2013
671,Revenue,CCHD,Day Care - South,Private & Voluntary Day Care,Enham,638.72, 02-Oct-2013
672,Revenue,CCHD,Bed Purchasing - Southmead Hospital,Residential Permanent,Epworth House,953.56, 29-Oct-2013
673,Revenue,CCHD,Training - Adult Services,Training Expenses,Equality & Diversity UK Limited,1061.5, 07-Oct-2013
674,Revenue,CCHD,SLA Grants - Support Serv,Grants to Voluntary Bodies,Esther E Harris,1000, 10-Oct-2013
675,Revenue,CCHD,Home Care - Elderly - South,Other Small Contracts,Everycare (Bristol) Ltd,5588.32, 09-Oct-2013
676,Revenue,CCHD,Home Care - Elderly - North,Other Small Contracts,Everycare (Bristol) Ltd,2136.96, 09-Oct-2013
677,Revenue,CCHD,Day Care - South,Private & Voluntary Day Care,Everycare (Bristol) Ltd,67.84, 09-Oct-2013
678,Revenue,CCHD,Home Care - Elderly - South,Other Small Contracts,Everycare (Bristol) Ltd,5363.6, 03-Oct-2013
679,Revenue,CCHD,Home Care - Elderly - North,Other Small Contracts,Everycare (Bristol) Ltd,2285.36, 03-Oct-2013
680,Revenue,CCHD,Day Care - South,Private & Voluntary Day Care,Everycare (Bristol) Ltd,101.76, 03-Oct-2013
681,Revenue,CCHD,Home Care - Elderly - South,Other Small Contracts,Everycare (Bristol) Ltd,5308.48, 09-Oct-2013
682,Revenue,CCHD,Home Care - Elderly - North,Other Small Contracts,Everycare (Bristol) Ltd,2242.96, 09-Oct-2013
683,Revenue,CCHD,Day Care - South,Private & Voluntary Day Care,Everycare (Bristol) Ltd,101.76, 09-Oct-2013
684,Revenue,CCHD,Home Care - Elderly - South,Other Small Contracts,Everycare (Bristol) Ltd,5194, 25-Oct-2013
685,Revenue,CCHD,Home Care - Elderly - North,Other Small Contracts,Everycare (Bristol) Ltd,2315.04, 25-Oct-2013
686,Revenue,CCHD,Day Care - South,Private & Voluntary Day Care,Everycare (Bristol) Ltd,97.52, 25-Oct-2013
687,Revenue,CCHD,Home Care - Elderly - South,Other Small Contracts,Everycare (Bristol) Ltd,4625.84, 25-Oct-2013
688,Revenue,CCHD,Home Care - Elderly - North,Other Small Contracts,Everycare (Bristol) Ltd,2183.6, 25-Oct-2013
689,Revenue,CCHD,Day Care - South,Private & Voluntary Day Care,Everycare (Bristol) Ltd,97.52, 25-Oct-2013
690,Revenue,CCHD,Under 65s -MH  Home Care Purch,Other Small Contracts,Everycare (Bristol) Ltd,50.88, 25-Oct-2013
691,Revenue,CCHD,Home Care - Elderly - South,Other Small Contracts,Everycare (Bristol) Ltd,5287.28, 31-Oct-2013
692,Revenue,CCHD,Home Care - Elderly - North,Other Small Contracts,Everycare (Bristol) Ltd,2344.72, 31-Oct-2013
693,Revenue,CCHD,Day Care - South,Private & Voluntary Day Care,Everycare (Bristol) Ltd,101.76, 31-Oct-2013
694,Revenue,CCHD,Under 65s -MH  Home Care Purch,Other Small Contracts,Everycare (Bristol) Ltd,84.8, 31-Oct-2013
695,Revenue,CCHD,Bed Purchasing - Elderly MH - South,Residential Permanent,Exmouth House,2795.76, 01-Oct-2013
696,Revenue,CCHD,Bed Purchasing - Southmead Hospital,Residential Permanent,Fairfield House Care Home,2908.56, 01-Oct-2013
697,Revenue,CCHD,Bed Purchasing - Elderly - South,Nursing Permanent,Fairview Court,1180.4, 01-Oct-2013
698,Revenue,CCHD,Bed Purchasing - Elderly - South,Nursing Permanent,Fairview Court,1180.4, 29-Oct-2013
699,Revenue,CCHD,Bed purchasing - Elderly MH - North,Nursing Permanent,Fairview Court,1595.96, 01-Oct-2013
700,Revenue,CCHD,Bed purchasing - Elderly MH - North,Nursing Permanent,Fairview Court,1595.96, 29-Oct-2013
701,Revenue,CCHD,South Glos Users in South Glos Homes,Nursing Permanent,Fairview Court,2572.22, 29-Oct-2013
702,Revenue,CCHD,Bed Purchasing - Elderly MH - South,Nursing Permanent,Fairview Court,1850.48, 01-Oct-2013
703,Revenue,CCHD,Bed Purchasing - Elderly MH - South,Nursing Permanent,Fairview Court,1850.48, 29-Oct-2013
704,Revenue,CCHD,Bed Purchasing - Elderly MH - South,Nursing Permanent,Fairview Court,1934.36, 01-Oct-2013
705,Revenue,CCHD,Bed Purchasing - Elderly MH - South,Nursing Permanent,Fairview Court,1934.36, 29-Oct-2013
706,Revenue,CCHD,Bed Purchasing - Southmead Hospital,Nursing Permanent,Fairview Court,1023.72, 01-Oct-2013
707,Revenue,CCHD,South Glos Users in South Glos Homes,Nursing Permanent,Fairview Court,3074.12, 29-Oct-2013
708,Revenue,CCHD,Bed Purchasing - Southmead Hospital,Nursing Permanent,Fairview Court,1023.72, 29-Oct-2013
709,Revenue,CCHD,Bed Purchasing - Elderly - South,Nursing Permanent,Fairview Court,1056.84, 01-Oct-2013
710,Revenue,CCHD,Bed Purchasing - Elderly - South,Nursing Permanent,Fairview Court,1056.84, 29-Oct-2013
711,Revenue,CCHD,Bed Purchasing - Elderly MH - South,Residential Permanent,Fairview Court,1414, 01-Oct-2013
712,Revenue,CCHD,Bed Purchasing - Elderly MH - South,Residential Permanent,Fairview Court,1414, 29-Oct-2013
713,Revenue,CCHD,Bed Purchasing - Elderly - South,Nursing Permanent,Fairview Court,1240.79, 01-Oct-2013
714,Revenue,CCHD,Bed Purchasing - Elderly - South,Nursing Permanent,Fairview Court,1857, 29-Oct-2013
715,Revenue,CCHD,Bed Purchasing - Elderly - South,Residential Permanent,Fairview Court,2648.56, 01-Oct-2013
716,Revenue,CCHD,Bed Purchasing - Elderly - South,Residential Permanent,Fairview Court,2648.56, 29-Oct-2013
717,Revenue,CCHD,Bed Purchasing - Elderly - South,Residential Permanent,Fairview Court,2154.56, 01-Oct-2013
718,Revenue,CCHD,Bed Purchasing - Elderly - South,Residential Permanent,Fairview Court,2154.56, 29-Oct-2013
719,Revenue,CCHD,Bed Purchasing - Elderly - South,Nursing Permanent,Fairview Court,1830.44, 01-Oct-2013
720,Revenue,CCHD,Bed Purchasing - Elderly - South,Nursing Permanent,Fairview Court,1830.44, 29-Oct-2013
721,Revenue,CCHD,Bed Purchasing - Southmead Hospital,Nursing Permanent,Fairview Court,8660.07, 01-Oct-2013
722,Revenue,CCHD,Bed Purchasing - Southmead Hospital,Nursing Permanent,Fairview Court,2184.52, 01-Oct-2013
723,Revenue,CCHD,South Glos Users in South Glos Homes,Nursing Permanent,Fairview Court,2634.96, 01-Oct-2013
724,Revenue,CCHD,Bed Purchasing - Frenchay Hospital,Nursing Permanent,Fairview Court,1836.08, 01-Oct-2013
725,Revenue,CCHD,Bed Purchasing - Frenchay Hospital,Nursing Permanent,Fairview Court,1836.08, 29-Oct-2013
726,Revenue,CCHD,Bed Purchasing - Elderly MH - South,Nursing Permanent,Fairview Court,2002.88, 01-Oct-2013
727,Revenue,CCHD,Bed Purchasing - Elderly MH - South,Nursing Permanent,Fairview Court,1921.68, 29-Oct-2013
728,Revenue,CCHD,Bed purchasing - Elderly MH - North,Nursing Permanent,Fairview Court,1699.6, 01-Oct-2013
729,Revenue,CCHD,Bed purchasing - Elderly MH - North,Nursing Permanent,Fairview Court,1699.6, 29-Oct-2013
730,Revenue,CCHD,Bed Purchasing - Frenchay Hospital,Nursing Permanent,Fairview Court Care Home,1531.89, 10-Oct-2013
731,Revenue,CCHD,South Glos Users in South Glos Homes,Nursing Permanent,Fairview Court Care Home,2682.01, 10-Oct-2013
732,Revenue,CCHD,Bed purchasing - Phys Dis - North,Nursing Permanent,Fairview Court Care Home,2508.92, 10-Oct-2013
733,Revenue,CCHD,Bed Purchasing - Elderly MH - South,Nursing Permanent,Fairview Court Care Home,4679.05, 10-Oct-2013
734,Revenue,CCHD,Bed purchasing - Elderly S117 - South,Nursing Permanent,Fairview Court Care Home,2574.51, 10-Oct-2013
735,Revenue,CCHD,Bed Purchasing - Elderly - South,Residential Permanent,Fairview House,865.48, 01-Oct-2013
736,Revenue,CCHD,Bed Purchasing - Elderly - South,Residential Permanent,Fairview House,865.48, 29-Oct-2013
737,Revenue,CCHD,Bed Purchasing - Elderly - South,Residential Permanent,Fairview House,1265.24, 01-Oct-2013
738,Revenue,CCHD,Bed Purchasing - Elderly - South,Residential Permanent,Fairview House,1265.24, 29-Oct-2013
739,Revenue,CCHD,Bed Purchasing - Frenchay Hospital,Residential Permanent,Fairview House,992.24, 01-Oct-2013
740,Revenue,CCHD,Bed Purchasing - Frenchay Hospital,Residential Permanent,Fairview House,992.24, 29-Oct-2013
741,Revenue,CCHD,Bed Purchasing - Elderly - South,Residential Permanent,Fairview House,928.12, 01-Oct-2013
742,Revenue,CCHD,Bed Purchasing - Elderly - South,Residential Permanent,Fairview House,928.12, 29-Oct-2013
743,Revenue,CCHD,Bed purchasing - Elderly S117 - South,Residential Permanent,Fairview House,1888.88, 01-Oct-2013
744,Revenue,CCHD,Bed purchasing - Elderly S117 - South,Residential Permanent,Fairview House,1888.88, 29-Oct-2013
745,Revenue,CCHD,Bed Purchasing - Southmead Hospital,Residential Permanent,Fairview House,1019.48, 01-Oct-2013
746,Revenue,CCHD,Bed Purchasing - Southmead Hospital,Residential Permanent,Fairview House,1019.48, 29-Oct-2013
747,Revenue,CCHD,Bed Purchasing - Elderly - South,Residential Permanent,Fairview House,1493.11, 01-Oct-2013
748,Revenue,CCHD,Bed Purchasing - Elderly - South,Residential Permanent,Fairview House,1130.69, 01-Oct-2013
749,Revenue,CCHD,Bed Purchasing - Elderly - South,Residential Permanent,Fairview House,721.84, 29-Oct-2013
750,Revenue,CCHD,Bed Purchasing - Elderly - South,Residential Permanent,Fairview House,1188.36, 01-Oct-2013
751,Revenue,CCHD,Bed Purchasing - Elderly - South,Residential Permanent,Fairview House,1188.36, 29-Oct-2013
752,Revenue,CCHD,Bed Purchasing - Southmead Hospital,Residential Permanent,Fairview House,1116.24, 01-Oct-2013
753,Revenue,CCHD,Bed Purchasing - Southmead Hospital,Residential Permanent,Fairview House,1116.24, 29-Oct-2013
754,Revenue,CCHD,Bed Purchasing - Elderly MH - South,Residential Permanent,Fairview House,1109.84, 01-Oct-2013
755,Revenue,CCHD,Bed Purchasing - Elderly MH - South,Residential Permanent,Fairview House,1109.84, 29-Oct-2013
756,Revenue,CCHD,Bed Purchasing - Frenchay Hospital,Residential Permanent,Fairview House,1246, 01-Oct-2013
757,Revenue,CCHD,Bed Purchasing - Frenchay Hospital,Residential Permanent,Fairview House,1246, 29-Oct-2013
758,Revenue,CCHD,Bed Purchasing - Southmead Hospital,Residential Permanent,Fairview House,1062.04, 01-Oct-2013
759,Revenue,CCHD,Bed Purchasing - Southmead Hospital,Residential Permanent,Fairview House,1062.04, 29-Oct-2013
760,Revenue,CCHD,Bed Purchasing - Elderly - South,Residential Permanent,Fairview House,1246, 01-Oct-2013
761,Revenue,CCHD,Bed Purchasing - Elderly - South,Residential Permanent,Fairview House,1246, 29-Oct-2013
762,Revenue,CCHD,Bed Purchasing - Elderly MH - South,Residential Permanent,Fairview House,1036.08, 01-Oct-2013
763,Revenue,CCHD,Bed Purchasing - Elderly MH - South,Residential Permanent,Fairview House,1036.08, 29-Oct-2013
764,Revenue,CCHD,Bed Purchasing - Elderly MH - South,Residential Permanent,Fairview House,1206.32, 01-Oct-2013
765,Revenue,CCHD,Bed Purchasing - Elderly MH - South,Residential Permanent,Fairview House,1206.32, 29-Oct-2013
766,Revenue,CCHD,Bed Purchasing - Elderly - South,Residential Permanent,Faith House,1712.86, 01-Oct-2013
767,Revenue,CCHD,Bed Purchasing - Frenchay Hospital,Residential Permanent,Faith House,3575.52, 01-Oct-2013
768,Revenue,CCHD,Bed Purchasing - Frenchay Hospital,Residential Permanent,Faith House,1206.2, 01-Oct-2013
769,Revenue,CCHD,Bed Purchasing - Frenchay Hospital,Residential Permanent,Faith House,1206.2, 29-Oct-2013
770,Revenue,CCHD,Bed Purchasing - Frenchay Hospital,Residential Permanent,Faith House,1310.92, 01-Oct-2013
771,Revenue,CCHD,Bed Purchasing - Elderly - North,Residential Permanent,Faith House,2304.65, 29-Oct-2013
772,Revenue,CCHD,Bed purchasing - Under 65s PWLD - North,Residential Permanent,Fernbank,7593.16, 01-Oct-2013
773,Revenue,CCHD,Bed purchasing - Under 65s PWLD - North,Residential Permanent,Fernbank,7593.16, 29-Oct-2013
774,Revenue,CCHD,Home Care - Elderly - South,Other Small Contracts,Firstpoint Homecare Ltd,1286.4, 01-Oct-2013
775,Revenue,CCHD,Home Care - Elderly - North,Other Small Contracts,Firstpoint Homecare Ltd,1359.36, 01-Oct-2013
776,Revenue,CCHD,Day Care - South,Private & Voluntary Day Care,Firstpoint Homecare Ltd,245.76, 01-Oct-2013
777,Revenue,CCHD,Day Care - North,Private & Voluntary Day Care,Firstpoint Homecare Ltd,245.76, 01-Oct-2013
778,Revenue,CCHD,Under 65s -MH  Home Care Purch,Other Small Contracts,Firstpoint Homecare Ltd,46.08, 01-Oct-2013
779,Revenue,CCHD,Elderly MH Day Care North,Private & Voluntary Day Care,Firstpoint Homecare Ltd,92.16, 01-Oct-2013
780,Revenue,CCHD,Home Care - Elderly - South,Other Small Contracts,Firstpoint Homecare Ltd,1221.12, 01-Oct-2013
781,Revenue,CCHD,Home Care - Elderly - North,Other Small Contracts,Firstpoint Homecare Ltd,1370.88, 01-Oct-2013
782,Revenue,CCHD,Day Care - South,Private & Voluntary Day Care,Firstpoint Homecare Ltd,276.48, 01-Oct-2013
783,Revenue,CCHD,Day Care - North,Private & Voluntary Day Care,Firstpoint Homecare Ltd,245.76, 01-Oct-2013
784,Revenue,CCHD,Under 65s -MH  Home Care Purch,Other Small Contracts,Firstpoint Homecare Ltd,46.08, 01-Oct-2013
785,Revenue,CCHD,Younger MH non-res purchasing,Private & Voluntary Day Care,Firstpoint Homecare Ltd,69.12, 01-Oct-2013
786,Revenue,CCHD,Home care - Elderly MH - North,Other Small Contracts,Firstpoint Homecare Ltd,46.08, 01-Oct-2013
787,Revenue,CCHD,Elderly MH Day Care North,Private & Voluntary Day Care,Firstpoint Homecare Ltd,92.16, 01-Oct-2013
788,Revenue,CCHD,Home Care - Elderly - South,Other Small Contracts,Firstpoint Homecare Ltd,1297.92, 01-Oct-2013
789,Revenue,CCHD,Home Care - Elderly - North,Other Small Contracts,Firstpoint Homecare Ltd,1190.4, 01-Oct-2013
790,Revenue,CCHD,Day Care - South,Private & Voluntary Day Care,Firstpoint Homecare Ltd,115.2, 01-Oct-2013
791,Revenue,CCHD,Day Care - North,Private & Voluntary Day Care,Firstpoint Homecare Ltd,245.76, 01-Oct-2013
792,Revenue,CCHD,Under 65s -MH  Home Care Purch,Other Small Contracts,Firstpoint Homecare Ltd,46.08, 01-Oct-2013
793,Revenue,CCHD,Home Care - Elderly - South,Other Small Contracts,Firstpoint Homecare Ltd,1217.28, 01-Oct-2013
794,Revenue,CCHD,Home Care - Elderly - North,Other Small Contracts,Firstpoint Homecare Ltd,1029.12, 01-Oct-2013
795,Revenue,CCHD,Day Care - South,Private & Voluntary Day Care,Firstpoint Homecare Ltd,276.48, 01-Oct-2013
796,Revenue,CCHD,Day Care - North,Private & Voluntary Day Care,Firstpoint Homecare Ltd,249.6, 01-Oct-2013
797,Revenue,CCHD,Under 65s -MH  Home Care Purch,Other Small Contracts,Firstpoint Homecare Ltd,46.08, 01-Oct-2013
798,Revenue,CCHD,Home care - Elderly MH - North,Other Small Contracts,Firstpoint Homecare Ltd,46.08, 01-Oct-2013
799,Revenue,CCHD,Elderly MH Day Care North,Private & Voluntary Day Care,Firstpoint Homecare Ltd,92.16, 01-Oct-2013
800,Revenue,CCHD,Home Care - Elderly - South,Other Small Contracts,Firstpoint Homecare Ltd,1355.52, 01-Oct-2013
801,Revenue,CCHD,Home Care - Elderly - North,Other Small Contracts,Firstpoint Homecare Ltd,994.56, 01-Oct-2013
802,Revenue,CCHD,Day Care - South,Private & Voluntary Day Care,Firstpoint Homecare Ltd,215.04, 01-Oct-2013
803,Revenue,CCHD,Day Care - North,Private & Voluntary Day Care,Firstpoint Homecare Ltd,245.76, 01-Oct-2013
804,Revenue,CCHD,Under 65s -MH  Home Care Purch,Other Small Contracts,Firstpoint Homecare Ltd,46.08, 01-Oct-2013
805,Revenue,CCHD,Home care - Elderly MH - North,Other Small Contracts,Firstpoint Homecare Ltd,49.92, 01-Oct-2013
806,Revenue,CCHD,Elderly MH Day Care North,Private & Voluntary Day Care,Firstpoint Homecare Ltd,96, 01-Oct-2013
807,Revenue,CCHD,Home Care - Elderly - South,Other Small Contracts,Firstpoint Homecare Ltd,1144.32, 01-Oct-2013
808,Revenue,CCHD,Home Care - Elderly - North,Other Small Contracts,Firstpoint Homecare Ltd,1393.92, 01-Oct-2013
809,Revenue,CCHD,Day Care - South,Private & Voluntary Day Care,Firstpoint Homecare Ltd,199.68, 01-Oct-2013
810,Revenue,CCHD,Day Care - North,Private & Voluntary Day Care,Firstpoint Homecare Ltd,245.76, 01-Oct-2013
811,Revenue,CCHD,Under 65s -MH  Home Care Purch,Other Small Contracts,Firstpoint Homecare Ltd,46.08, 01-Oct-2013
812,Revenue,CCHD,Home care - Elderly MH - North,Other Small Contracts,Firstpoint Homecare Ltd,46.08, 01-Oct-2013
813,Revenue,CCHD,Elderly MH Day Care North,Private & Voluntary Day Care,Firstpoint Homecare Ltd,92.16, 01-Oct-2013
814,Revenue,CCHD,Home Care - Elderly - South,Other Small Contracts,Firstpoint Homecare Ltd,1228.8, 23-Oct-2013
815,Revenue,CCHD,Home Care - Elderly - North,Other Small Contracts,Firstpoint Homecare Ltd,1409.28, 23-Oct-2013
816,Revenue,CCHD,Day Care - South,Private & Voluntary Day Care,Firstpoint Homecare Ltd,288, 23-Oct-2013
817,Revenue,CCHD,Day Care - North,Private & Voluntary Day Care,Firstpoint Homecare Ltd,249.6, 23-Oct-2013
818,Revenue,CCHD,Under 65s -MH  Home Care Purch,Other Small Contracts,Firstpoint Homecare Ltd,46.08, 23-Oct-2013
819,Revenue,CCHD,Home care - Elderly MH - North,Other Small Contracts,Firstpoint Homecare Ltd,46.08, 23-Oct-2013
820,Revenue,CCHD,Elderly MH Day Care North,Private & Voluntary Day Care,Firstpoint Homecare Ltd,99.84, 23-Oct-2013
821,Revenue,CCHD,Home Care - Elderly - South,Other Small Contracts,Firstpoint Homecare Ltd,1079.04, 29-Oct-2013
822,Revenue,CCHD,Home Care - Elderly - North,Other Small Contracts,Firstpoint Homecare Ltd,1255.68, 29-Oct-2013
823,Revenue,CCHD,Day Care - South,Private & Voluntary Day Care,Firstpoint Homecare Ltd,249.6, 29-Oct-2013
824,Revenue,CCHD,Day Care - North,Private & Voluntary Day Care,Firstpoint Homecare Ltd,245.76, 29-Oct-2013
825,Revenue,CCHD,Under 65s -MH  Home Care Purch,Other Small Contracts,Firstpoint Homecare Ltd,42.24, 29-Oct-2013
826,Revenue,CCHD,Younger MH non-res purchasing,Private & Voluntary Day Care,Firstpoint Homecare Ltd,46.08, 29-Oct-2013
827,Revenue,CCHD,Elderly MH Day Care North,Private & Voluntary Day Care,Firstpoint Homecare Ltd,92.16, 29-Oct-2013
828,Revenue,CCHD,Home Care - Elderly - South,Other Small Contracts,Firstpoint Homecare Ltd,1082.88, 23-Oct-2013
829,Revenue,CCHD,Home Care - Elderly - North,Other Small Contracts,Firstpoint Homecare Ltd,1436.16, 23-Oct-2013
830,Revenue,CCHD,Day Care - South,Private & Voluntary Day Care,Firstpoint Homecare Ltd,222.72, 23-Oct-2013
831,Revenue,CCHD,Day Care - North,Private & Voluntary Day Care,Firstpoint Homecare Ltd,249.6, 23-Oct-2013
832,Revenue,CCHD,Under 65s -MH  Home Care Purch,Other Small Contracts,Firstpoint Homecare Ltd,46.08, 23-Oct-2013
833,Revenue,CCHD,Home care - Elderly MH - North,Other Small Contracts,Firstpoint Homecare Ltd,46.08, 23-Oct-2013
834,Revenue,CCHD,Elderly MH Day Care North,Private & Voluntary Day Care,Firstpoint Homecare Ltd,92.16, 23-Oct-2013
835,Revenue,CCHD,Home Care - Elderly - South,Other Small Contracts,Firstpoint Homecare Ltd,1121.28, 29-Oct-2013
836,Revenue,CCHD,Home Care - Elderly - North,Other Small Contracts,Firstpoint Homecare Ltd,1367.04, 29-Oct-2013
837,Revenue,CCHD,Day Care - South,Private & Voluntary Day Care,Firstpoint Homecare Ltd,218.88, 29-Oct-2013
838,Revenue,CCHD,Day Care - North,Private & Voluntary Day Care,Firstpoint Homecare Ltd,138.24, 29-Oct-2013
839,Revenue,CCHD,Under 65s -MH  Home Care Purch,Other Small Contracts,Firstpoint Homecare Ltd,46.08, 29-Oct-2013
840,Revenue,CCHD,Home care - Elderly MH - North,Other Small Contracts,Firstpoint Homecare Ltd,46.08, 29-Oct-2013
841,Revenue,CCHD,Elderly MH Day Care North,Private & Voluntary Day Care,Firstpoint Homecare Ltd,92.16, 29-Oct-2013
842,Revenue,CCHD,Training - Adult Services,Training Expenses,Focal Point UK,452.6, 21-Oct-2013
843,Revenue,CCHD,Bed Purchasing - Elderly - South,Nursing Permanent,Four Seasons Health Care,1177.16, 01-Oct-2013
844,Revenue,CCHD,Bed Purchasing - Elderly - South,Nursing Permanent,Four Seasons Health Care,1177.16, 29-Oct-2013
845,Revenue,CCHD,Bed Purchasing - Elderly S117- North,Residential Permanent,Four Seasons Health Care,4060.72, 01-Oct-2013
846,Revenue,CCHD,Bed Purchasing - Elderly S117- North,Residential Permanent,Four Seasons Health Care,2030.36, 29-Oct-2013
847,Revenue,CCHD,Bed Purchasing - Frenchay Hospital,Residential Permanent,Four Seasons Health Care,3053.68, 01-Oct-2013
848,Revenue,CCHD,Bed Purchasing - Frenchay Hospital,Residential Permanent,Four Seasons Health Care,1526.84, 29-Oct-2013
849,Revenue,CCHD,Home Care - Elderly - South,Other Small Contracts,Freedom Social Care Recruitment,1436.4, 31-Oct-2013
850,Revenue,CCHD,Home Care - Elderly - North,Other Small Contracts,Freedom Social Care Recruitment,2901.3, 31-Oct-2013
851,Revenue,CCHD,Home care - Elderly MH - North,Other Small Contracts,Freedom Social Care Recruitment,15.96, 31-Oct-2013
852,Revenue,CCHD,Home Care - Elderly - South,Other Small Contracts,Freedom Social Care Recruitment,1488.27, 10-Oct-2013
853,Revenue,CCHD,Home Care - Elderly - North,Other Small Contracts,Freedom Social Care Recruitment,2817.51, 10-Oct-2013
854,Revenue,CCHD,Day Care - North,Private & Voluntary Day Care,Freedom Social Care Recruitment,23.94, 10-Oct-2013
855,Revenue,CCHD,Home care - Elderly MH - North,Other Small Contracts,Freedom Social Care Recruitment,15.96, 10-Oct-2013
856,Revenue,CCHD,Home Care - Elderly - South,Other Small Contracts,Freedom Social Care Recruitment,1316.7, 22-Oct-2013
857,Revenue,CCHD,Home Care - Elderly - North,Other Small Contracts,Freedom Social Care Recruitment,2933.22, 22-Oct-2013
858,Revenue,CCHD,Day Care - North,Private & Voluntary Day Care,Freedom Social Care Recruitment,15.96, 22-Oct-2013
859,Revenue,CCHD,Home care - Elderly MH - North,Other Small Contracts,Freedom Social Care Recruitment,15.96, 22-Oct-2013
860,Revenue,CCHD,Home Care - Elderly - South,Other Small Contracts,Freedom Social Care Recruitment,1472.31, 24-Oct-2013
861,Revenue,CCHD,Home Care - Elderly - North,Other Small Contracts,Freedom Social Care Recruitment,3064.89, 24-Oct-2013
862,Revenue,CCHD,Day Care - North,Private & Voluntary Day Care,Freedom Social Care Recruitment,15.96, 24-Oct-2013
863,Revenue,CCHD,Home care - Elderly MH - North,Other Small Contracts,Freedom Social Care Recruitment,15.96, 24-Oct-2013
864,Revenue,CCHD,Home Care - Elderly - South,Other Small Contracts,Freedom Social Care Recruitment,1392.51, 14-Oct-2013
865,Revenue,CCHD,Home Care - Elderly - North,Other Small Contracts,Freedom Social Care Recruitment,2993.07, 14-Oct-2013
866,Revenue,CCHD,Home care - Elderly MH - North,Other Small Contracts,Freedom Social Care Recruitment,15.96, 14-Oct-2013
867,Revenue,CCHD,Home Care - Elderly - South,Other Small Contracts,Freedom Social Care Recruitment,1448.37, 14-Oct-2013
868,Revenue,CCHD,Home Care - Elderly - North,Other Small Contracts,Freedom Social Care Recruitment,2869.38, 14-Oct-2013
869,Revenue,CCHD,Day Care - North,Private & Voluntary Day Care,Freedom Social Care Recruitment,23.94, 14-Oct-2013
870,Revenue,CCHD,Home care - Elderly MH - North,Other Small Contracts,Freedom Social Care Recruitment,15.96, 14-Oct-2013
871,Revenue,CCHD,Home Care - Elderly - South,Other Small Contracts,Freedom Social Care Recruitment,1396.5, 22-Oct-2013
872,Revenue,CCHD,Home Care - Elderly - North,Other Small Contracts,Freedom Social Care Recruitment,2951.7, 22-Oct-2013
873,Revenue,CCHD,Home care - Elderly MH - North,Other Small Contracts,Freedom Social Care Recruitment,15.96, 22-Oct-2013
874,Revenue,CCHD,Home Care - Elderly - South,Other Small Contracts,Freedom Social Care Recruitment,1352.6, 29-Oct-2013
875,Revenue,CCHD,Home Care - Elderly - North,Other Small Contracts,Freedom Social Care Recruitment,3104.45, 29-Oct-2013
876,Revenue,CCHD,Home care - Elderly MH - North,Other Small Contracts,Freedom Social Care Recruitment,15.96, 29-Oct-2013
877,Revenue,CCHD,Freeways,Residential Permanent,Freeways Trust Limited,46214.23, 30-Oct-2013
878,Revenue,CCHD,Purchase of Non-Res Care - North,Private & Voluntary Day Care,Freeways Trust Limited,563.68, 31-Oct-2013
879,Revenue,CCHD,Supported Living - South,Private & Voluntary Home Care,Freeways Trust Limited,1321.32, 15-Oct-2013
880,Revenue,CCHD,Purchase of Non-Res Care - North,Private & Voluntary Day Care,Freeways Trust Limited,646.38, 15-Oct-2013
881,Revenue,CCHD,Supported Living - South,Private & Voluntary Home Care,Freeways Trust Limited,1044.89, 21-Oct-2013
882,Revenue,CCHD,Bed purchasing - Under 65s PWLD - North,Residential Permanent,Freeways Trust Ltd,2817.88, 01-Oct-2013
883,Revenue,CCHD,Bed purchasing - Under 65s PWLD - North,Residential Permanent,Freeways Trust Ltd,2817.88, 29-Oct-2013
884,Revenue,CCHD,Bed purchasing - S28A Under 65 - South,Residential Permanent,Freeways Trust Ltd,2899.4, 01-Oct-2013
885,Revenue,CCHD,Bed purchasing - S28A Under 65 - South,Residential Permanent,Freeways Trust Ltd,2796.22, 29-Oct-2013
886,Revenue,CCHD,Bed purchasing - Under 65s PWLD - North,Residential Permanent,Freeways Trust Ltd,2682.36, 01-Oct-2013
887,Revenue,CCHD,Bed purchasing - Under 65s PWLD - North,Residential Permanent,Freeways Trust Ltd,2682.36, 29-Oct-2013
888,Revenue,CCHD,Bed purchasing - Under 65s PWLD - North,Residential Permanent,Freeways Trust Ltd,2253.16, 01-Oct-2013
889,Revenue,CCHD,Bed purchasing - Under 65s PWLD - North,Residential Permanent,Freeways Trust Ltd,2253.16, 29-Oct-2013
890,Revenue,CCHD,Bed purchasing - Under 65s PWLD - North,Residential Permanent,Freeways Trust Ltd,2691.08, 01-Oct-2013
891,Revenue,CCHD,Bed purchasing - Under 65s PWLD - North,Residential Permanent,Freeways Trust Ltd,2691.08, 29-Oct-2013
892,Revenue,CCHD,Bed Purchasing - Under 65s PWLD - South,Residential Permanent,Freeways Trust Ltd,3289.6, 01-Oct-2013
893,Revenue,CCHD,Bed Purchasing - Under 65s PWLD - South,Residential Permanent,Freeways Trust Ltd,3289.6, 29-Oct-2013
894,Revenue,CCHD,Bed purchasing - Elderly PWLD - North,Residential Permanent,Freeways Trust Ltd,2235.92, 01-Oct-2013
895,Revenue,CCHD,Bed purchasing - Elderly PWLD - North,Residential Permanent,Freeways Trust Ltd,2235.92, 29-Oct-2013
896,Revenue,CCHD,Bed Purchasing - Under 65s PWLD - South,Residential Permanent,Freeways Trust Ltd,2382.36, 01-Oct-2013
897,Revenue,CCHD,Bed Purchasing - Under 65s PWLD - South,Residential Permanent,Freeways Trust Ltd,2382.36, 29-Oct-2013
898,Revenue,CCHD,Bed purchasing - Under 65s PWLD - North,Residential Permanent,Freeways Trust Ltd,2691.08, 01-Oct-2013
899,Revenue,CCHD,Bed purchasing - Under 65s PWLD - North,Residential Permanent,Freeways Trust Ltd,2691.08, 29-Oct-2013
900,Revenue,CCHD,Bed purchasing - Elderly PWLD - North,Residential Permanent,Freeways Trust Ltd,2511.56, 01-Oct-2013
901,Revenue,CCHD,Bed purchasing - Elderly PWLD - North,Residential Permanent,Freeways Trust Ltd,2962.1, 29-Oct-2013
902,Revenue,CCHD,Section 117 Placements MH Younger,Residential Permanent,Freeways Trust Ltd,3324, 01-Oct-2013
903,Revenue,CCHD,Section 117 Placements MH Younger,Residential Permanent,Freeways Trust Ltd,3324, 29-Oct-2013
904,Revenue,CCHD,Bed Purchasing - Under 65s PWLD - South,Residential Permanent,Freeways Trust Ltd,6117.96, 01-Oct-2013
905,Revenue,CCHD,Bed Purchasing - Under 65s PWLD - South,Residential Permanent,Freeways Trust Ltd,6117.96, 29-Oct-2013
906,Revenue,CCHD,Bed Purchasing - Frenchay Hospital,Nursing Permanent,Frenchay Park Nursing Home,1254.56, 01-Oct-2013
907,Revenue,CCHD,Bed Purchasing - Frenchay Hospital,Nursing Permanent,Frenchay Park Nursing Home,1254.56, 29-Oct-2013
908,Revenue,CCHD,Bed Purchasing - Frenchay Hospital,Nursing Permanent,Frenchay Park Nursing Home,1004.36, 01-Oct-2013
909,Revenue,CCHD,Bed Purchasing - Frenchay Hospital,Nursing Permanent,Frenchay Park Nursing Home,1004.36, 29-Oct-2013
910,Revenue,CCHD,Bed Purchasing - Elderly - South,Nursing Permanent,Fshc  1St Floor,891.56, 01-Oct-2013
911,Revenue,CCHD,Bed Purchasing - Elderly - South,Nursing Permanent,Fshc  1St Floor,891.56, 29-Oct-2013
912,Revenue,CCHD,Bed Purchasing - Elderly - South,Nursing Permanent,Fshc  1St Floor,612.56, 01-Oct-2013
913,Revenue,CCHD,Bed Purchasing - Frenchay Hospital,Residential Permanent,Fshc  1St Floor,893.96, 01-Oct-2013
914,Revenue,CCHD,Bed Purchasing - Frenchay Hospital,Residential Permanent,Fshc  1St Floor,893.96, 29-Oct-2013
915,Revenue,CCHD,Bed Purchasing - Southmead Hospital,Nursing Permanent,Fshc  1St Floor,1370, 01-Oct-2013
916,Revenue,CCHD,Bed Purchasing - Southmead Hospital,Nursing Permanent,Fshc  1St Floor,1370, 29-Oct-2013
917,Revenue,CCHD,Bed Purchasing - Southmead Hospital,Nursing Permanent,Fshc  1St Floor,782.16, 01-Oct-2013
918,Revenue,CCHD,Bed Purchasing - Southmead Hospital,Nursing Permanent,Fshc  1St Floor,782.16, 29-Oct-2013
919,Revenue,CCHD,Bed Purchasing - Frenchay Hospital,Nursing Permanent,Fshc  1St Floor,1370, 01-Oct-2013
920,Revenue,CCHD,Bed Purchasing - Frenchay Hospital,Nursing Permanent,Fshc  1St Floor,1370, 29-Oct-2013
921,Revenue,CCHD,Bed Purchasing - Southmead Hospital,Nursing Permanent,Fshc  1St Floor,1370, 01-Oct-2013
922,Revenue,CCHD,Bed Purchasing - Southmead Hospital,Nursing Permanent,Fshc  1St Floor,1370, 29-Oct-2013
923,Revenue,CCHD,Bed Purchasing - Elderly - South,Nursing Permanent,Fshc  1St Floor,4097.06, 29-Oct-2013
924,Revenue,CCHD,Bed Purchasing - Elderly - South,Nursing Permanent,Fshc  1St Floor,1048.64, 01-Oct-2013
925,Revenue,CCHD,Bed Purchasing - Elderly - South,Nursing Permanent,Fshc  1St Floor,1048.64, 29-Oct-2013
926,Revenue,CCHD,Bed Purchasing - Frenchay Hospital,Nursing Permanent,Fshc  1St Floor,530.29, 29-Oct-2013
927,Revenue,CCHD,Bed Purchasing - Southmead Hospital,Nursing Permanent,Fshc  1St Floor,1370, 01-Oct-2013
928,Revenue,CCHD,Bed Purchasing - Southmead Hospital,Nursing Permanent,Fshc  1St Floor,1370, 29-Oct-2013
929,Revenue,CCHD,Bed Purchasing - Elderly - South,Nursing Permanent,Fshc  1St Floor,1206.72, 01-Oct-2013
930,Revenue,CCHD,Bed Purchasing - Elderly - South,Nursing Permanent,Fshc  1St Floor,1206.72, 29-Oct-2013
931,Revenue,CCHD,Bed Purchasing - Elderly - South,Nursing Permanent,Fshc  1St Floor,1301.36, 01-Oct-2013
932,Revenue,CCHD,Bed Purchasing - Elderly - South,Nursing Permanent,Fshc  1St Floor,1301.36, 29-Oct-2013
933,Revenue,CCHD,Bed Purchasing - Frenchay Hospital,Residential Permanent,Fshc  1St Floor,3711.43, 29-Oct-2013
934,Revenue,CCHD,Bed Purchasing - Frenchay Hospital,Nursing Permanent,Fshc  1St Floor,1308.96, 01-Oct-2013
935,Revenue,CCHD,Bed Purchasing - Frenchay Hospital,Nursing Permanent,Fshc  1St Floor,1308.96, 29-Oct-2013
936,Revenue,CCHD,Bed Purchasing - Southmead Hospital,Nursing Permanent,Fshc  1St Floor,1370, 01-Oct-2013
937,Revenue,CCHD,Bed Purchasing - Southmead Hospital,Nursing Permanent,Fshc  1St Floor,1370, 29-Oct-2013
938,Revenue,CCHD,Bed Purchasing - Southmead Hospital,Residential Permanent,Fshc  1St Floor,533.6, 01-Oct-2013
939,Revenue,CCHD,Bed Purchasing - Southmead Hospital,Residential Permanent,Fshc  1St Floor,533.6, 29-Oct-2013
940,Revenue,CCHD,Bed Purchasing - Southmead Hospital,Nursing Permanent,Fshc  1St Floor,1102.08, 01-Oct-2013
941,Revenue,CCHD,Bed Purchasing - Southmead Hospital,Nursing Permanent,Fshc  1St Floor,1102.08, 29-Oct-2013
942,Revenue,CCHD,Bed Purchasing - Elderly - North,Nursing Permanent,Fshc  1St Floor,1370, 01-Oct-2013
943,Revenue,CCHD,Bed Purchasing - Elderly - North,Nursing Permanent,Fshc  1St Floor,1370, 29-Oct-2013
944,Revenue,CCHD,Bed Purchasing - Elderly - North,Nursing Permanent,Fshc  1St Floor,1856, 01-Oct-2013
945,Revenue,CCHD,Bed Purchasing - Elderly - North,Nursing Permanent,Fshc  1St Floor,1856, 29-Oct-2013
946,Revenue,CCHD,Bed Purchasing - Frenchay Hospital,Nursing Permanent,Fshc  1St Floor,1180.6, 01-Oct-2013
947,Revenue,CCHD,Bed Purchasing - Frenchay Hospital,Nursing Permanent,Fshc  1St Floor,1180.6, 29-Oct-2013
948,Revenue,CCHD,Bed Purchasing - Elderly - South,Nursing Permanent,Fshc  1St Floor,1370, 01-Oct-2013
949,Revenue,CCHD,Bed Purchasing - Elderly - South,Nursing Permanent,Fshc  1St Floor,1370, 29-Oct-2013
950,Revenue,CCHD,Bed Purchasing - Elderly - South,Nursing Permanent,Fshc  1St Floor,1316.36, 01-Oct-2013
951,Revenue,CCHD,Bed Purchasing - Elderly - South,Nursing Permanent,Fshc  1St Floor,1316.36, 29-Oct-2013
952,Revenue,CCHD,Bed Purchasing - Elderly MH - South,Nursing Permanent,Fshc  1St Floor,1370, 01-Oct-2013
953,Revenue,CCHD,Bed Purchasing - Elderly MH - South,Nursing Permanent,Fshc  1St Floor,1370, 29-Oct-2013
954,Revenue,CCHD,Bed Purchasing - Elderly - South,Nursing Permanent,Fshc  1St Floor,1082.04, 01-Oct-2013
955,Revenue,CCHD,Bed Purchasing - Elderly - South,Nursing Permanent,Fshc  1St Floor,1082.04, 29-Oct-2013
956,Revenue,CCHD,Bed Purchasing - Elderly - South,Nursing Permanent,Fshc  1St Floor,1371.6, 01-Oct-2013
957,Revenue,CCHD,Bed Purchasing - Elderly - South,Nursing Permanent,Fshc  1St Floor,1371.6, 29-Oct-2013
958,Revenue,CCHD,Bed Purchasing - Frenchay Hospital,Nursing Permanent,Fshc  1St Floor,928, 29-Oct-2013
959,Revenue,CCHD,Bed Purchasing - Frenchay Hospital,Nursing Permanent,Fshc  1St Floor,1078.4, 01-Oct-2013
960,Revenue,CCHD,Bed Purchasing - Frenchay Hospital,Nursing Permanent,Fshc  1St Floor,1078.4, 29-Oct-2013
961,Revenue,CCHD,Bed Purchasing - Elderly MH - South,Residential Permanent,Fshc  1St Floor,1090.48, 01-Oct-2013
962,Revenue,CCHD,Bed Purchasing - Elderly MH - South,Residential Permanent,Fshc  1St Floor,1090.48, 29-Oct-2013
963,Revenue,CCHD,Bed Purchasing - Southmead Hospital,Residential Permanent,Fshc  1St Floor,602.06, 29-Oct-2013
964,Revenue,CCHD,Bed Purchasing - Elderly - South,Nursing Permanent,Fshc  1St Floor,765.08, 01-Oct-2013
965,Revenue,CCHD,Bed Purchasing - Elderly - South,Nursing Permanent,Fshc  1St Floor,765.08, 29-Oct-2013
966,Revenue,CCHD,Bed Purchasing - Elderly - South,Nursing Permanent,Fshc  1St Floor,1334, 01-Oct-2013
967,Revenue,CCHD,Bed Purchasing - Elderly - South,Nursing Permanent,Fshc  1St Floor,1334, 29-Oct-2013
968,Revenue,CCHD,Bed Purchasing - Southmead Hospital,Nursing Permanent,Fshc  1St Floor,1370, 01-Oct-2013
969,Revenue,CCHD,Bed Purchasing - Southmead Hospital,Nursing Permanent,Fshc  1St Floor,1370, 29-Oct-2013
970,Revenue,CCHD,Bed Purchasing - Elderly MH - South,Nursing Permanent,Fshc  1St Floor,1216.84, 01-Oct-2013
971,Revenue,CCHD,Bed Purchasing - Elderly MH - South,Nursing Permanent,Fshc  1St Floor,1216.84, 29-Oct-2013
972,Revenue,CCHD,Bed Purchasing - Southmead Hospital,Nursing Permanent,Fshc  1St Floor,1362.4, 01-Oct-2013
973,Revenue,CCHD,Bed Purchasing - Southmead Hospital,Nursing Permanent,Fshc  1St Floor,1362.4, 29-Oct-2013
974,Revenue,CCHD,Bed purchasing - Elderly MH - North,Nursing Permanent,Fshc  1St Floor,786.72, 01-Oct-2013
975,Revenue,CCHD,Bed purchasing - Elderly MH - North,Nursing Permanent,Fshc  1St Floor,786.72, 29-Oct-2013
976,Revenue,CCHD,Bed Purchasing - Elderly - South,Nursing Permanent,Fshc  1St Floor,992.4, 01-Oct-2013
977,Revenue,CCHD,Bed Purchasing - Elderly - South,Nursing Permanent,Fshc  1St Floor,992.4, 29-Oct-2013
978,Revenue,CCHD,Bed Purchasing - Southmead Hospital,Nursing Permanent,Fshc  1St Floor,1546, 29-Oct-2013
979,Revenue,CCHD,Bed Purchasing - Southmead Hospital,Nursing Permanent,Fshc  1St Floor,938.64, 29-Oct-2013
980,Revenue,CCHD,Bed Purchasing - Southmead Hospital,Nursing Permanent,Fshc  1St Floor,1549.56, 01-Oct-2013
981,Revenue,CCHD,Bed Purchasing - Southmead Hospital,Nursing Permanent,Fshc  1St Floor,1549.56, 29-Oct-2013
982,Revenue,CCHD,Bed Purchasing - Elderly - North,Nursing Permanent,Fshc  1St Floor,974.36, 01-Oct-2013
983,Revenue,CCHD,Bed Purchasing - Elderly - North,Nursing Permanent,Fshc  1St Floor,974.36, 29-Oct-2013
984,Revenue,CCHD,Bed Purchasing - Frenchay Hospital,Residential Permanent,Fshc  1St Floor,735.36, 01-Oct-2013
985,Revenue,CCHD,Bed Purchasing - Frenchay Hospital,Residential Permanent,Fshc  1St Floor,735.36, 29-Oct-2013
986,Revenue,CCHD,Bed Purchasing - Elderly - North,Nursing Permanent,Fshc  1St Floor,1284.08, 01-Oct-2013
987,Revenue,CCHD,Bed Purchasing - Elderly - North,Nursing Permanent,Fshc  1St Floor,1284.08, 29-Oct-2013
988,Revenue,CCHD,Bed Purchasing - Elderly - North,Nursing Permanent,Fshc  1St Floor,1339, 01-Oct-2013
989,Revenue,CCHD,Bed Purchasing - Elderly - North,Nursing Permanent,Fshc  1St Floor,1339, 29-Oct-2013
990,Revenue,CCHD,Bed Purchasing - Southmead Hospital,Nursing Permanent,Fshc  1St Floor,1215.4, 01-Oct-2013
991,Revenue,CCHD,Bed Purchasing - Southmead Hospital,Nursing Permanent,Fshc  1St Floor,1215.4, 29-Oct-2013
992,Revenue,CCHD,Bed Purchasing - Elderly - North,Residential Permanent,Fshc  1St Floor,1347.68, 01-Oct-2013
993,Revenue,CCHD,Bed Purchasing - Elderly - North,Residential Permanent,Fshc  1St Floor,1347.68, 29-Oct-2013
994,Revenue,CCHD,Bed Purchasing - Elderly - North,Residential Permanent,Fshc  1St Floor,1226, 01-Oct-2013
995,Revenue,CCHD,Bed Purchasing - Elderly - North,Residential Permanent,Fshc  1St Floor,1378.12, 29-Oct-2013
996,Revenue,CCHD,Bed Purchasing - Elderly - North,Residential Permanent,Fshc  1St Floor,1311.16, 01-Oct-2013
997,Revenue,CCHD,Bed Purchasing - Elderly - North,Residential Permanent,Fshc  1St Floor,1359.72, 29-Oct-2013
998,Revenue,CCHD,Bed Purchasing - Southmead Hospital,Nursing Permanent,Fshc  1St Floor,4499.43, 01-Oct-2013
999,Revenue,CCHD,Bed Purchasing - Southmead Hospital,Nursing Permanent,Fshc  1St Floor,2032, 29-Oct-2013
1000,Revenue,CCHD,Bed Purchasing - Frenchay Hospital,Nursing Permanent,Fshc  1St Floor,1097.72, 01-Oct-2013
1001,Revenue,CCHD,Bed Purchasing - Frenchay Hospital,Nursing Permanent,Fshc  1St Floor,1097.72, 29-Oct-2013
1002,Revenue,CCHD,Bed Purchasing - Frenchay Hospital,Nursing Permanent,Fshc  1St Floor,1114.96, 01-Oct-2013
1003,Revenue,CCHD,Bed Purchasing - Frenchay Hospital,Nursing Permanent,Fshc  1St Floor,1114.96, 29-Oct-2013
1004,Revenue,CCHD,Bed purchasing - Elderly MH - North,Nursing Permanent,Fshc  1St Floor,1546, 01-Oct-2013
1005,Revenue,CCHD,Bed purchasing - Elderly MH - North,Nursing Permanent,Fshc  1St Floor,1546, 29-Oct-2013
1006,Revenue,CCHD,Bed Purchasing - Southmead Hospital,Nursing Permanent,Fshc  1St Floor,1370, 01-Oct-2013
1007,Revenue,CCHD,Bed Purchasing - Southmead Hospital,Nursing Permanent,Fshc  1St Floor,5940.29, 29-Oct-2013
1008,Revenue,CCHD,Bed Purchasing - Southmead Hospital,Nursing Permanent,Fshc  1St Floor,1269.68, 29-Oct-2013
1009,Revenue,CCHD,South Glos Users in South Glos Homes,Nursing Permanent,Fshc  1St Floor,1395.9, 01-Oct-2013
1010,Revenue,CCHD,Bed Purchasing - Elderly - South,Residential Permanent,Fshc  1St Floor,1117.84, 01-Oct-2013
1011,Revenue,CCHD,Bed Purchasing - Elderly - South,Residential Permanent,Fshc  1St Floor,1117.84, 29-Oct-2013
1012,Revenue,CCHD,Bed Purchasing - Frenchay Hospital,Nursing Permanent,Fshc  1St Floor,1546, 01-Oct-2013
1013,Revenue,CCHD,Bed Purchasing - Frenchay Hospital,Nursing Permanent,Fshc  1St Floor,1546, 29-Oct-2013
1014,Revenue,CCHD,Bed Purchasing - Elderly - North,Nursing Permanent,Fshc  1St Floor,1370, 01-Oct-2013
1015,Revenue,CCHD,Bed Purchasing - Elderly - North,Nursing Permanent,Fshc  1St Floor,1370, 29-Oct-2013
1016,Revenue,CCHD,Bed Purchasing - Southmead Hospital,Nursing Permanent,Fshc  1St Floor,1370, 01-Oct-2013
1017,Revenue,CCHD,Bed Purchasing - Southmead Hospital,Nursing Permanent,Fshc  1St Floor,1370, 29-Oct-2013
1018,Revenue,CCHD,Bed Purchasing - Elderly - North,Nursing Permanent,Fshc  1St Floor,1295.6, 01-Oct-2013
1019,Revenue,CCHD,Bed Purchasing - Elderly - North,Nursing Permanent,Fshc  1St Floor,1295.6, 29-Oct-2013
1020,Revenue,CCHD,Bed purchasing - Elderly MH - North,Nursing Permanent,Fshc  1St Floor,1468.6, 01-Oct-2013
1021,Revenue,CCHD,Bed purchasing - Elderly MH - North,Nursing Permanent,Fshc  1St Floor,1468.6, 29-Oct-2013
1022,Revenue,CCHD,Bed Purchasing - Elderly - North,Nursing Permanent,Fshc  1St Floor,1269.68, 01-Oct-2013
1023,Revenue,CCHD,Bed Purchasing - Elderly - North,Nursing Permanent,Fshc  1St Floor,1269.68, 29-Oct-2013
1024,Revenue,CCHD,Bed Purchasing - Frenchay Hospital,Nursing Permanent,Fshc  1St Floor,1404.8, 01-Oct-2013
1025,Revenue,CCHD,Bed Purchasing - Frenchay Hospital,Nursing Permanent,Fshc  1St Floor,1204.11, 01-Oct-2013
1026,Revenue,CCHD,Bed Purchasing - Frenchay Hospital,Nursing Permanent,Fshc  1St Floor,1404.8, 29-Oct-2013
1027,Revenue,CCHD,Bed Purchasing - Southmead Hospital,Nursing Permanent,Fshc  1St Floor,1364.32, 01-Oct-2013
1028,Revenue,CCHD,Bed Purchasing - Southmead Hospital,Nursing Permanent,Fshc  1St Floor,1364.32, 29-Oct-2013
1029,Revenue,CCHD,Bed Purchasing - Frenchay Hospital,Residential Permanent,Fshc  1St Floor,628.4, 01-Oct-2013
1030,Revenue,CCHD,Bed Purchasing - Frenchay Hospital,Residential Permanent,Fshc  1St Floor,628.4, 29-Oct-2013
1031,Revenue,CCHD,Bed Purchasing - Frenchay Hospital,Nursing Permanent,Fshc  1St Floor,1286.96, 01-Oct-2013
1032,Revenue,CCHD,Bed Purchasing - Frenchay Hospital,Nursing Permanent,Fshc  1St Floor,1286.96, 29-Oct-2013
1033,Revenue,CCHD,Bed Purchasing - Frenchay Hospital,Nursing Permanent,Fshc  1St Floor,1350.84, 01-Oct-2013
1034,Revenue,CCHD,Bed Purchasing - Frenchay Hospital,Nursing Permanent,Fshc  1St Floor,1350.84, 29-Oct-2013
1035,Revenue,CCHD,Bed Purchasing - Elderly - North,Nursing Permanent,Fshc  1St Floor,1041.72, 01-Oct-2013
1036,Revenue,CCHD,Bed Purchasing - Elderly - North,Nursing Permanent,Fshc  1St Floor,1041.72, 29-Oct-2013
1037,Revenue,CCHD,Bed Purchasing - Elderly - North,Nursing Permanent,Fshc  1St Floor,790.76, 01-Oct-2013
1038,Revenue,CCHD,Bed Purchasing - Elderly - North,Nursing Permanent,Fshc  1St Floor,790.76, 29-Oct-2013
1039,Revenue,CCHD,Bed Purchasing - Elderly - North,Residential Permanent,Fshc  1St Floor,680.6, 29-Oct-2013
1040,Revenue,CCHD,Bed Purchasing - Frenchay Hospital,Nursing Permanent,Fshc  1St Floor,1534.44, 01-Oct-2013
1041,Revenue,CCHD,Bed Purchasing - Frenchay Hospital,Nursing Permanent,Fshc  1St Floor,1534.44, 29-Oct-2013
1042,Revenue,CCHD,Bed Purchasing - Elderly - North,Nursing Permanent,Fshc  1St Floor,1510, 01-Oct-2013
1043,Revenue,CCHD,Bed Purchasing - Elderly - North,Nursing Permanent,Fshc  1St Floor,1510, 29-Oct-2013
1044,Revenue,CCHD,Bed Purchasing - Elderly - North,Residential Permanent,Fshc  1St Floor,1365.27, 01-Oct-2013
1045,Revenue,CCHD,Bed Purchasing - Elderly - North,Residential Permanent,Fshc  1St Floor,782.56, 01-Oct-2013
1046,Revenue,CCHD,Bed Purchasing - Elderly - North,Residential Permanent,Fshc  1St Floor,782.56, 29-Oct-2013
1047,Revenue,CCHD,Bed Purchasing - Elderly - North,Nursing Permanent,Fshc  1St Floor,1370, 01-Oct-2013
1048,Revenue,CCHD,Bed Purchasing - Frenchay Hospital,Nursing Permanent,Fshc  1St Floor,1195.8, 01-Oct-2013
1049,Revenue,CCHD,Bed Purchasing - Frenchay Hospital,Nursing Permanent,Fshc  1St Floor,1195.8, 29-Oct-2013
1050,Revenue,CCHD,Bed Purchasing - Southmead Hospital,Nursing Permanent,Fshc  1St Floor,1450.56, 01-Oct-2013
1051,Revenue,CCHD,Bed Purchasing - Southmead Hospital,Nursing Permanent,Fshc  1St Floor,1450.56, 29-Oct-2013
1052,Revenue,CCHD,Bed Purchasing - Southmead Hospital,Nursing Permanent,Fshc  1St Floor,588.96, 01-Oct-2013
1053,Revenue,CCHD,Bed Purchasing - Southmead Hospital,Nursing Permanent,Fshc  1St Floor,1546, 01-Oct-2013
1054,Revenue,CCHD,Bed Purchasing - Southmead Hospital,Nursing Permanent,Fshc  1St Floor,1546, 29-Oct-2013
1055,Revenue,CCHD,Bed Purchasing - Elderly MH - South,Nursing Permanent,Fshc  1St Floor,1327.8, 01-Oct-2013
1056,Revenue,CCHD,Bed Purchasing - Elderly MH - South,Nursing Permanent,Fshc  1St Floor,1327.8, 29-Oct-2013
1057,Revenue,CCHD,Bed Purchasing - Elderly - North,Nursing Permanent,Fshc  1St Floor,8889.5, 01-Oct-2013
1058,Revenue,CCHD,Bed Purchasing - Elderly - North,Nursing Permanent,Fshc  1St Floor,1546, 01-Oct-2013
1059,Revenue,CCHD,Bed Purchasing - Elderly - North,Nursing Permanent,Fshc  1St Floor,1449, 29-Oct-2013
1060,Revenue,CCHD,Bed Purchasing - Elderly - North,Residential Permanent,Fshc  1St Floor,1359.24, 29-Oct-2013
1061,Revenue,CCHD,Bed Purchasing - Elderly - North,Residential Permanent,Fshc  1St Floor,505.4, 01-Oct-2013
1062,Revenue,CCHD,Bed Purchasing - Elderly - North,Residential Permanent,Fshc  1St Floor,505.4, 29-Oct-2013
1063,Revenue,CCHD,Bed purchasing - Elderly MH - North,Residential Permanent,Fshc  1St Floor,1246, 01-Oct-2013
1064,Revenue,CCHD,Bed purchasing - Elderly MH - North,Residential Permanent,Fshc  1St Floor,1246, 29-Oct-2013
1065,Revenue,CCHD,Bed Purchasing - Elderly - North,Nursing Permanent,Fshc  1St Floor,1530.84, 01-Oct-2013
1066,Revenue,CCHD,Bed Purchasing - Elderly - North,Nursing Permanent,Fshc  1St Floor,1530.84, 29-Oct-2013
1067,Revenue,CCHD,Bed purchasing - Elderly S117 - South,Nursing Permanent,Fshc  1St Floor,1856, 01-Oct-2013
1068,Revenue,CCHD,Bed purchasing - Elderly S117 - South,Nursing Permanent,Fshc  1St Floor,1856, 29-Oct-2013
1069,Revenue,CCHD,Bed purchasing - Elderly MH - North,Residential Permanent,Fshc  1St Floor,1255.2, 01-Oct-2013
1070,Revenue,CCHD,Bed purchasing - Elderly MH - North,Residential Permanent,Fshc  1St Floor,1255.2, 29-Oct-2013
1071,Revenue,CCHD,Bed Purchasing - Southmead Hospital,Residential Permanent,Fshc  1St Floor,1246, 01-Oct-2013
1072,Revenue,CCHD,Bed Purchasing - Southmead Hospital,Residential Permanent,Fshc  1St Floor,1246, 29-Oct-2013
1073,Revenue,CCHD,Bed Purchasing - Southmead Hospital,Nursing Permanent,Fshc  1St Floor,1547.75, 01-Oct-2013
1074,Revenue,CCHD,Bed Purchasing - Elderly - North,Residential Permanent,Fshc  1St Floor,1155.6, 01-Oct-2013
1075,Revenue,CCHD,Bed Purchasing - Elderly - North,Residential Permanent,Fshc  1St Floor,1155.6, 29-Oct-2013
1076,Revenue,CCHD,Bed Purchasing - Elderly - North,Nursing Permanent,Fshc  1St Floor,1522, 01-Oct-2013
1077,Revenue,CCHD,Bed Purchasing - Elderly - North,Nursing Permanent,Fshc  1St Floor,1522, 29-Oct-2013
1078,Revenue,CCHD,Bed purchasing - Elderly MH - North,Residential Permanent,Fshc  1St Floor,1378.88, 01-Oct-2013
1079,Revenue,CCHD,Bed purchasing - Elderly MH - North,Residential Permanent,Fshc  1St Floor,1378.88, 29-Oct-2013
1080,Revenue,CCHD,Bed Purchasing - Elderly - North,Nursing Permanent,Fshc  1St Floor,1349.52, 01-Oct-2013
1081,Revenue,CCHD,Bed Purchasing - Elderly - North,Nursing Permanent,Fshc  1St Floor,1349.52, 29-Oct-2013
1082,Revenue,CCHD,Bed Purchasing - Southmead Hospital,Nursing Permanent,Fshc  1St Floor,1213.24, 01-Oct-2013
1083,Revenue,CCHD,Bed Purchasing - Southmead Hospital,Nursing Permanent,Fshc  1St Floor,1213.24, 29-Oct-2013
1084,Revenue,CCHD,Bed purchasing - Elderly MH - North,Nursing Permanent,Fshc  1St Floor,1048.64, 01-Oct-2013
1085,Revenue,CCHD,Bed purchasing - Elderly MH - North,Nursing Permanent,Fshc  1St Floor,1048.64, 29-Oct-2013
1086,Revenue,CCHD,Bed Purchasing - Frenchay Hospital,Nursing Permanent,Fshc  1St Floor,939.12, 01-Oct-2013
1087,Revenue,CCHD,Bed Purchasing - Elderly - North,Nursing Permanent,Fshc  1St Floor,1370, 01-Oct-2013
1088,Revenue,CCHD,Bed Purchasing - Elderly - North,Nursing Permanent,Fshc  1St Floor,1370, 29-Oct-2013
1089,Revenue,CCHD,Bed Purchasing - Elderly - North,Residential Permanent,Fshc  1St Floor,1254, 01-Oct-2013
1090,Revenue,CCHD,Bed Purchasing - Elderly - North,Residential Permanent,Fshc  1St Floor,1254, 29-Oct-2013
1091,Revenue,CCHD,Bed Purchasing - Elderly - North,Nursing Permanent,Fshc  1St Floor,1145.72, 01-Oct-2013
1092,Revenue,CCHD,Bed Purchasing - Elderly - North,Nursing Permanent,Fshc  1St Floor,1145.72, 29-Oct-2013
1093,Revenue,CCHD,Bed Purchasing - Frenchay Hospital,Residential Permanent,Fshc  1St Floor,1246, 01-Oct-2013
1094,Revenue,CCHD,Bed Purchasing - Frenchay Hospital,Residential Permanent,Fshc  1St Floor,1246, 29-Oct-2013
1095,Revenue,CCHD,Bed Purchasing - Southmead Hospital,Nursing Permanent,Fshc  1St Floor,1370, 01-Oct-2013
1096,Revenue,CCHD,Bed Purchasing - Southmead Hospital,Nursing Permanent,Fshc  1St Floor,1370, 29-Oct-2013
1097,Revenue,CCHD,Bed Purchasing - Frenchay Hospital,Nursing Permanent,Fshc  1St Floor,1307.44, 01-Oct-2013
1098,Revenue,CCHD,Bed Purchasing - Frenchay Hospital,Nursing Permanent,Fshc  1St Floor,1307.44, 29-Oct-2013
1099,Revenue,CCHD,Bed Purchasing - Elderly - North,Nursing Permanent,Fshc  1St Floor,1013.16, 01-Oct-2013
1100,Revenue,CCHD,Bed Purchasing - Elderly - North,Nursing Permanent,Fshc  1St Floor,1013.16, 29-Oct-2013
1101,Revenue,CCHD,Bed Purchasing - Southmead Hospital,Nursing Permanent,Fshc  1St Floor,3365, 01-Oct-2013
1102,Revenue,CCHD,Bed Purchasing - Southmead Hospital,Nursing Permanent,Fshc  1St Floor,1346, 01-Oct-2013
1103,Revenue,CCHD,Bed Purchasing - Elderly - South,Nursing Permanent,Fshc  1St Floor,1930.19, 01-Oct-2013
1104,Revenue,CCHD,Bed Purchasing - Elderly - South,Nursing Permanent,Fshc  1St Floor,1368.76, 01-Oct-2013
1105,Revenue,CCHD,Bed Purchasing - Elderly - North,Nursing Permanent,Fshc  1St Floor,986.14, 01-Oct-2013
1106,Revenue,CCHD,Bed Purchasing - Elderly - South,Nursing Permanent,Fshc  1St Floor,1368.76, 29-Oct-2013
1107,Revenue,CCHD,Bed Purchasing - Southmead Hospital,Nursing Permanent,Fshc  1St Floor,1686.25, 29-Oct-2013
1108,Revenue,CCHD,Bed Purchasing - Frenchay Hospital,Nursing Permanent,Fshc  1St Floor,1370, 01-Oct-2013
1109,Revenue,CCHD,Bed Purchasing - Frenchay Hospital,Nursing Permanent,Fshc  1St Floor,1370, 29-Oct-2013
1110,Revenue,CCHD,Bed Purchasing - Southmead Hospital,Nursing Permanent,Fshc  1St Floor,592.56, 01-Oct-2013
1111,Revenue,CCHD,Bed Purchasing - Southmead Hospital,Nursing Permanent,Fshc  1St Floor,592.56, 29-Oct-2013
1112,Revenue,CCHD,Bed Purchasing - Elderly - North,Nursing Permanent,Fshc  1St Floor,7294.91, 01-Oct-2013
1113,Revenue,CCHD,Bed Purchasing - Elderly - North,Nursing Permanent,Fshc  1St Floor,1849.22, 01-Oct-2013
1114,Revenue,CCHD,Bed Purchasing - Elderly - North,Nursing Permanent,Fshc  1St Floor,1268.68, 01-Oct-2013
1115,Revenue,CCHD,Bed Purchasing - Elderly - North,Nursing Permanent,Fshc  1St Floor,1268.68, 29-Oct-2013
1116,Revenue,CCHD,Bed Purchasing - Elderly - North,Nursing Permanent,Fshc  1St Floor,1071.64, 01-Oct-2013
1117,Revenue,CCHD,Bed Purchasing - Elderly - North,Nursing Permanent,Fshc  1St Floor,1071.64, 29-Oct-2013
1118,Revenue,CCHD,Bed Purchasing - Southmead Hospital,Nursing Permanent,Fshc  1St Floor,754.48, 01-Oct-2013
1119,Revenue,CCHD,Bed Purchasing - Southmead Hospital,Nursing Permanent,Fshc  1St Floor,754.48, 29-Oct-2013
1120,Revenue,CCHD,Bed Purchasing - Elderly - North,Nursing Permanent,Fshc  1St Floor,1379.28, 01-Oct-2013
1121,Revenue,CCHD,Bed Purchasing - Elderly - North,Nursing Permanent,Fshc  1St Floor,1379.28, 29-Oct-2013
1122,Revenue,CCHD,Bed Purchasing - Frenchay Hospital,Nursing Permanent,Fshc  1St Floor,1528.38, 01-Oct-2013
1123,Revenue,CCHD,Bed Purchasing - Frenchay Hospital,Nursing Permanent,Fshc  1St Floor,873.36, 01-Oct-2013
1124,Revenue,CCHD,Bed Purchasing - Frenchay Hospital,Nursing Permanent,Fshc  1St Floor,873.36, 29-Oct-2013
1125,Revenue,CCHD,Bed Purchasing - Frenchay Hospital,Nursing Permanent,Fshc  1St Floor,1378, 01-Oct-2013
1126,Revenue,CCHD,Bed Purchasing - Southmead Hospital,Nursing Permanent,Fshc  1St Floor,1292.6, 01-Oct-2013
1127,Revenue,CCHD,Bed Purchasing - Southmead Hospital,Nursing Permanent,Fshc  1St Floor,1292.6, 29-Oct-2013
1128,Revenue,CCHD,Bed Purchasing - Elderly - North,Nursing Permanent,Fshc  1St Floor,1249.04, 01-Oct-2013
1129,Revenue,CCHD,Bed Purchasing - Elderly - North,Nursing Permanent,Fshc  1St Floor,1249.04, 29-Oct-2013
1130,Revenue,CCHD,Bed Purchasing - Southmead Hospital,Nursing Permanent,Fshc  1St Floor,1370, 01-Oct-2013
1131,Revenue,CCHD,Bed Purchasing - Southmead Hospital,Nursing Permanent,Fshc  1St Floor,1370, 29-Oct-2013
1132,Revenue,CCHD,Bed Purchasing - Elderly - South,Nursing Permanent,Fshc  1St Floor,1390, 01-Oct-2013
1133,Revenue,CCHD,Bed Purchasing - Elderly - South,Nursing Permanent,Fshc  1St Floor,1390, 29-Oct-2013
1134,Revenue,CCHD,Bed Purchasing - Frenchay Hospital,Nursing Permanent,Fshc  1St Floor,1336.6, 01-Oct-2013
1135,Revenue,CCHD,Bed Purchasing - Frenchay Hospital,Nursing Permanent,Fshc  1St Floor,1336.6, 29-Oct-2013
1136,Revenue,CCHD,Bed Purchasing - Southmead Hospital,Nursing Permanent,Fshc  1St Floor,1344.2, 01-Oct-2013
1137,Revenue,CCHD,Bed Purchasing - Southmead Hospital,Nursing Permanent,Fshc  1St Floor,1344.2, 29-Oct-2013
1138,Revenue,CCHD,Bed Purchasing - Elderly - North,Residential Permanent,Fshc  1St Floor,2960.04, 01-Oct-2013
1139,Revenue,CCHD,Bed Purchasing - Elderly - North,Residential Permanent,Fshc  1St Floor,2960.04, 29-Oct-2013
1140,Revenue,CCHD,Bed Purchasing - Frenchay Hospital,Nursing Permanent,Fshc  1St Floor,1578.48, 01-Oct-2013
1141,Revenue,CCHD,Bed Purchasing - Frenchay Hospital,Nursing Permanent,Fshc  1St Floor,5899.92, 29-Oct-2013
1142,Revenue,CCHD,Bed purchasing - Phys Dis - North,Nursing Permanent,Fshc  1St Floor,1376.28, 01-Oct-2013
1143,Revenue,CCHD,Bed purchasing - Phys Dis - North,Nursing Permanent,Fshc  1St Floor,1376.28, 29-Oct-2013
1144,Revenue,CCHD,Bed Purchasing - Elderly - South,Nursing Permanent,Fshc  1St Floor,1224.64, 01-Oct-2013
1145,Revenue,CCHD,Bed Purchasing - Elderly - South,Nursing Permanent,Fshc  1St Floor,1224.64, 29-Oct-2013
1146,Revenue,CCHD,Bed Purchasing - Elderly - South,Residential Permanent,Fshc  1St Floor,866, 01-Oct-2013
1147,Revenue,CCHD,Bed Purchasing - Southmead Hospital,Nursing Permanent,Fshc  1St Floor,1370, 01-Oct-2013
1148,Revenue,CCHD,Bed Purchasing - Southmead Hospital,Nursing Permanent,Fshc  1St Floor,1370, 29-Oct-2013
1149,Revenue,CCHD,Bed Purchasing - Elderly - North,Residential Permanent,Fshc  1St Floor,1342.12, 01-Oct-2013
1150,Revenue,CCHD,Bed Purchasing - Elderly - North,Residential Permanent,Fshc  1St Floor,1764.29, 29-Oct-2013
1151,Revenue,CCHD,Bed Purchasing - Elderly - North,Residential Permanent,Fshc  1St Floor,1342.12, 29-Oct-2013
1152,Revenue,CCHD,Bed Purchasing - Southmead Hospital,Nursing Permanent,Fshc  1St Floor,1298.96, 01-Oct-2013
1153,Revenue,CCHD,Bed Purchasing - Southmead Hospital,Nursing Permanent,Fshc  1St Floor,1298.96, 29-Oct-2013
1154,Revenue,CCHD,Bed Purchasing - Elderly MH - South,Residential Permanent,Fshc  1St Floor,1924, 01-Oct-2013
1155,Revenue,CCHD,Bed Purchasing - Elderly MH - South,Residential Permanent,Fshc  1St Floor,1924, 29-Oct-2013
1156,Revenue,CCHD,Bed Purchasing - Frenchay Hospital,Nursing Permanent,Fshc  1St Floor,1359.08, 01-Oct-2013
1157,Revenue,CCHD,Bed Purchasing - Frenchay Hospital,Nursing Permanent,Fshc  1St Floor,1359.08, 29-Oct-2013
1158,Revenue,CCHD,Bed Purchasing - Frenchay Hospital,Nursing Permanent,Fshc  1St Floor,1293.56, 01-Oct-2013
1159,Revenue,CCHD,Bed Purchasing - Frenchay Hospital,Nursing Permanent,Fshc  1St Floor,1293.56, 29-Oct-2013
1160,Revenue,CCHD,Bed Purchasing - Southmead Hospital,Residential Permanent,Fshc  1St Floor,1466, 01-Oct-2013
1161,Revenue,CCHD,Bed Purchasing - Southmead Hospital,Residential Permanent,Fshc  1St Floor,1466, 29-Oct-2013
1162,Revenue,CCHD,Bed Purchasing - Elderly - South,Residential Permanent,Fshc  1St Floor,1399.72, 01-Oct-2013
1163,Revenue,CCHD,Bed Purchasing - Elderly - South,Residential Permanent,Fshc  1St Floor,1399.72, 29-Oct-2013
1164,Revenue,CCHD,Bed Purchasing - Elderly - North,Residential Permanent,Fshc  1St Floor,1160.96, 01-Oct-2013
1165,Revenue,CCHD,Bed Purchasing - Elderly - North,Residential Permanent,Fshc  1St Floor,1160.96, 29-Oct-2013
1166,Revenue,CCHD,Bed Purchasing - Elderly - North,Nursing Permanent,Fshc  1St Floor,1135, 01-Oct-2013
1167,Revenue,CCHD,Bed Purchasing - Elderly - North,Nursing Permanent,Fshc  1St Floor,1135, 29-Oct-2013
1168,Revenue,CCHD,Bed Purchasing - Frenchay Hospital,Nursing Permanent,Fshc  1St Floor,1230.52, 01-Oct-2013
1169,Revenue,CCHD,Bed Purchasing - Frenchay Hospital,Nursing Permanent,Fshc  1St Floor,1230.52, 29-Oct-2013
1170,Revenue,CCHD,Bed purchasing - Elderly MH - North,Residential Permanent,Fshc  1St Floor,6008.78, 01-Oct-2013
1171,Revenue,CCHD,Bed purchasing - Elderly MH - North,Residential Permanent,Fshc  1St Floor,1438, 01-Oct-2013
1172,Revenue,CCHD,Bed purchasing - Elderly MH - North,Residential Permanent,Fshc  1St Floor,1438, 29-Oct-2013
1173,Revenue,CCHD,Bed Purchasing - Southmead Hospital,Nursing Permanent,Fshc  1St Floor,1366, 01-Oct-2013
1174,Revenue,CCHD,Bed Purchasing - Southmead Hospital,Nursing Permanent,Fshc  1St Floor,1366, 29-Oct-2013
1175,Revenue,CCHD,Bed Purchasing - Frenchay Hospital,Residential Permanent,Fshc  1St Floor,1093.24, 01-Oct-2013
1176,Revenue,CCHD,Bed Purchasing - Elderly - South,Residential Permanent,Fshc  1St Floor,901.24, 29-Oct-2013
1177,Revenue,CCHD,Bed Purchasing - Southmead Hospital,Nursing Permanent,Fshc  1St Floor,806.36, 01-Oct-2013
1178,Revenue,CCHD,Bed Purchasing - Southmead Hospital,Nursing Permanent,Fshc  1St Floor,728.32, 01-Oct-2013
1179,Revenue,CCHD,Bed Purchasing - Southmead Hospital,Nursing Permanent,Fshc  1St Floor,650.28, 29-Oct-2013
1180,Revenue,CCHD,Bed purchasing - Elderly PWLD - South,Residential Permanent,Fshc  1St Floor,1246, 01-Oct-2013
1181,Revenue,CCHD,Bed purchasing - Elderly PWLD - South,Residential Permanent,Fshc  1St Floor,1246, 29-Oct-2013
1182,Revenue,CCHD,Bed Purchasing - Frenchay Hospital,Nursing Permanent,Fshc  1St Floor,1370, 01-Oct-2013
1183,Revenue,CCHD,Bed Purchasing - Frenchay Hospital,Nursing Permanent,Fshc  1St Floor,1370, 29-Oct-2013
1184,Revenue,CCHD,Bed Purchasing - Southmead Hospital,Nursing Permanent,Fshc  1St Floor,1101.08, 01-Oct-2013
1185,Revenue,CCHD,Bed Purchasing - Southmead Hospital,Nursing Permanent,Fshc  1St Floor,1101.08, 29-Oct-2013
1186,Revenue,CCHD,Bed Purchasing - Elderly - South,Nursing Permanent,Fshc  1St Floor,1294.68, 01-Oct-2013
1187,Revenue,CCHD,Bed Purchasing - Elderly - South,Nursing Permanent,Fshc  1St Floor,1294.68, 29-Oct-2013
1188,Revenue,CCHD,Bed Purchasing - Elderly - North,Residential Permanent,Fshc  1St Floor,1179.92, 01-Oct-2013
1189,Revenue,CCHD,Bed Purchasing - Elderly - North,Residential Permanent,Fshc  1St Floor,1179.92, 29-Oct-2013
1190,Revenue,CCHD,Bed Purchasing - Frenchay Hospital,Nursing Permanent,Fshc  1St Floor,3049.14, 01-Oct-2013
1191,Revenue,CCHD,Bed Purchasing - Frenchay Hospital,Nursing Permanent,Fshc  1St Floor,1856, 01-Oct-2013
1192,Revenue,CCHD,Bed Purchasing - Frenchay Hospital,Nursing Permanent,Fshc  1St Floor,1856, 29-Oct-2013
1193,Revenue,CCHD,Bed Purchasing - Frenchay Hospital,Nursing Permanent,Fshc  1St Floor,1596.86, 29-Oct-2013
1194,Revenue,CCHD,Bed Purchasing - Southmead Hospital,Nursing Permanent,Fshc  1St Floor,878.76, 01-Oct-2013
1195,Revenue,CCHD,Bed Purchasing - Southmead Hospital,Nursing Permanent,Fshc  1St Floor,878.76, 29-Oct-2013
1196,Revenue,CCHD,Bed Purchasing - Frenchay Hospital,Nursing Permanent,Fshc  1St Floor,1370, 01-Oct-2013
1197,Revenue,CCHD,Bed Purchasing - Frenchay Hospital,Nursing Permanent,Fshc  1St Floor,1370, 29-Oct-2013
1198,Revenue,CCHD,Bed Purchasing - Southmead Hospital,Nursing Permanent,Fshc  1St Floor,957.12, 01-Oct-2013
1199,Revenue,CCHD,Bed Purchasing - Southmead Hospital,Nursing Permanent,Fshc  1St Floor,957.12, 29-Oct-2013
1200,Revenue,CCHD,Bed Purchasing - Elderly - South,Residential Permanent,Fshc  1St Floor,816.56, 01-Oct-2013
1201,Revenue,CCHD,Bed Purchasing - Elderly - South,Residential Permanent,Fshc  1St Floor,816.56, 29-Oct-2013
1202,Revenue,CCHD,Bed Purchasing - Southmead Hospital,Residential Permanent,Fshc  1St Floor,1453.28, 01-Oct-2013
1203,Revenue,CCHD,Bed Purchasing - Southmead Hospital,Residential Permanent,Fshc  1St Floor,1453.28, 29-Oct-2013
1204,Revenue,CCHD,Bed Purchasing - Elderly - South,Nursing Permanent,Fshc  1St Floor,941.76, 01-Oct-2013
1205,Revenue,CCHD,Bed Purchasing - Elderly - South,Nursing Permanent,Fshc  1St Floor,941.76, 29-Oct-2013
1206,Revenue,CCHD,Bed purchasing - Elderly S117 - South,Nursing Permanent,Fshc  1St Floor,1856, 01-Oct-2013
1207,Revenue,CCHD,Bed purchasing - Elderly S117 - South,Nursing Permanent,Fshc  1St Floor,1856, 29-Oct-2013
1208,Revenue,CCHD,Bed Purchasing - Frenchay Hospital,Residential Permanent,Fshc  1St Floor,1107.56, 01-Oct-2013
1209,Revenue,CCHD,Bed Purchasing - Frenchay Hospital,Residential Permanent,Fshc  1St Floor,1107.56, 29-Oct-2013
1210,Revenue,CCHD,Bed Purchasing - Elderly - South,Residential Permanent,Fshc  1St Floor,742.29, 01-Oct-2013
1211,Revenue,CCHD,Bed Purchasing - Elderly - North,Nursing Permanent,Fshc  1St Floor,1789.71, 01-Oct-2013
1212,Revenue,CCHD,Bed Purchasing - Elderly - North,Nursing Permanent,Fshc  1St Floor,3181.71, 29-Oct-2013
1213,Revenue,CCHD,Bed Purchasing - Elderly - North,Nursing Permanent,Fshc  1St Floor,1856, 29-Oct-2013
1214,Revenue,CCHD,Bed Purchasing - Southmead Hospital,Residential Permanent,Fshc  1St Floor,1331.76, 01-Oct-2013
1215,Revenue,CCHD,Bed Purchasing - Southmead Hospital,Residential Permanent,Fshc  1St Floor,1331.76, 29-Oct-2013
1216,Revenue,CCHD,Bed Purchasing - Southmead Hospital,Nursing Permanent,Fshc  1St Floor,1180.56, 01-Oct-2013
1217,Revenue,CCHD,Bed Purchasing - Southmead Hospital,Nursing Permanent,Fshc  1St Floor,1180.56, 29-Oct-2013
1218,Revenue,CCHD,Bed Purchasing - Elderly - North,Residential Permanent,Fshc  1St Floor,1199.92, 01-Oct-2013
1219,Revenue,CCHD,Bed Purchasing - Elderly - North,Residential Permanent,Fshc  1St Floor,1199.92, 29-Oct-2013
1220,Revenue,CCHD,Bed Purchasing - Southmead Hospital,Nursing Permanent,Fshc  1St Floor,1370, 01-Oct-2013
1221,Revenue,CCHD,Bed Purchasing - Southmead Hospital,Nursing Permanent,Fshc  1St Floor,1370, 29-Oct-2013
1222,Revenue,CCHD,Bed Purchasing - Southmead Hospital,Nursing Permanent,Fshc  1St Floor,1370, 01-Oct-2013
1223,Revenue,CCHD,Bed Purchasing - Southmead Hospital,Nursing Permanent,Fshc  1St Floor,1370, 29-Oct-2013
1224,Revenue,CCHD,Bed Purchasing - Frenchay Hospital,Nursing Permanent,Fshc  1St Floor,1109.92, 01-Oct-2013
1225,Revenue,CCHD,Bed Purchasing - Frenchay Hospital,Nursing Permanent,Fshc  1St Floor,1109.92, 29-Oct-2013
1226,Revenue,CCHD,Bed Purchasing - Southmead Hospital,Nursing Permanent,Fshc  1St Floor,1114.88, 01-Oct-2013
1227,Revenue,CCHD,Bed Purchasing - Southmead Hospital,Nursing Permanent,Fshc  1St Floor,1114.88, 29-Oct-2013
1228,Revenue,CCHD,Bed Purchasing - Frenchay Hospital,Nursing Permanent,Fshc  1St Floor,956.08, 01-Oct-2013
1229,Revenue,CCHD,Bed Purchasing - Frenchay Hospital,Nursing Permanent,Fshc  1St Floor,956.08, 29-Oct-2013
1230,Revenue,CCHD,Bed Purchasing - Frenchay Hospital,Nursing Permanent,Fshc  1St Floor,4374.86, 01-Oct-2013
1231,Revenue,CCHD,Bed Purchasing - Frenchay Hospital,Nursing Permanent,Fshc  1St Floor,1117.88, 01-Oct-2013
1232,Revenue,CCHD,Bed Purchasing - Frenchay Hospital,Nursing Permanent,Fshc  1St Floor,1117.88, 29-Oct-2013
1233,Revenue,CCHD,Bed Purchasing - Frenchay Hospital,Nursing Permanent,Fshc  1St Floor,1030.08, 01-Oct-2013
1234,Revenue,CCHD,Bed Purchasing - Frenchay Hospital,Nursing Permanent,Fshc  1St Floor,1030.08, 29-Oct-2013
1235,Revenue,CCHD,Bed Purchasing - Frenchay Hospital,Nursing Permanent,Fshc  1St Floor,1060.28, 01-Oct-2013
1236,Revenue,CCHD,Bed Purchasing - Frenchay Hospital,Nursing Permanent,Fshc  1St Floor,1060.28, 29-Oct-2013
1237,Revenue,CCHD,Bed Purchasing - Southmead Hospital,Nursing Permanent,Fshc  1St Floor,870.76, 01-Oct-2013
1238,Revenue,CCHD,Bed Purchasing - Southmead Hospital,Nursing Permanent,Fshc  1St Floor,870.76, 29-Oct-2013
1239,Revenue,CCHD,Bed Purchasing - Southmead Hospital,Nursing Permanent,Fshc  1St Floor,1478.08, 01-Oct-2013
1240,Revenue,CCHD,Bed Purchasing - Southmead Hospital,Nursing Permanent,Fshc  1St Floor,739.04, 29-Oct-2013
1241,Revenue,CCHD,Bed Purchasing - Southmead Hospital,Residential Permanent,Fshc  1St Floor,7422.86, 01-Oct-2013
1242,Revenue,CCHD,Bed Purchasing - Southmead Hospital,Residential Permanent,Fshc  1St Floor,1108.93, 01-Oct-2013
1243,Revenue,CCHD,Bed Purchasing - Southmead Hospital,Residential Permanent,Fshc  1St Floor,1732, 29-Oct-2013
1244,Revenue,CCHD,Bed Purchasing - Frenchay Hospital,Nursing Permanent,Fshc  1St Floor,2788.24, 01-Oct-2013
1245,Revenue,CCHD,Bed Purchasing - Frenchay Hospital,Nursing Permanent,Fshc  1St Floor,1394.12, 29-Oct-2013
1246,Revenue,CCHD,Bed Purchasing - Elderly - North,Nursing Permanent,Fshc  1St Floor,2552.4, 01-Oct-2013
1247,Revenue,CCHD,Bed Purchasing - Elderly - North,Nursing Permanent,Fshc  1St Floor,1276.2, 29-Oct-2013
1248,Revenue,CCHD,Bed purchasing - Phys Dis - North,Nursing Permanent,Fshc  1St Floor,840.44, 01-Oct-2013
1249,Revenue,CCHD,Bed purchasing - Phys Dis - North,Nursing Permanent,Fshc  1St Floor,840.44, 29-Oct-2013
1250,Revenue,CCHD,Bed Purchasing - Elderly - North,Nursing Permanent,Fshc  1St Floor,2332.8, 01-Oct-2013
1251,Revenue,CCHD,Bed Purchasing - Elderly - North,Nursing Permanent,Fshc  1St Floor,1209.6, 29-Oct-2013
1252,Revenue,CCHD,Bed Purchasing - Frenchay Hospital,Nursing Permanent,Fshc  1St Floor,1302, 01-Oct-2013
1253,Revenue,CCHD,Bed Purchasing - Frenchay Hospital,Nursing Permanent,Fshc  1St Floor,1302, 29-Oct-2013
1254,Revenue,CCHD,Bed purchasing - Elderly MH - North,Nursing Permanent,Fshc  1St Floor,858.48, 01-Oct-2013
1255,Revenue,CCHD,Bed purchasing - Elderly MH - North,Nursing Permanent,Fshc  1St Floor,858.48, 29-Oct-2013
1256,Revenue,CCHD,Bed Purchasing - Southmead Hospital,Nursing Permanent,Fshc  1St Floor,2428.14, 29-Oct-2013
1257,Revenue,CCHD,Bed Purchasing - Southmead Hospital,Nursing Permanent,Fshc  1St Floor,1478, 29-Oct-2013
1258,Revenue,CCHD,Bed Purchasing - Southmead Hospital,Nursing Permanent,Fshc  1St Floor,1813.5, 01-Oct-2013
1259,Revenue,CCHD,Bed Purchasing - Southmead Hospital,Nursing Permanent,Fshc  1St Floor,1302, 01-Oct-2013
1260,Revenue,CCHD,Bed Purchasing - Southmead Hospital,Nursing Permanent,Fshc  1St Floor,2014.6, 29-Oct-2013
1261,Revenue,CCHD,Bed Purchasing - Southmead Hospital,Nursing Permanent,Fshc  1St Floor,1285.4, 29-Oct-2013
1262,Revenue,CCHD,Bed Purchasing - Elderly - North,Nursing Permanent,Fshc  1St Floor,997.83, 29-Oct-2013
1263,Revenue,CCHD,Bed purchasing - Elderly S117 - South,Nursing Permanent,Fshc  1St Floor,1964, 01-Oct-2013
1264,Revenue,CCHD,Bed purchasing - Elderly S117 - South,Nursing Permanent,Fshc  1St Floor,1964, 29-Oct-2013
1265,Revenue,CCHD,Bed Purchasing - Frenchay Hospital,Nursing Permanent,Fshc  1St Floor,1080.28, 01-Oct-2013
1266,Revenue,CCHD,Bed Purchasing - Frenchay Hospital,Nursing Permanent,Fshc  1St Floor,1080.28, 29-Oct-2013
1267,Revenue,CCHD,Bed Purchasing - Frenchay Hospital,Nursing Permanent,Fshc  1St Floor,951.24, 01-Oct-2013
1268,Revenue,CCHD,Bed Purchasing - Frenchay Hospital,Nursing Permanent,Fshc  1St Floor,951.24, 29-Oct-2013
1269,Revenue,CCHD,Bed Purchasing - Elderly S117- North,Nursing Permanent,Fshc  1St Floor,1964, 01-Oct-2013
1270,Revenue,CCHD,Bed Purchasing - Elderly S117- North,Nursing Permanent,Fshc  1St Floor,1964, 29-Oct-2013
1271,Revenue,CCHD,Bed Purchasing - Elderly - North,Residential Permanent,Fshc  1St Floor,1414, 01-Oct-2013
1272,Revenue,CCHD,Bed Purchasing - Elderly - North,Residential Permanent,Fshc  1St Floor,1414, 29-Oct-2013
1273,Revenue,CCHD,Bed Purchasing - Frenchay Hospital,Nursing Permanent,Fshc  1St Floor,1097.04, 01-Oct-2013
1274,Revenue,CCHD,Bed Purchasing - Frenchay Hospital,Nursing Permanent,Fshc  1St Floor,1097.04, 29-Oct-2013
1275,Revenue,CCHD,Bed Purchasing - Elderly - South,Residential Permanent,Fshc  1St Floor,1340.56, 01-Oct-2013
1276,Revenue,CCHD,Bed Purchasing - Elderly - South,Residential Permanent,Fshc  1St Floor,1340.56, 29-Oct-2013
1277,Revenue,CCHD,Section 117 Placements MH Younger,Residential Permanent,Gladstone House,2721.88, 01-Oct-2013
1278,Revenue,CCHD,Section 117 Placements MH Younger,Residential Permanent,Gladstone House,2721.88, 29-Oct-2013
1279,Revenue,CCHD,Bed Purchasing - Under 65s PWLD - South,Residential Permanent,Glasallt Fawr,4547.84, 01-Oct-2013
1280,Revenue,CCHD,Bed Purchasing - Elderly - North,Residential Permanent,Glebe House Nursing Home,1582, 01-Oct-2013
1281,Revenue,CCHD,Bed purchasing - Elderly MH - North,Nursing Permanent,Glebe House Nursing Home,655.56, 01-Oct-2013
1282,Revenue,CCHD,Bed purchasing - Elderly PWLD - South,Residential Permanent,Glebe House Nursing Home,12007.34, 29-Oct-2013
1283,Revenue,CCHD,Bed purchasing - Elderly MH - North,Nursing Permanent,Glebe House Nursing Home,1666.36, 29-Oct-2013
1284,Revenue,CCHD,Bed purchasing - Elderly MH - North,Residential Permanent,Glebe House Nursing Home,2007.6, 01-Oct-2013
1285,Revenue,CCHD,Bed purchasing - Elderly MH - North,Residential Permanent,Glebe House Nursing Home,2007.6, 29-Oct-2013
1286,Revenue,CCHD,South Glos Users in South Glos Homes,Nursing Permanent,Glebe House Nursing Home,2634.96, 01-Oct-2013
1287,Revenue,CCHD,Bed Purchasing - Frenchay Hospital,Nursing Permanent,Glebe House Nursing Home,1003.08, 01-Oct-2013
1288,Revenue,CCHD,Bed Purchasing - Frenchay Hospital,Nursing Permanent,Glebe House Nursing Home,898.48, 29-Oct-2013
1289,Revenue,CCHD,South Glos Users in South Glos Homes,Nursing Permanent,Glebe House Nursing Home,2384.01, 01-Oct-2013
1290,Revenue,CCHD,Bed Purchasing - Elderly - South,Residential Permanent,Glebe House Nursing Home,1977.76, 01-Oct-2013
1291,Revenue,CCHD,Bed Purchasing - Elderly - South,Residential Permanent,Glebe House Nursing Home,1977.76, 29-Oct-2013
1292,Revenue,CCHD,Bed Purchasing - Elderly - North,Residential Permanent,Glebe House Nursing Home,2551.92, 01-Oct-2013
1293,Revenue,CCHD,Bed Purchasing - Elderly - North,Residential Permanent,Glebe House Nursing Home,2551.92, 29-Oct-2013
1294,Revenue,CCHD,Bed Purchasing - Frenchay Hospital,Nursing Permanent,Glebe House Nursing Home,604.5, 01-Oct-2013
1295,Revenue,CCHD,Public Health - Admin,Agency Staff (Operational)/PCT Pay,Gloucestershire Hospitals NHSFT,3951.3, 17-Oct-2013
1296,Revenue,CCHD,Bed Purchasing - Under 65s PWLD - South,Residential Permanent,Gordena Care Home,2082.36, 01-Oct-2013
1297,Revenue,CCHD,Bed Purchasing - Under 65s PWLD - South,Residential Permanent,Gordena Care Home,2082.36, 29-Oct-2013
1298,Revenue,CCHD,Bed purchasing - Elderly PWLD - South,Residential Permanent,Gordena Care Home,4732.4, 01-Oct-2013
1299,Revenue,CCHD,Bed purchasing - Elderly PWLD - South,Residential Permanent,Gordena Care Home,4732.4, 29-Oct-2013
1300,Revenue,CCHD,Bed purchasing - Elderly PWLD - South,Residential Permanent,Gordena Care Home,3116.24, 01-Oct-2013
1301,Revenue,CCHD,Bed purchasing - Elderly PWLD - South,Residential Permanent,Gordena Care Home,3116.24, 29-Oct-2013
1302,Revenue,CCHD,Bed purchasing - Elderly PWLD - South,Residential Permanent,Gordena Care Home,2927.44, 01-Oct-2013
1303,Revenue,CCHD,Bed purchasing - Elderly PWLD - South,Residential Permanent,Gordena Care Home,2927.44, 29-Oct-2013
1304,Revenue,CCHD,Bed Purchasing - Under 65s PWLD - South,Residential Permanent,Gordena Care Home,1907.6, 01-Oct-2013
1305,Revenue,CCHD,Bed Purchasing - Under 65s PWLD - South,Residential Permanent,Gordena Care Home,1907.6, 29-Oct-2013
1306,Revenue,CCHD,Bed Purchasing - Under 65s PWLD - South,Residential Permanent,Gordena Care Limited,4158.56, 01-Oct-2013
1307,Revenue,CCHD,Bed Purchasing - Under 65s PWLD - South,Residential Permanent,Gordena Care Limited,4158.56, 29-Oct-2013
1308,Revenue,CCHD,Bed purchasing - S28A Under 65 - South,Residential Permanent,Gordena Care Limited,4055.8, 01-Oct-2013
1309,Revenue,CCHD,Bed purchasing - S28A Under 65 - South,Residential Permanent,Gordena Care Limited,4055.8, 29-Oct-2013
1310,Revenue,CCHD,Bed purchasing - Under 65s PWLD - North,Residential Permanent,Gordena Care Limited,4160, 01-Oct-2013
1311,Revenue,CCHD,Bed purchasing - Under 65s PWLD - North,Residential Permanent,Gordena Care Limited,4160, 29-Oct-2013
1312,Revenue,CCHD,Bed Purchasing - Frenchay Hospital,Residential Permanent,Gorselands Residential Home,1710.16, 01-Oct-2013
1313,Revenue,CCHD,Bed Purchasing - Elderly - North,Residential Permanent,Greensleeves,1312.68, 01-Oct-2013
1314,Revenue,CCHD,Bed Purchasing - Elderly - North,Residential Permanent,Greensleeves,1312.68, 29-Oct-2013
1315,Revenue,CCHD,Bed Purchasing - Elderly - South,Residential Permanent,Grove Care,3600, 29-Oct-2013
1316,Revenue,CCHD,Dementia Challenge,Other Supplies & Services,Guideposts Trust,7500, 24-Oct-2013
1317,Revenue,CCHD,Bed Purchasing - Elderly - North,Residential Permanent,Gwendoline House,1368.5, 29-Oct-2013
1318,Revenue,CCHD,Bed Purchasing - Elderly - South,Residential Permanent,Gwendoline House,1490.04, 01-Oct-2013
1319,Revenue,CCHD,Bed Purchasing - Elderly - South,Residential Permanent,Gwendoline House,1490.04, 29-Oct-2013
1320,Revenue,CCHD,Bed Purchasing - Elderly - South,Residential Permanent,Gwendoline House,1164.96, 01-Oct-2013
1321,Revenue,CCHD,Bed Purchasing - Elderly - South,Residential Permanent,Gwendoline House,1164.96, 29-Oct-2013
1322,Revenue,CCHD,Bed Purchasing - Elderly - North,Residential Permanent,Gwendoline House,1636.56, 01-Oct-2013
1323,Revenue,CCHD,Bed Purchasing - Elderly - North,Residential Permanent,Gwendoline House,1636.56, 29-Oct-2013
1324,Revenue,CCHD,Bed Purchasing - Elderly MH - South,Residential Permanent,Gwendoline House,1284.64, 01-Oct-2013
1325,Revenue,CCHD,Bed Purchasing - Elderly MH - South,Residential Permanent,Gwendoline House,1284.64, 29-Oct-2013
1326,Revenue,CCHD,Bed Purchasing - Southmead Hospital,Residential Permanent,Gwendoline House,1686.64, 01-Oct-2013
1327,Revenue,CCHD,Bed Purchasing - Southmead Hospital,Residential Permanent,Gwendoline House,1686.64, 29-Oct-2013
1328,Revenue,CCHD,Bed Purchasing - Elderly - South,Residential Permanent,Gwendoline House,1128.52, 01-Oct-2013
1329,Revenue,CCHD,Bed Purchasing - Elderly - South,Residential Permanent,Gwendoline House,1128.52, 29-Oct-2013
1330,Revenue,CCHD,Supporting People Programme,Grants to Voluntary Bodies,Habinteg Housing Association,1338.75, 01-Oct-2013
1331,Revenue,CCHD,Bed Purchasing - Elderly - South,Residential Permanent,Harefield Hall,1327.24, 01-Oct-2013
1332,Revenue,CCHD,Bed Purchasing - Elderly - South,Residential Permanent,Harefield Hall,1327.24, 29-Oct-2013
1333,Revenue,CCHD,Bed Purchasing - Elderly - South,Residential Permanent,Harefield Hall,1968.44, 01-Oct-2013
1334,Revenue,CCHD,Bed Purchasing - Elderly - South,Residential Permanent,Harefield Hall,1968.44, 29-Oct-2013
1335,Revenue,CCHD,Bed Purchasing - Elderly - South,Residential Permanent,Harefield Hall,1112.96, 01-Oct-2013
1336,Revenue,CCHD,Bed Purchasing - Elderly - South,Residential Permanent,Harefield Hall,1112.96, 29-Oct-2013
1337,Revenue,CCHD,Bed Purchasing - Elderly - South,Residential Permanent,Harefield Hall,3125, 01-Oct-2013
1338,Revenue,CCHD,Bed Purchasing - Elderly - South,Residential Permanent,Harefield Hall,982.14, 01-Oct-2013
1339,Revenue,CCHD,Bed Purchasing - Elderly - South,Residential Permanent,Harefield Hall,1778.56, 01-Oct-2013
1340,Revenue,CCHD,Bed Purchasing - Elderly - South,Residential Permanent,Harefield Hall,1778.56, 29-Oct-2013
1341,Revenue,CCHD,Bed Purchasing - Elderly MH - South,Residential Permanent,Harefield Hall,1030.52, 01-Oct-2013
1342,Revenue,CCHD,Bed Purchasing - Elderly MH - South,Residential Permanent,Harefield Hall,1030.52, 29-Oct-2013
1343,Revenue,CCHD,Bed Purchasing - Elderly - South,Residential Permanent,Harefield Hall,1291.8, 01-Oct-2013
1344,Revenue,CCHD,Bed Purchasing - Elderly - South,Residential Permanent,Harefield Hall,1291.8, 29-Oct-2013
1345,Revenue,CCHD,Bed Purchasing - Elderly - South,Residential Permanent,Harefield Hall,2053.57, 01-Oct-2013
1346,Revenue,CCHD,Bed Purchasing - Elderly - South,Residential Permanent,Harefield Hall,2142.86, 29-Oct-2013
1347,Revenue,CCHD,Bed Purchasing - Southmead Hospital,Nursing Permanent,Haven Lodge,1382.28, 01-Oct-2013
1348,Revenue,CCHD,Bed Purchasing - Southmead Hospital,Nursing Permanent,Haven Lodge,1382.28, 29-Oct-2013
1349,Revenue,CCHD,Bed Purchasing - Southmead Hospital,Nursing Permanent,Hc-One Ltd,3227.04, 01-Oct-2013
1350,Revenue,CCHD,Bed Purchasing - Southmead Hospital,Nursing Permanent,Hc-One Ltd,1613.52, 29-Oct-2013
1351,Revenue,CCHD,Bed Purchasing - Elderly - North,Nursing Permanent,Hc-One Ltd,1469.6, 01-Oct-2013
1352,Revenue,CCHD,Bed Purchasing - Elderly - North,Nursing Permanent,Hc-One Ltd,1469.6, 29-Oct-2013
1353,Revenue,CCHD,Bed Purchasing - Elderly - North,Nursing Permanent,Hc-One Ltd,971.48, 01-Oct-2013
1354,Revenue,CCHD,Bed Purchasing - Elderly - North,Nursing Permanent,Hc-One Ltd,971.48, 29-Oct-2013
1355,Revenue,CCHD,Bed Purchasing - Elderly - North,Nursing Permanent,Hc-One Ltd,1499.04, 01-Oct-2013
1356,Revenue,CCHD,Bed Purchasing - Elderly - North,Nursing Permanent,Hc-One Ltd,1499.04, 29-Oct-2013
1357,Revenue,CCHD,Bed Purchasing - Frenchay Hospital,Nursing Permanent,Hc-One Ltd,1478, 29-Oct-2013
1358,Revenue,CCHD,Bed Purchasing - Frenchay Hospital,Nursing Permanent,Hc-One Ltd,1002.92, 29-Oct-2013
1359,Revenue,CCHD,Bed purchasing - Elderly PWLD - South,Nursing Permanent,Hc-One Ltd,1929.96, 01-Oct-2013
1360,Revenue,CCHD,Bed purchasing - Elderly PWLD - South,Nursing Permanent,Hc-One Ltd,1929.96, 29-Oct-2013
1361,Revenue,CCHD,Bed purchasing - Elderly MH - North,Nursing Permanent,Hc-One Ltd,1478, 01-Oct-2013
1362,Revenue,CCHD,Bed purchasing - Elderly MH - North,Nursing Permanent,Hc-One Ltd,1478, 29-Oct-2013
1363,Revenue,CCHD,Bed purchasing - Elderly MH - North,Nursing Permanent,Hc-One Ltd,1229.12, 01-Oct-2013
1364,Revenue,CCHD,Bed purchasing - Elderly MH - North,Nursing Permanent,Hc-One Ltd,1229.12, 29-Oct-2013
1365,Revenue,CCHD,Bed Purchasing - Frenchay Hospital,Nursing Permanent,Hc-One Ltd,1471.16, 01-Oct-2013
1366,Revenue,CCHD,Bed Purchasing - Frenchay Hospital,Nursing Permanent,Hc-One Ltd,1471.16, 29-Oct-2013
1367,Revenue,CCHD,Bed Purchasing - Elderly - South,Nursing Permanent,Hc-One Ltd,1146.88, 01-Oct-2013
1368,Revenue,CCHD,Bed Purchasing - Elderly - South,Nursing Permanent,Hc-One Ltd,1146.88, 29-Oct-2013
1369,Revenue,CCHD,Bed purchasing - Elderly MH - North,Nursing Permanent,Hc-One Ltd,1478, 01-Oct-2013
1370,Revenue,CCHD,Bed purchasing - Elderly MH - North,Nursing Permanent,Hc-One Ltd,1478, 29-Oct-2013
1371,Revenue,CCHD,Bed purchasing - Elderly MH - North,Nursing Permanent,Hc-One Ltd,1170.6, 01-Oct-2013
1372,Revenue,CCHD,Bed purchasing - Elderly MH - North,Nursing Permanent,Hc-One Ltd,1045.18, 01-Oct-2013
1373,Revenue,CCHD,Bed purchasing - Elderly MH - North,Nursing Permanent,Hc-One Ltd,1170.6, 29-Oct-2013
1374,Revenue,CCHD,Bed Purchasing - Elderly S117- North,Nursing Permanent,Hc-One Ltd,1947.72, 01-Oct-2013
1375,Revenue,CCHD,Bed Purchasing - Elderly S117- North,Nursing Permanent,Hc-One Ltd,1947.72, 29-Oct-2013
1376,Revenue,CCHD,Bed Purchasing - Frenchay Hospital,Residential Permanent,Hc-One Ltd,1649.25, 29-Oct-2013
1377,Revenue,CCHD,Day Care - North,Private & Voluntary Day Care,Headway Bristol,2633.47, 28-Oct-2013
1378,Revenue,CCHD,Day Care - South,Private & Voluntary Day Care,Headway Bristol,2561.43, 28-Oct-2013
1379,Revenue,CCHD,Day Care - South,Private & Voluntary Day Care,Headway Bristol,770.28, 28-Oct-2013
1380,Revenue,CCHD,Day Care - North,Private & Voluntary Day Care,Headway Bristol,953.68, 28-Oct-2013
1381,Revenue,CCHD,Day Care - North,Private & Voluntary Day Care,Headway Bristol,821.79, 28-Oct-2013
1382,Revenue,CCHD,Day Care - North,Private & Voluntary Day Care,Headway Bristol,880.32, 28-Oct-2013
1383,Revenue,CCHD,Public Health - Admin,Other Supplies & Services,HENRY,500, 16-Oct-2013
1384,Revenue,CCHD,Bed Purchasing - Southmead Hospital,Residential Permanent,High Border Lodge,1444.2, 01-Oct-2013
1385,Revenue,CCHD,Bed Purchasing - Southmead Hospital,Residential Permanent,High Border Lodge,1444.2, 29-Oct-2013
1386,Revenue,CCHD,Bed Purchasing - Frenchay Hospital,Residential Permanent,Highfield House,1554, 01-Oct-2013
1387,Revenue,CCHD,Bed Purchasing - Frenchay Hospital,Residential Permanent,Highfield House,1554, 29-Oct-2013
1388,Revenue,CCHD,Bed Purchasing - Southmead Hospital,Residential Permanent,Highgate Studios,1166.84, 01-Oct-2013
1389,Revenue,CCHD,Bed Purchasing - Southmead Hospital,Residential Permanent,Highgate Studios,1166.84, 29-Oct-2013
1390,Revenue,CCHD,Bed purchasing - Under 65s PWLD - North,Residential Permanent,Holmleigh Care Homes Ltd,4000.16, 01-Oct-2013
1391,Revenue,CCHD,Bed purchasing - Under 65s PWLD - North,Residential Permanent,Holmleigh Care Homes Ltd,4000.16, 29-Oct-2013
1392,Revenue,CCHD,Bed Purchasing - Under 65s PWLD - South,Residential Permanent,Holmleigh Care Homes Ltd,5027.72, 01-Oct-2013
1393,Revenue,CCHD,Bed Purchasing - Under 65s PWLD - South,Residential Permanent,Holmleigh Care Homes Ltd,5027.72, 29-Oct-2013
1394,Revenue,CCHD,Bed purchasing - Under 65s PWLD - North,Residential Permanent,Home Farm Trust Ltd  5-6 Brook Office Pa,2810.04, 01-Oct-2013
1395,Revenue,CCHD,Bed purchasing - Under 65s PWLD - North,Residential Permanent,Home Farm Trust Ltd  5-6 Brook Office Pa,2810.04, 29-Oct-2013
1396,Revenue,CCHD,Bed purchasing - Elderly PWLD - South,Residential Permanent,Home Farm Trust Ltd  5-6 Brook Office Pa,5050.32, 01-Oct-2013
1397,Revenue,CCHD,Bed purchasing - Elderly PWLD - South,Residential Permanent,Home Farm Trust Ltd  5-6 Brook Office Pa,5050.32, 29-Oct-2013
1398,Revenue,CCHD,Bed purchasing - Under 65s PWLD - North,Residential Permanent,Home Farm Trust Ltd  5-6 Brook Office Pa,3396, 01-Oct-2013
1399,Revenue,CCHD,Bed purchasing - Under 65s PWLD - North,Residential Permanent,Home Farm Trust Ltd  5-6 Brook Office Pa,3396, 29-Oct-2013
1400,Revenue,CCHD,Bed Purchasing - Under 65s PWLD - South,Residential Permanent,Home Farm Trust Ltd  5-6 Brook Office Pa,4505.04, 01-Oct-2013
1401,Revenue,CCHD,Bed Purchasing - Under 65s PWLD - South,Residential Permanent,Home Farm Trust Ltd  5-6 Brook Office Pa,4505.04, 29-Oct-2013
1402,Revenue,CCHD,Bed purchasing - Under 65s PWLD - North,Residential Permanent,Home From Home Care Ltd,8857.52, 01-Oct-2013
1403,Revenue,CCHD,Bed purchasing - Under 65s PWLD - North,Residential Permanent,Home From Home Care Ltd,8857.52, 29-Oct-2013
1404,Revenue,CCHD,Bed purchasing - Under 65s PWLD - North,Residential Permanent,Homes Caring For Autism Ltd  Churchill H,9755.64, 01-Oct-2013
1405,Revenue,CCHD,Bed purchasing - Under 65s PWLD - North,Residential Permanent,Homes Caring For Autism Ltd  Churchill H,9755.64, 29-Oct-2013
1406,Revenue,CCHD,Bed Purchasing - Under 65s PWLD - South,Residential Permanent,Homes Caring For Autism Ltd  Churchill H,12715.92, 01-Oct-2013
1407,Revenue,CCHD,Bed Purchasing - Under 65s PWLD - South,Residential Permanent,Homes Caring For Autism Ltd  Churchill H,12715.92, 29-Oct-2013
1408,Revenue,CCHD,Bed purchasing - Under 65s PWLD - North,Residential Permanent,Homes Caring For Autism Ltd  Churchill H,12410, 01-Oct-2013
1409,Revenue,CCHD,Bed purchasing - Under 65s PWLD - North,Residential Permanent,Homes Caring For Autism Ltd  Churchill H,12410, 29-Oct-2013
1410,Revenue,CCHD,Bed Purchasing - Elderly - South,Nursing Permanent,Horfield Care Limited,2241.74, 10-Oct-2013
1411,Revenue,CCHD,Bed Purchasing - Elderly - North,Nursing Permanent,Horfield Care Limited,6651.06, 10-Oct-2013
1412,Revenue,CCHD,Bed Purchasing - Frenchay Hospital,Nursing Permanent,Horfield Care Limited,1435.54, 10-Oct-2013
1413,Revenue,CCHD,Bed Purchasing - Southmead Hospital,Nursing Permanent,Horfield Care Limited,9748.43, 10-Oct-2013
1414,Revenue,CCHD,Supporting People Programme,Grants to Voluntary Bodies,Housing 21,607.38, 01-Oct-2013
1415,Revenue,CCHD,Supporting People Programme,Grants to Voluntary Bodies,Housing 21,921.33, 01-Oct-2013
1416,Revenue,CCHD,Home Care - Elderly - North,Private & Voluntary Home Care,Housing 21,37028.34, 10-Oct-2013
1417,Revenue,CCHD,Home Care - Elderly - South,Private & Voluntary Home Care,Housing 21,23516.42, 01-Oct-2013
1418,Revenue,CCHD,Social Lettings Agency,Fees - General,Individual,11.6, 11-Oct-2013
1419,Revenue,CCHD,Social Lettings Agency,Other Supplies & Services,Individual,655.41, 11-Oct-2013
1420,Revenue,CCHD,Bed Purchasing - Southmead Hospital,Nursing Permanent,Jasmine Court,1227.24, 01-Oct-2013
1421,Revenue,CCHD,Bed Purchasing - Southmead Hospital,Nursing Permanent,Jasmine Court,1227.24, 29-Oct-2013
1422,Revenue,CCHD,Homeless - Private Sector Leasing,Other Supplies & Services,Jill Collins,594, 15-Oct-2013
1423,Revenue,CCHD,Bed Purchasing - Under 65s PWLD - South,Residential Permanent,Julia Simone- Supp. Ind.,3562.32, 01-Oct-2013
1424,Revenue,CCHD,Bed Purchasing - Under 65s PWLD - South,Residential Permanent,Julia Simone- Supp. Ind.,3902.32, 29-Oct-2013
1425,Revenue,CCHD,Bed purchasing -S28A  Under 65 - North,Residential Permanent,Julia Simone- Supp. Ind.,3443.08, 01-Oct-2013
1426,Revenue,CCHD,Bed purchasing -S28A  Under 65 - North,Residential Permanent,Julia Simone- Supp. Ind.,3443.08, 29-Oct-2013
1427,Revenue,CCHD,Bed Purchasing - Elderly - South,Residential Permanent,Karenza Ltd,1732, 01-Oct-2013
1428,Revenue,CCHD,Bed Purchasing - Elderly - South,Residential Permanent,Karenza Ltd,1732, 29-Oct-2013
1429,Revenue,CCHD,Bed Purchasing - Elderly - South,Residential Permanent,Kenver House Residential Home,1545.64, 01-Oct-2013
1430,Revenue,CCHD,Bed Purchasing - Elderly - South,Residential Permanent,Kenver House Residential Home,1545.64, 29-Oct-2013
1431,Revenue,CCHD,Bed purchasing - Elderly S117 - South,Residential Permanent,Kenver House Residential Home,1897.08, 01-Oct-2013
1432,Revenue,CCHD,Bed purchasing - Elderly S117 - South,Residential Permanent,Kenver House Residential Home,1897.08, 29-Oct-2013
1433,Revenue,CCHD,Bed Purchasing - Frenchay Hospital,Residential Permanent,Kenver House Residential Home,2135.28, 01-Oct-2013
1434,Revenue,CCHD,Bed Purchasing - Frenchay Hospital,Residential Permanent,Kenver House Residential Home,2135.28, 29-Oct-2013
1435,Revenue,CCHD,Bed Purchasing - Frenchay Hospital,Residential Permanent,Kenver House Residential Home,5610.83, 01-Oct-2013
1436,Revenue,CCHD,Bed Purchasing - Frenchay Hospital,Residential Permanent,Kenver House Residential Home,1203.72, 01-Oct-2013
1437,Revenue,CCHD,Bed Purchasing - Frenchay Hospital,Residential Permanent,Kenver House Residential Home,1203.72, 29-Oct-2013
1438,Revenue,CCHD,Bed Purchasing - Elderly - South,Residential Permanent,Kenver House Residential Home,2135.28, 01-Oct-2013
1439,Revenue,CCHD,Bed Purchasing - Southmead Hospital,Residential Permanent,Kenver House Residential Home,2669.1, 01-Oct-2013
1440,Revenue,CCHD,Bed Purchasing - Southmead Hospital,Residential Permanent,Kenver House Residential Home,2135.28, 01-Oct-2013
1441,Revenue,CCHD,Bed Purchasing - Southmead Hospital,Residential Permanent,Kenver House Residential Home,2135.28, 29-Oct-2013
1442,Revenue,CCHD,Section 117 Placements MH Younger,Residential Permanent,Kenver House Residential Home,1900, 01-Oct-2013
1443,Revenue,CCHD,Section 117 Placements MH Younger,Residential Permanent,Kenver House Residential Home,1900, 29-Oct-2013
1444,Revenue,CCHD,Bed Purchasing - Elderly MH - South,Residential Permanent,Kenver House Residential Home,1285.96, 01-Oct-2013
1445,Revenue,CCHD,Bed Purchasing - Elderly MH - South,Residential Permanent,Kenver House Residential Home,1285.96, 29-Oct-2013
1446,Revenue,CCHD,Bed Purchasing - Elderly - South,Residential Permanent,Kenver House Residential Home,1601.46, 01-Oct-2013
1447,Revenue,CCHD,Bed Purchasing - Elderly - South,Residential Permanent,Kenver House Residential Home,1067.64, 01-Oct-2013
1448,Revenue,CCHD,Bed Purchasing - Elderly - South,Residential Permanent,Kenver House Residential Home,1067.64, 29-Oct-2013
1449,Revenue,CCHD,Bed Purchasing - Elderly - South,Residential Permanent,Kenver House Residential Home,1649.28, 01-Oct-2013
1450,Revenue,CCHD,Bed Purchasing - Elderly - South,Residential Permanent,Kenver House Residential Home,1649.28, 29-Oct-2013
1451,Revenue,CCHD,Bed Purchasing - Elderly - South,Residential Permanent,Kenver House Residential Home,843.12, 29-Oct-2013
1452,Revenue,CCHD,Bed Purchasing - Frenchay Hospital,Residential Permanent,Kenver House Residential Home,654.84, 01-Oct-2013
1453,Revenue,CCHD,Bed Purchasing - Frenchay Hospital,Residential Permanent,Kenver House Residential Home,654.84, 29-Oct-2013
1454,Revenue,CCHD,Bed Purchasing - Elderly - South,Residential Permanent,Kenver House Residential Home,1576.4, 01-Oct-2013
1455,Revenue,CCHD,Bed Purchasing - Elderly - South,Residential Permanent,Kenver House Residential Home,1576.4, 29-Oct-2013
1456,Revenue,CCHD,Bed Purchasing - Southmead Hospital,Residential Permanent,Kenver House Residential Home,1649.2, 01-Oct-2013
1457,Revenue,CCHD,Bed Purchasing - Southmead Hospital,Residential Permanent,Kenver House Residential Home,1649.2, 29-Oct-2013
1458,Revenue,CCHD,Bed Purchasing - Elderly MH - South,Residential Permanent,Kenver House Residential Home,1182.52, 01-Oct-2013
1459,Revenue,CCHD,Bed Purchasing - Elderly MH - South,Residential Permanent,Kenver House Residential Home,1182.52, 29-Oct-2013
1460,Revenue,CCHD,Bed Purchasing - Elderly MH - South,Residential Permanent,Kenver House Residential Home,1167.92, 01-Oct-2013
1461,Revenue,CCHD,Bed Purchasing - Elderly MH - South,Residential Permanent,Kenver House Residential Home,1167.92, 29-Oct-2013
1462,Revenue,CCHD,Bed Purchasing - Elderly - South,Residential Permanent,Kenver House Residential Home,1497.08, 01-Oct-2013
1463,Revenue,CCHD,Bed Purchasing - Elderly - South,Residential Permanent,Kenver House Residential Home,1497.08, 29-Oct-2013
1464,Revenue,CCHD,Bed Purchasing - Frenchay Hospital,Residential Permanent,Kenver House Residential Home,1574.12, 01-Oct-2013
1465,Revenue,CCHD,Bed Purchasing - Frenchay Hospital,Residential Permanent,Kenver House Residential Home,1539.76, 01-Oct-2013
1466,Revenue,CCHD,Bed Purchasing - Frenchay Hospital,Residential Permanent,Kenver House Residential Home,1539.76, 29-Oct-2013
1467,Revenue,CCHD,Supporting People Programme,Grants to Voluntary Bodies,Keyring Living Support Networks,2874.42, 01-Oct-2013
1468,Revenue,CCHD,Bed Purchasing - Elderly - North,Nursing Permanent,Kingfisher Lodge Care Centre,2486.88, 01-Oct-2013
1469,Revenue,CCHD,Bed Purchasing - Elderly - North,Nursing Permanent,Kingfisher Lodge Care Centre,2486.88, 29-Oct-2013
1470,Revenue,CCHD,Supporting People Programme,Grants to Voluntary Bodies,Kingswood Young Homeless Project,17289.42, 01-Oct-2013
1471,Revenue,CCHD,Bed purchasing - Under 65s PWLD - North,Residential Permanent,Kisimul Group,11223.12, 01-Oct-2013
1472,Revenue,CCHD,Bed purchasing - Under 65s PWLD - North,Residential Permanent,Kisimul Group,11223.12, 29-Oct-2013
1473,Revenue,CCHD,Supporting People Programme,Grants to Voluntary Bodies,Knightstone Housing Association Limited,13316.58, 01-Oct-2013
1474,Revenue,CCHD,Supporting People Programme,Grants to Voluntary Bodies,Knightstone Housing Association Limited,8413.33, 01-Oct-2013
1475,Revenue,CCHD,Supporting People Programme,Grants to Voluntary Bodies,Knightstone Housing Association Limited,7491.58, 01-Oct-2013
1476,Revenue,CCHD,Supporting People Programme,Grants to Voluntary Bodies,Knightstone Housing Association Limited,1883.92, 01-Oct-2013
1477,Revenue,CCHD,Supporting People Programme,Grants to Voluntary Bodies,Knightstone Housing Association Limited,2446.5, 01-Oct-2013
1478,Revenue,CCHD,Supporting People Programme,Grants to Voluntary Bodies,Knightstone Housing Association Limited,2447.08, 01-Oct-2013
1479,Revenue,CCHD,Supporting People Programme,Grants to Voluntary Bodies,Knightstone Housing Association Limited,1189.08, 01-Oct-2013
1480,Revenue,CCHD,Supporting People Programme,Grants to Voluntary Bodies,Knightstone Housing Association Limited,2194.67, 01-Oct-2013
1481,Revenue,CCHD,Home Care - Elderly - South,Other Small Contracts,Kumari Care Limited,4300.04, 01-Oct-2013
1482,Revenue,CCHD,Home Care - Elderly - North,Other Small Contracts,Kumari Care Limited,833.86, 01-Oct-2013
1483,Revenue,CCHD,Day Care - South,Private & Voluntary Day Care,Kumari Care Limited,138.96, 01-Oct-2013
1484,Revenue,CCHD,Under 65s -MH  Home Care Purch,Other Small Contracts,Kumari Care Limited,231.6, 01-Oct-2013
1485,Revenue,CCHD,Home Care - Elderly - South,Other Small Contracts,Kumari Care Limited,4273.02, 01-Oct-2013
1486,Revenue,CCHD,Home Care - Elderly - North,Other Small Contracts,Kumari Care Limited,833.86, 01-Oct-2013
1487,Revenue,CCHD,Day Care - South,Private & Voluntary Day Care,Kumari Care Limited,139.93, 01-Oct-2013
1488,Revenue,CCHD,Under 65s -MH  Home Care Purch,Other Small Contracts,Kumari Care Limited,208.44, 01-Oct-2013
1489,Revenue,CCHD,Home Care - Elderly - South,Other Small Contracts,Kumari Care Limited,4285.7, 29-Oct-2013
1490,Revenue,CCHD,Home Care - Elderly - North,Other Small Contracts,Kumari Care Limited,833.86, 29-Oct-2013
1491,Revenue,CCHD,Day Care - South,Private & Voluntary Day Care,Kumari Care Limited,142.82, 29-Oct-2013
1492,Revenue,CCHD,Under 65s -MH  Home Care Purch,Other Small Contracts,Kumari Care Limited,262.48, 29-Oct-2013
1493,Revenue,CCHD,Home Care - Elderly - South,Other Small Contracts,Kumari Care Limited,3988.57, 23-Oct-2013
1494,Revenue,CCHD,Home Care - Elderly - North,Other Small Contracts,Kumari Care Limited,833.86, 23-Oct-2013
1495,Revenue,CCHD,Day Care - South,Private & Voluntary Day Care,Kumari Care Limited,142.82, 23-Oct-2013
1496,Revenue,CCHD,Under 65s -MH  Home Care Purch,Other Small Contracts,Kumari Care Limited,266.34, 23-Oct-2013
1497,Revenue,CCHD,Home Care - Elderly - South,Other Small Contracts,Kumari Care Limited,3937.2, 29-Oct-2013
1498,Revenue,CCHD,Home Care - Elderly - North,Other Small Contracts,Kumari Care Limited,833.91, 29-Oct-2013
1499,Revenue,CCHD,Day Care - South,Private & Voluntary Day Care,Kumari Care Limited,142.82, 29-Oct-2013
1500,Revenue,CCHD,Under 65s -MH  Home Care Purch,Other Small Contracts,Kumari Care Limited,262.48, 29-Oct-2013
1501,Revenue,CCHD,Home Care - Elderly - South,Other Small Contracts,Kumari Care Limited,3894.74, 29-Oct-2013
1502,Revenue,CCHD,Home Care - Elderly - North,Other Small Contracts,Kumari Care Limited,833.9, 29-Oct-2013
1503,Revenue,CCHD,Day Care - South,Private & Voluntary Day Care,Kumari Care Limited,142.82, 29-Oct-2013
1504,Revenue,CCHD,Under 65s -MH  Home Care Purch,Other Small Contracts,Kumari Care Limited,258.62, 29-Oct-2013
1505,Revenue,CCHD,Bed purchasing - Phys Dis - North,Nursing Permanent,Leonard Cheshire  National Account Centr,4963.04, 01-Oct-2013
1506,Revenue,CCHD,South Glos Users in Gloucestershire Home,Nursing Permanent,Leonard Cheshire  National Account Centr,1317.48, 01-Oct-2013
1507,Revenue,CCHD,Bed purchasing - Phys Dis - North,Nursing Permanent,Leonard Cheshire  National Account Centr,4963.04, 29-Oct-2013
1508,Revenue,CCHD,Bed purchasing - Phys Dis - North,Residential Permanent,Leonard Cheshire  National Account Centr,2868.88, 01-Oct-2013
1509,Revenue,CCHD,Bed purchasing - Phys Dis - North,Residential Permanent,Leonard Cheshire  National Account Centr,2868.88, 29-Oct-2013
1510,Revenue,CCHD,Bed Purchasing - Under 65s PWLD - South,Residential Permanent,Leonard Cheshire  National Account Centr,2959.44, 01-Oct-2013
1511,Revenue,CCHD,Bed Purchasing - Under 65s PWLD - South,Residential Permanent,Leonard Cheshire  National Account Centr,2959.44, 29-Oct-2013
1512,Revenue,CCHD,Bed Purchasing - Elderly - North,Nursing Permanent,Leonard Cheshire  National Account Centr,3468.8, 01-Oct-2013
1513,Revenue,CCHD,Bed Purchasing - Elderly - North,Nursing Permanent,Leonard Cheshire  National Account Centr,3468.8, 29-Oct-2013
1514,Revenue,CCHD,Bed purchasing - Phys Dis - North,Nursing Permanent,Leonard Cheshire  National Account Centr,2779.04, 01-Oct-2013
1515,Revenue,CCHD,South Glos Users in Gloucestershire Home,Nursing Permanent,Leonard Cheshire  National Account Centr,1317.48, 01-Oct-2013
1516,Revenue,CCHD,Bed purchasing - Phys Dis - North,Nursing Permanent,Leonard Cheshire  National Account Centr,2779.04, 29-Oct-2013
1517,Revenue,CCHD,Bed Purchasing - Elderly - North,Residential Permanent,Leonard Cheshire  National Account Centr,3150.32, 01-Oct-2013
1518,Revenue,CCHD,Bed Purchasing - Elderly - North,Residential Permanent,Leonard Cheshire  National Account Centr,3150.32, 29-Oct-2013
1519,Revenue,CCHD,Bed purchasing - Under 65s PWLD - North,Residential Permanent,Leonard Cheshire  National Account Centr,5872.12, 01-Oct-2013
1520,Revenue,CCHD,Bed purchasing - Under 65s PWLD - North,Residential Permanent,Leonard Cheshire  National Account Centr,5870.56, 01-Oct-2013
1521,Revenue,CCHD,Bed Purchasing - Elderly - South,Residential Permanent,Leonard Cheshire  National Account Centr,4433.04, 01-Oct-2013
1522,Revenue,CCHD,Bed Purchasing - Elderly - South,Residential Permanent,Leonard Cheshire  National Account Centr,4433.04, 29-Oct-2013
1523,Revenue,CCHD,Bed purchasing - Phys Dis - North,Nursing Permanent,Leonard Cheshire  National Account Centr,2838.64, 01-Oct-2013
1524,Revenue,CCHD,Bed purchasing - Phys Dis - North,Nursing Permanent,Leonard Cheshire  National Account Centr,2838.64, 29-Oct-2013
1525,Revenue,CCHD,Bed purchasing - Phys Dis - North,Nursing Permanent,Leonard Cheshire  National Account Centr,7624.88, 01-Oct-2013
1526,Revenue,CCHD,Bed purchasing - Phys Dis - North,Nursing Permanent,Leonard Cheshire  National Account Centr,3812.44, 29-Oct-2013
1527,Revenue,CCHD,Bed purchasing - Phys Dis - North,Residential Permanent,Leonard Cheshire  National Account Centr,2889.4, 01-Oct-2013
1528,Revenue,CCHD,Bed purchasing - Phys Dis - North,Residential Permanent,Leonard Cheshire  National Account Centr,2889.4, 29-Oct-2013
1529,Revenue,CCHD,Bed purchasing - Phys Dis - North,Nursing Permanent,Leonard Cheshire  National Account Centr,8947.52, 01-Oct-2013
1530,Revenue,CCHD,Bed purchasing - Phys Dis - North,Nursing Permanent,Leonard Cheshire  National Account Centr,4473.76, 29-Oct-2013
1531,Revenue,CCHD,Bed purchasing - Phys Dis - North,Nursing Permanent,Leonard Cheshire  National Account Centr,3223.8, 01-Oct-2013
1532,Revenue,CCHD,Bed purchasing - Phys Dis - North,Nursing Permanent,Leonard Cheshire  National Account Centr,3223.8, 29-Oct-2013
1533,Revenue,CCHD,Bed purchasing - Phys Dis - South,Nursing Permanent,Leonard Cheshire  National Account Centr,6114.8, 01-Oct-2013
1534,Revenue,CCHD,Bed purchasing - Phys Dis - South,Nursing Permanent,Leonard Cheshire  National Account Centr,6114.8, 29-Oct-2013
1535,Revenue,CCHD,Bed purchasing - Phys Dis - North,Nursing Permanent,Leonard Cheshire  National Account Centr,5521.36, 01-Oct-2013
1536,Revenue,CCHD,Bed purchasing - Phys Dis - North,Nursing Permanent,Leonard Cheshire  National Account Centr,5521.36, 29-Oct-2013
1537,Revenue,CCHD,Bed Purchasing - Elderly - South,Nursing Permanent,Leonard Cheshire  National Account Centr,5738.4, 01-Oct-2013
1538,Revenue,CCHD,Bed Purchasing - Elderly - South,Nursing Permanent,Leonard Cheshire  National Account Centr,2869.2, 29-Oct-2013
1539,Revenue,CCHD,Bed Purchasing - Southmead Hospital,Nursing Permanent,Leonard Cheshire  National Account Centr,3002, 01-Oct-2013
1540,Revenue,CCHD,South Glos Users in all other LA Homes,Nursing Permanent,Leonard Cheshire  National Account Centr,604.4, 01-Oct-2013
1541,Revenue,CCHD,Bed Purchasing - Southmead Hospital,Nursing Permanent,Leonard Cheshire  National Account Centr,3002, 29-Oct-2013
1542,Revenue,CCHD,South Glos Users in all other LA Homes,Nursing Permanent,Leonard Cheshire  National Account Centr,604.4, 29-Oct-2013
1543,Revenue,CCHD,Bed purchasing - Phys Dis - North,Nursing Permanent,Leonard Cheshire  National Account Centr,3309.2, 01-Oct-2013
1544,Revenue,CCHD,Bed purchasing - Phys Dis - North,Nursing Permanent,Leonard Cheshire  National Account Centr,3309.2, 29-Oct-2013
1545,Revenue,CCHD,Bed purchasing - Under 65s PWLD - North,Nursing Permanent,Leonard Cheshire  National Account Centr,35598.66, 01-Oct-2013
1546,Revenue,CCHD,Bed purchasing - Phys Dis - North,Nursing Permanent,Leonard Cheshire  National Account Centr,5954.49, 01-Oct-2013
1547,Revenue,CCHD,Bed purchasing - Phys Dis - North,Nursing Permanent,Leonard Cheshire  National Account Centr,4066.48, 01-Oct-2013
1548,Revenue,CCHD,Bed purchasing - Under 65s PWLD - North,Nursing Permanent,Leonard Cheshire  National Account Centr,4066.48, 01-Oct-2013
1549,Revenue,CCHD,Bed purchasing - Under 65s PWLD - North,Nursing Permanent,Leonard Cheshire  National Account Centr,1742.78, 01-Oct-2013
1550,Revenue,CCHD,Bed purchasing - Phys Dis - North,Nursing Permanent,Leonard Cheshire  National Account Centr,4066.48, 29-Oct-2013
1551,Revenue,CCHD,Bed Purchasing - Elderly - South,Nursing Permanent,Leonard Cheshire  National Account Centr,4369.6, 01-Oct-2013
1552,Revenue,CCHD,Bed Purchasing - Elderly - South,Nursing Permanent,Leonard Cheshire  National Account Centr,4369.6, 29-Oct-2013
1553,Revenue,CCHD,Bed Purchasing - Elderly - South,Nursing Permanent,Leonard Elms Care Home,1539.28, 01-Oct-2013
1554,Revenue,CCHD,Bed Purchasing - Elderly - South,Nursing Permanent,Leonard Elms Care Home,1539.28, 29-Oct-2013
1555,Revenue,CCHD,Supported Living - North,Private & Voluntary Home Care,Lifeways Community Care (Gloucester) Ltd,10990, 18-Oct-2013
1556,Revenue,CCHD,Supported Living - North,Private & Voluntary Home Care,Lifeways Community Care (Gloucester) Ltd,11373, 09-Oct-2013
1557,Revenue,CCHD,Tenancy Start Up Scheme,Other Supplies & Services,Individual,1737.5, 17-Oct-2013
1558,Revenue,CCHD,Bed Purchasing - Elderly - South,Nursing Permanent,Little Croft,4296.64, 01-Oct-2013
1559,Revenue,CCHD,Bed Purchasing - Elderly - South,Residential Permanent,Little Croft,1545.64, 01-Oct-2013
1560,Revenue,CCHD,Bed Purchasing - Elderly - South,Residential Permanent,Little Croft,1414.44, 01-Oct-2013
1561,Revenue,CCHD,Bed Purchasing - Southmead Hospital,Residential Permanent,Little Croft,1722, 01-Oct-2013
1562,Revenue,CCHD,Bed Purchasing - Elderly - South,Residential Permanent,Little Croft,1856, 01-Oct-2013
1563,Revenue,CCHD,Bed Purchasing - Elderly - South,Residential Permanent,Little Croft,1522.8, 01-Oct-2013
1564,Revenue,CCHD,Bed Purchasing - Frenchay Hospital,Residential Permanent,Little Croft,1187.44, 01-Oct-2013
1565,Revenue,CCHD,Bed Purchasing - Southmead Hospital,Residential Permanent,Little Croft,1246, 01-Oct-2013
1566,Revenue,CCHD,Bed Purchasing - Elderly MH - South,Residential Permanent,Little Croft,1173.28, 01-Oct-2013
1567,Revenue,CCHD,Bed Purchasing - Elderly - South,Residential Permanent,Little Croft,2023.98, 01-Oct-2013
1568,Revenue,CCHD,Bed Purchasing - Southmead Hospital,Residential Permanent,Little Croft,1246, 01-Oct-2013
1569,Revenue,CCHD,Bed purchasing - Under 65s PWLD - North,Residential Permanent,Littlecroft Residential Homes  Longcroft,6386.28, 01-Oct-2013
1570,Revenue,CCHD,Bed purchasing - Under 65s PWLD - North,Residential Permanent,Littlecroft Residential Homes  Longcroft,6386.28, 29-Oct-2013
1571,Revenue,CCHD,Home Care - Elderly - South,Other Small Contracts,Lloyds TSB Commercial Finance Limited,70.38, 22-Oct-2013
1572,Revenue,CCHD,Home Care - Elderly - North,Other Small Contracts,Lloyds TSB Commercial Finance Limited,7902.11, 22-Oct-2013
1573,Revenue,CCHD,Day Care - South,Private & Voluntary Day Care,Lloyds TSB Commercial Finance Limited,109.48, 22-Oct-2013
1574,Revenue,CCHD,Day Care - North,Private & Voluntary Day Care,Lloyds TSB Commercial Finance Limited,226.78, 22-Oct-2013
1575,Revenue,CCHD,Home Care - Elderly - South,Other Small Contracts,Lloyds TSB Commercial Finance Limited,70.38, 22-Oct-2013
1576,Revenue,CCHD,Home Care - Elderly - North,Other Small Contracts,Lloyds TSB Commercial Finance Limited,8371.31, 22-Oct-2013
1577,Revenue,CCHD,Day Care - South,Private & Voluntary Day Care,Lloyds TSB Commercial Finance Limited,78.2, 22-Oct-2013
1578,Revenue,CCHD,Day Care - North,Private & Voluntary Day Care,Lloyds TSB Commercial Finance Limited,230.69, 22-Oct-2013
1579,Revenue,CCHD,Home Care - Elderly - South,Other Small Contracts,Lloyds TSB Commercial Finance Limited,66.47, 22-Oct-2013
1580,Revenue,CCHD,Home Care - Elderly - North,Other Small Contracts,Lloyds TSB Commercial Finance Limited,9235.42, 22-Oct-2013
1581,Revenue,CCHD,Day Care - South,Private & Voluntary Day Care,Lloyds TSB Commercial Finance Limited,172.04, 22-Oct-2013
1582,Revenue,CCHD,Day Care - North,Private & Voluntary Day Care,Lloyds TSB Commercial Finance Limited,230.69, 22-Oct-2013
1583,Revenue,CCHD,Home Care - Elderly - South,Other Small Contracts,Lloyds TSB Commercial Finance Limited,70.38, 22-Oct-2013
1584,Revenue,CCHD,Home Care - Elderly - North,Other Small Contracts,Lloyds TSB Commercial Finance Limited,9184.59, 22-Oct-2013
1585,Revenue,CCHD,Day Care - South,Private & Voluntary Day Care,Lloyds TSB Commercial Finance Limited,172.04, 22-Oct-2013
1586,Revenue,CCHD,Day Care - North,Private & Voluntary Day Care,Lloyds TSB Commercial Finance Limited,140.76, 22-Oct-2013
1587,Revenue,CCHD,Home Care - Elderly - South,Other Small Contracts,Lloyds TSB Commercial Finance Limited,70.38, 22-Oct-2013
1588,Revenue,CCHD,Home Care - Elderly - North,Other Small Contracts,Lloyds TSB Commercial Finance Limited,9513.03, 22-Oct-2013
1589,Revenue,CCHD,Day Care - South,Private & Voluntary Day Care,Lloyds TSB Commercial Finance Limited,136.85, 22-Oct-2013
1590,Revenue,CCHD,Day Care - North,Private & Voluntary Day Care,Lloyds TSB Commercial Finance Limited,234.6, 22-Oct-2013
1591,Revenue,CCHD,Supported Living - South,Private & Voluntary Home Care,Lloyds TSB Commercial Finance Limited,3651.11, 08-Oct-2013
1592,Revenue,CCHD,Supported Living - South,Private & Voluntary Home Care,Lloyds TSB Commercial Finance Limited,9199.95, 09-Oct-2013
1593,Revenue,CCHD,Supported Living - South,Private & Voluntary Home Care,Lloyds TSB Commercial Finance Limited,3801.3, 07-Oct-2013
1594,Revenue,CCHD,Supported Living - South,Private & Voluntary Home Care,Lloyds TSB Commercial Finance Limited,7582.51, 07-Oct-2013
1595,Revenue,CCHD,Supported Living - South,Private & Voluntary Home Care,Lloyds TSB Commercial Finance Limited,5810.07, 09-Oct-2013
1596,Revenue,CCHD,Supported Living - South,Private & Voluntary Home Care,Lloyds TSB Commercial Finance Limited,3979.18, 09-Oct-2013
1597,Revenue,CCHD,Supported Living - South,Private & Voluntary Home Care,Lloyds TSB Commercial Finance Limited,3768.7, 09-Oct-2013
1598,Revenue,CCHD,Supported Living - North,Private & Voluntary Home Care,Lloyds TSB Commercial Finance Limited,9199.95, 09-Oct-2013
1599,Revenue,CCHD,Supported Living - South,Private & Voluntary Home Care,Lloyds TSB Commercial Finance Limited,4512.02, 09-Oct-2013
1600,Revenue,CCHD,Supported Living - South,Private & Voluntary Home Care,Lloyds TSB Commercial Finance Limited,3796.41, 09-Oct-2013
1601,Revenue,CCHD,Supported Living - South,Private & Voluntary Home Care,Lloyds TSB Commercial Finance Limited,3395.94, 09-Oct-2013
1602,Revenue,CCHD,Supported Living - South,Private & Voluntary Home Care,Lloyds TSB Commercial Finance Limited,5785.85, 09-Oct-2013
1603,Revenue,CCHD,Supported Living - South,Private & Voluntary Home Care,Lloyds TSB Commercial Finance Limited,3529.71, 09-Oct-2013
1604,Revenue,CCHD,Supported Living - South,Private & Voluntary Home Care,Lloyds TSB Commercial Finance Limited,3534.06, 07-Oct-2013
1605,Revenue,CCHD,Supported Living - North,Private & Voluntary Home Care,Lloyds TSB Commercial Finance Limited,8023.55, 09-Oct-2013
1606,Revenue,CCHD,Supported Living - South,Private & Voluntary Home Care,Lloyds TSB Commercial Finance Limited,3488.25, 09-Oct-2013
1607,Revenue,CCHD,Supported Living - South,Private & Voluntary Home Care,Loga Care Ltd (T/A Logacare),3795.33, 04-Oct-2013
1608,Revenue,CCHD,Bed purchasing - Under 65s PWLD - North,Residential Permanent,Longton Court,105429.65, 01-Oct-2013
1609,Revenue,CCHD,Bed Purchasing - Under 65s PWLD - South,Residential Permanent,Longton Court,67148.5, 01-Oct-2013
1610,Revenue,CCHD,Social Lettings Agency,Fees - General,Individual,10, 01-Oct-2013
1611,Revenue,CCHD,Social Lettings Agency,Other Supplies & Services,Individual,565, 01-Oct-2013
1612,Revenue,CCHD,Training - Adult Services,Training Expenses,M Harris,691.76, 18-Oct-2013
1613,Revenue,CCHD,Bed Purchasing - Southmead Hospital,Nursing Permanent,Majestic 3 Limited,998, 01-Oct-2013
1614,Revenue,CCHD,Bed Purchasing - Southmead Hospital,Nursing Permanent,Majestic 3 Limited,998, 29-Oct-2013
1615,Revenue,CCHD,Community Support - North,Preventative Assistance,Make It Mentoring (MiM),2110, 14-Oct-2013
1616,Revenue,CCHD,Bed Purchasing - Elderly - North,Residential Permanent,Manor Cottage,1232.24, 01-Oct-2013
1617,Revenue,CCHD,Bed Purchasing - Elderly - North,Residential Permanent,Manor Cottage,1232.24, 29-Oct-2013
1618,Revenue,CCHD,Bed Purchasing - Southmead Hospital,Residential Permanent,Manor Cottage,1246, 01-Oct-2013
1619,Revenue,CCHD,Bed Purchasing - Southmead Hospital,Residential Permanent,Manor Cottage,1246, 29-Oct-2013
1620,Revenue,CCHD,Bed Purchasing - Elderly - South,Residential Permanent,Manor Cottage,3426.43, 01-Oct-2013
1621,Revenue,CCHD,Bed Purchasing - Elderly - South,Residential Permanent,Manor Cottage,533, 29-Oct-2013
1622,Revenue,CCHD,Bed Purchasing - Elderly - South,Residential Permanent,Manor Cottage,2893.43, 01-Oct-2013
1623,Revenue,CCHD,Bed Purchasing - Elderly - South,Residential Permanent,Manor Cottage,761.43, 29-Oct-2013
1624,Revenue,CCHD,Bed Purchasing - Elderly - South,Residential Permanent,Manor Cottage,1449.64, 01-Oct-2013
1625,Revenue,CCHD,Bed Purchasing - Elderly - South,Residential Permanent,Manor Cottage,1449.64, 29-Oct-2013
1626,Revenue,CCHD,Bed Purchasing - Southmead Hospital,Residential Permanent,Manor Cottage,1246, 01-Oct-2013
1627,Revenue,CCHD,Bed Purchasing - Southmead Hospital,Residential Permanent,Manor Cottage,1246, 29-Oct-2013
1628,Revenue,CCHD,Bed Purchasing - Elderly - North,Residential Permanent,Manton Hall Residential Home,1496.44, 01-Oct-2013
1629,Revenue,CCHD,Bed Purchasing - Elderly - North,Residential Permanent,Manton Hall Residential Home,1496.44, 29-Oct-2013
1630,Revenue,CCHD,Supported Living - North,Private & Voluntary Home Care,Maples Community Care Limited,798, 25-Oct-2013
1631,Revenue,CCHD,Section 117 Placements MH Younger,Private & Voluntary Day Care,Maples Community Care Limited,2597, 25-Oct-2013
1632,Revenue,CCHD,Supporting People Programme,Grants to Voluntary Bodies,Maples Community Housing Limited,2677.58, 01-Oct-2013
1633,Revenue,CCHD,Social Lettings Agency,Fees - General,Individual,11.6, 18-Oct-2013
1634,Revenue,CCHD,Social Lettings Agency,Other Supplies & Services,Individual,655.41, 18-Oct-2013
1635,Revenue,CCHD,Bed Purchasing - Under 65s PWLD - South,Residential Permanent,Marsden Healthcare Limited,911.04, 25-Oct-2013
1636,Revenue,CCHD,Bed purchasing - Elderly PWLD - South,Residential Permanent,Marsden Healthcare Limited,3203, 25-Oct-2013
1637,Revenue,CCHD,Bed purchasing - Elderly PWLD - South,Residential Permanent,Marsden Healthcare Limited,1505.96, 25-Oct-2013
1638,Revenue,CCHD,Bed Purchasing - Elderly MH - South,Nursing Permanent,Meadow Care Home,1476.76, 01-Oct-2013
1639,Revenue,CCHD,Bed Purchasing - Elderly MH - South,Nursing Permanent,Meadow Care Home,1476.76, 29-Oct-2013
1640,Revenue,CCHD,Bed Purchasing - Elderly - South,Nursing Permanent,Meadow Care Home,1673.16, 01-Oct-2013
1641,Revenue,CCHD,Bed Purchasing - Elderly - South,Nursing Permanent,Meadow Care Home,1673.16, 29-Oct-2013
1642,Revenue,CCHD,Home Care - Elderly - South,Other Small Contracts,Mears Care,640.1, 28-Oct-2013
1643,Revenue,CCHD,Home Care - Elderly - North,Other Small Contracts,Mears Care,6404.7, 28-Oct-2013
1644,Revenue,CCHD,Day Care - South,Private & Voluntary Day Care,Mears Care,88.8, 28-Oct-2013
1645,Revenue,CCHD,Day Care - North,Private & Voluntary Day Care,Mears Care,266.4, 28-Oct-2013
1646,Revenue,CCHD,Under 65s -MH  Home Care Purch,Other Small Contracts,Mears Care,111, 28-Oct-2013
1647,Revenue,CCHD,Home Care - Elderly LD - KH,Private & Voluntary Home Care,Mears Care,51.8, 28-Oct-2013
1648,Revenue,CCHD,Home Care - Elderly - South,Other Small Contracts,Mears Care,636.4, 14-Oct-2013
1649,Revenue,CCHD,Home Care - Elderly - North,Other Small Contracts,Mears Care,6319.6, 14-Oct-2013
1650,Revenue,CCHD,Day Care - South,Private & Voluntary Day Care,Mears Care,88.8, 14-Oct-2013
1651,Revenue,CCHD,Day Care - North,Private & Voluntary Day Care,Mears Care,222, 14-Oct-2013
1652,Revenue,CCHD,Under 65s -MH  Home Care Purch,Other Small Contracts,Mears Care,111, 14-Oct-2013
1653,Revenue,CCHD,Home Care - Elderly LD - KH,Private & Voluntary Home Care,Mears Care,51.8, 14-Oct-2013
1654,Revenue,CCHD,Home Care - Elderly - South,Other Small Contracts,Mears Care,562.4, 28-Oct-2013
1655,Revenue,CCHD,Home Care - Elderly - North,Other Small Contracts,Mears Care,6320.13, 28-Oct-2013
1656,Revenue,CCHD,Day Care - South,Private & Voluntary Day Care,Mears Care,88.8, 28-Oct-2013
1657,Revenue,CCHD,Day Care - North,Private & Voluntary Day Care,Mears Care,244.2, 28-Oct-2013
1658,Revenue,CCHD,Under 65s -MH  Home Care Purch,Other Small Contracts,Mears Care,111, 28-Oct-2013
1659,Revenue,CCHD,Home Care - Elderly LD - KH,Private & Voluntary Home Care,Mears Care,51.8, 28-Oct-2013
1660,Revenue,CCHD,Home Care - Elderly - South,Other Small Contracts,Mears Care,495.8, 10-Oct-2013
1661,Revenue,CCHD,Home Care - Elderly - North,Other Small Contracts,Mears Care,7092.9, 10-Oct-2013
1662,Revenue,CCHD,Day Care - South,Private & Voluntary Day Care,Mears Care,88.8, 10-Oct-2013
1663,Revenue,CCHD,Day Care - North,Private & Voluntary Day Care,Mears Care,266.4, 10-Oct-2013
1664,Revenue,CCHD,Under 65s -MH  Home Care Purch,Other Small Contracts,Mears Care,111, 10-Oct-2013
1665,Revenue,CCHD,Home Care - Elderly LD - KH,Private & Voluntary Home Care,Mears Care,51.8, 10-Oct-2013
1666,Revenue,CCHD,Home Care - Elderly - South,Private & Voluntary Home Care,Mears Care,48154.25, 28-Oct-2013
1667,Revenue,CCHD,Downend Day Centre,Equipment Maintenance,Medaco,547, 10-Oct-2013
1668,Revenue,CCHD,Home Care - Elderly - North,Other Small Contracts,Medacs Home Care,654.5, 14-Oct-2013
1669,Revenue,CCHD,Home care - Elderly MH - North,Other Small Contracts,Medacs Home Care,94.5, 14-Oct-2013
1670,Revenue,CCHD,Home Care - Elderly - North,Other Small Contracts,Medacs Home Care,686, 01-Oct-2013
1671,Revenue,CCHD,Home care - Elderly MH - North,Other Small Contracts,Medacs Home Care,70, 01-Oct-2013
1672,Revenue,CCHD,Home Care - Elderly - North,Other Small Contracts,Medacs Home Care,563.2, 01-Oct-2013
1673,Revenue,CCHD,Home Care - Elderly - North,Other Small Contracts,Medacs Home Care,623, 01-Oct-2013
1674,Revenue,CCHD,Home care - Elderly MH - North,Other Small Contracts,Medacs Home Care,38.5, 01-Oct-2013
1675,Revenue,CCHD,Home Care - Elderly - North,Other Small Contracts,Medacs Home Care,647.5, 14-Oct-2013
1676,Revenue,CCHD,Home care - Elderly MH - North,Other Small Contracts,Medacs Home Care,94.5, 14-Oct-2013
1677,Revenue,CCHD,Home Care - Elderly - North,Other Small Contracts,Medacs Home Care,637, 15-Oct-2013
1678,Revenue,CCHD,Home care - Elderly MH - North,Other Small Contracts,Medacs Home Care,98, 15-Oct-2013
1679,Revenue,CCHD,Home Care - Elderly - North,Other Small Contracts,Medacs Home Care,640.5, 15-Oct-2013
1680,Revenue,CCHD,Home care - Elderly MH - North,Other Small Contracts,Medacs Home Care,101.5, 15-Oct-2013
1681,Revenue,CCHD,Home Care - Elderly - North,Other Small Contracts,Medacs Home Care,595, 14-Oct-2013
1682,Revenue,CCHD,Home care - Elderly MH - North,Other Small Contracts,Medacs Home Care,105, 14-Oct-2013
1683,Revenue,CCHD,Home Care - Elderly - North,Other Small Contracts,Medacs Home Care,644, 14-Oct-2013
1684,Revenue,CCHD,Home care - Elderly MH - North,Other Small Contracts,Medacs Home Care,98, 14-Oct-2013
1685,Revenue,CCHD,NRS Contract,Daily Living Equipment,Medequip Assistive Technology Ltd,32743.22, 17-Oct-2013
1686,Revenue,CCHD,NRS Contract,Daily Living Equipment,Medequip Assistive Technology Ltd,84021.64, 17-Oct-2013
1687,Revenue,CCHD,Bed Purchasing - Under 65s PWLD - South,Residential Permanent,Mencap,2219.16, 01-Oct-2013
1688,Revenue,CCHD,Bed Purchasing - Under 65s PWLD - South,Residential Permanent,Mencap,2219.16, 29-Oct-2013
1689,Revenue,CCHD,Supported Living (S28a) South,Private & Voluntary Home Care,Mencap - PS Central & Cymru,3786.86, 10-Oct-2013
1690,Revenue,CCHD,Supported Living (S28a) South,Private & Voluntary Home Care,Mencap - PS Central & Cymru,3786.86, 11-Oct-2013
1691,Revenue,CCHD,Supported Living (S28a) South,Private & Voluntary Home Care,Mencap - PS Central & Cymru,3786.86, 29-Oct-2013
1692,Revenue,CCHD,Supporting People Programme,Grants to Voluntary Bodies,Merlin Housing Society,15398.42, 01-Oct-2013
1693,Revenue,CCHD,Supporting People Programme,Grants to Voluntary Bodies,Merlin Housing Society,2423, 01-Oct-2013
1694,Revenue,CCHD,Supporting People Programme,Grants to Voluntary Bodies,Merlin Housing Society,51328.08, 01-Oct-2013
1695,Revenue,CCHD,Supporting People Programme,Grants to Voluntary Bodies,Merlin Housing Society,1026.58, 01-Oct-2013
1696,Revenue,CCHD,Bed Purchasing - Frenchay Hospital,Residential Permanent,Milburn Finance,1040.12, 01-Oct-2013
1697,Revenue,CCHD,Bed Purchasing - Frenchay Hospital,Residential Permanent,Milburn Finance,1040.12, 29-Oct-2013
1698,Revenue,CCHD,Home Care - Elderly - South,Other Small Contracts,Milestones Outreach Dementia Services,1019.04, 16-Oct-2013
1699,Revenue,CCHD,Home Care - Elderly - North,Other Small Contracts,Milestones Outreach Dementia Services,1424.34, 16-Oct-2013
1700,Revenue,CCHD,Day Care - South,Private & Voluntary Day Care,Milestones Outreach Dementia Services,61.76, 16-Oct-2013
1701,Revenue,CCHD,Home care - Elderly MH - North,Other Small Contracts,Milestones Outreach Dementia Services,84.92, 16-Oct-2013
1702,Revenue,CCHD,Elderly MH Day Care North,Private & Voluntary Day Care,Milestones Outreach Dementia Services,15.44, 16-Oct-2013
1703,Revenue,CCHD,Home Care - Elderly - South,Other Small Contracts,Milestones Outreach Dementia Services,1212.04, 16-Oct-2013
1704,Revenue,CCHD,Home Care - Elderly - North,Other Small Contracts,Milestones Outreach Dementia Services,1980.18, 16-Oct-2013
1705,Revenue,CCHD,Day Care - South,Private & Voluntary Day Care,Milestones Outreach Dementia Services,61.76, 16-Oct-2013
1706,Revenue,CCHD,Home care - Elderly MH - North,Other Small Contracts,Milestones Outreach Dementia Services,69.48, 16-Oct-2013
1707,Revenue,CCHD,Elderly MH Day Care North,Private & Voluntary Day Care,Milestones Outreach Dementia Services,15.44, 16-Oct-2013
1708,Revenue,CCHD,Home Care - Elderly - South,Other Small Contracts,Milestones Outreach Dementia Services,1181.16, 31-Oct-2013
1709,Revenue,CCHD,Home Care - Elderly - North,Other Small Contracts,Milestones Outreach Dementia Services,1821.92, 31-Oct-2013
1710,Revenue,CCHD,Day Care - South,Private & Voluntary Day Care,Milestones Outreach Dementia Services,61.76, 31-Oct-2013
1711,Revenue,CCHD,Home care - Elderly MH - North,Other Small Contracts,Milestones Outreach Dementia Services,54.04, 31-Oct-2013
1712,Revenue,CCHD,Supported Living (S28a) North,Private & Voluntary Home Care,Milestones Trust,5175.64, 01-Oct-2013
1713,Revenue,CCHD,Supported Living - North,Private & Voluntary Home Care,Milestones Trust,5228.51, 01-Oct-2013
1714,Revenue,CCHD,Purchase of Non-Res Care - South,Private & Voluntary Day Care,Milestones Trust,664.21, 01-Oct-2013
1715,Revenue,CCHD,Purchase of Non-Res Care - South,Private & Voluntary Day Care,Milestones Trust,1100.05, 11-Oct-2013
1716,Revenue,CCHD,Purchase of Non-Res Care - South,Private & Voluntary Day Care,Milestones Trust,1390.06, 01-Oct-2013
1717,Revenue,CCHD,Purchase of Non-Res Care - South,Private & Voluntary Day Care,Milestones Trust,1639.93, 01-Oct-2013
1718,Revenue,CCHD,Supported Living - South,Private & Voluntary Home Care,Milestones Trust,664.21, 04-Oct-2013
1719,Revenue,CCHD,Purchase of Non-Res Care - South,Private & Voluntary Day Care,Milestones Trust,1742.88, 04-Oct-2013
1720,Revenue,CCHD,Purchase of Non-Res Care - South,Private & Voluntary Day Care,Milestones Trust,2120.8, 04-Oct-2013
1721,Revenue,CCHD,Purchase of Non-Res Care - South,Private & Voluntary Day Care,Milestones Trust,2727.17, 04-Oct-2013
1722,Revenue,CCHD,Purchase of Non-Res Care - South,Private & Voluntary Day Care,Milestones Trust,563.89, 04-Oct-2013
1723,Revenue,CCHD,Supported Living - South,Private & Voluntary Home Care,Milestones Trust,1944, 01-Oct-2013
1724,Revenue,CCHD,Purchase of Non-Res Care - South,Private & Voluntary Day Care,Milestones Trust,1992.32, 11-Oct-2013
1725,Revenue,CCHD,Purchase of Non-Res Care - South,Private & Voluntary Day Care,Milestones Trust,657, 01-Oct-2013
1726,Revenue,CCHD,Purchase of Non-Res Care - South,Private & Voluntary Day Care,Milestones Trust,594.71, 11-Oct-2013
1727,Revenue,CCHD,Purchase of Non-Res Care - South,Private & Voluntary Day Care,Milestones Trust,1451.7, 11-Oct-2013
1728,Revenue,CCHD,Purchase of Non-Res Care - South,Private & Voluntary Day Care,Milestones Trust,1718.42, 01-Oct-2013
1729,Revenue,CCHD,Supported Living - South,Private & Voluntary Home Care,Milestones Trust,2216.19, 01-Oct-2013
1730,Revenue,CCHD,Purchase of Non-Res Care - South,Private & Voluntary Day Care,Milestones Trust,1734.95, 11-Oct-2013
1731,Revenue,CCHD,Supported Living - North,Private & Voluntary Home Care,Milestones Trust,1941.81, 15-Oct-2013
1732,Revenue,CCHD,Elderly MH Day Care North,Private & Voluntary Day Care,Milestones Trust,656.96, 23-Oct-2013
1733,Revenue,CCHD,Supported Living (S28a) North,Private & Voluntary Home Care,Milestones Trust,1200.46, 29-Oct-2013
1734,Revenue,CCHD,Supported Living - South,Private & Voluntary Home Care,Milestones Trust,14634.88, 22-Oct-2013
1735,Revenue,CCHD,Supported Living - South,Private & Voluntary Home Care,Milestones Trust,916.16, 21-Oct-2013
1736,Revenue,CCHD,Supported Living - North,Private & Voluntary Home Care,Milestones Trust,613.04, 22-Oct-2013
1737,Revenue,CCHD,Supported Living - North,Private & Voluntary Home Care,Milestones Trust,575.12, 22-Oct-2013
1738,Revenue,CCHD,Purchase of Non-Res Care - North,Private & Voluntary Day Care,Milestones Trust,532.95, 22-Oct-2013
1739,Revenue,CCHD,Purchase of Non-Res Care - South,Private & Voluntary Day Care,Milestones Trust,851.26, 25-Oct-2013
1740,Revenue,CCHD,Supported Living (S28a) South,Private & Voluntary Home Care,Milestones Trust,6349.38, 30-Oct-2013
1741,Revenue,CCHD,Supported Living - South,Private & Voluntary Home Care,Milestones Trust,1304.54, 25-Oct-2013
1742,Revenue,CCHD,Supported Living - South,Private & Voluntary Home Care,Milestones Trust,501.32, 25-Oct-2013
1743,Revenue,CCHD,Supported Living (S28a) South,Private & Voluntary Home Care,Milestones Trust,560.4, 29-Oct-2013
1744,Revenue,CCHD,Supported Living - South,Private & Voluntary Home Care,Milestones Trust,522.86, 25-Oct-2013
1745,Revenue,CCHD,Supported Living (S28a) North,Private & Voluntary Home Care,Milestones Trust,3974, 29-Oct-2013
1746,Revenue,CCHD,Supported Living (S28a) North,Private & Voluntary Home Care,Milestones Trust,4239.68, 29-Oct-2013
1747,Revenue,CCHD,Supported Living (S28a) North,Private & Voluntary Home Care,Milestones Trust,3974, 29-Oct-2013
1748,Revenue,CCHD,Supported Living - South,Private & Voluntary Home Care,Milestones Trust,593.78, 25-Oct-2013
1749,Revenue,CCHD,Supported Living (S28a) North,Private & Voluntary Home Care,Milestones Trust,4239.68, 29-Oct-2013
1750,Revenue,CCHD,Purchase of Non-Res Care - South,Private & Voluntary Day Care,Milestones Trust,507.19, 25-Oct-2013
1751,Revenue,CCHD,Supported Living - South,Private & Voluntary Home Care,Milestones Trust,971.46, 29-Oct-2013
1752,Revenue,CCHD,Supported Living (S28a) South,Private & Voluntary Home Care,Milestones Trust,1442.38, 29-Oct-2013
1753,Revenue,CCHD,Supported Living (S28a) North,Private & Voluntary Home Care,Milestones Trust,8993.28, 29-Oct-2013
1754,Revenue,CCHD,Supported Living (S28a) North,Private & Voluntary Home Care,Milestones Trust,8977.72, 29-Oct-2013
1755,Revenue,CCHD,Supported Living - South,Private & Voluntary Home Care,Milestones Trust,3849.16, 25-Oct-2013
1756,Revenue,CCHD,Supported Living - South,Private & Voluntary Home Care,Milestones Trust,1472.4, 25-Oct-2013
1757,Revenue,CCHD,Supported Living - South,Private & Voluntary Home Care,Milestones Trust,738.99, 25-Oct-2013
1758,Revenue,CCHD,Supported Living - South,Private & Voluntary Home Care,Milestones Trust,1845.08, 25-Oct-2013
1759,Revenue,CCHD,Supported Living (S28a) South,Private & Voluntary Home Care,Milestones Trust,549.42, 29-Oct-2013
1760,Revenue,CCHD,Bed Purchasing - S28A - Over 65- North,Residential Permanent,Milestones Trust,2617.12, 01-Oct-2013
1761,Revenue,CCHD,Bed Purchasing - S28A - Over 65- North,Residential Permanent,Milestones Trust,2617.12, 29-Oct-2013
1762,Revenue,CCHD,Bed Purchasing - Elderly - South,Residential Permanent,Milestones Trust,1408.28, 01-Oct-2013
1763,Revenue,CCHD,Bed Purchasing - Elderly - South,Residential Permanent,Milestones Trust,1408.28, 29-Oct-2013
1764,Revenue,CCHD,Bed Purchasing - Under 65s PWLD - South,Residential Permanent,Milestones Trust,5601.56, 01-Oct-2013
1765,Revenue,CCHD,Bed Purchasing - Under 65s PWLD - South,Residential Permanent,Milestones Trust,5601.56, 29-Oct-2013
1766,Revenue,CCHD,Bed purchasing - Elderly MH - North,Nursing Permanent,Milestones Trust,959.4, 01-Oct-2013
1767,Revenue,CCHD,Bed purchasing - Elderly MH - North,Nursing Permanent,Milestones Trust,959.4, 29-Oct-2013
1768,Revenue,CCHD,Bed purchasing - Under 65s PWLD - North,Residential Permanent,Milestones Trust,16373.13, 01-Oct-2013
1769,Revenue,CCHD,Bed purchasing - Elderly PWLD - North,Residential Permanent,Milestones Trust,3411.76, 01-Oct-2013
1770,Revenue,CCHD,Bed Purchasing - S28A - Over 65- North,Residential Permanent,Milestones Trust,786.69, 01-Oct-2013
1771,Revenue,CCHD,Bed purchasing - Elderly PWLD - North,Residential Permanent,Milestones Trust,3411.76, 29-Oct-2013
1772,Revenue,CCHD,Bed Purchasing - Under 65s PWLD - South,Residential Permanent,Milestones Trust,4796.48, 01-Oct-2013
1773,Revenue,CCHD,Bed Purchasing - Under 65s PWLD - South,Residential Permanent,Milestones Trust,4796.48, 29-Oct-2013
1774,Revenue,CCHD,Bed Purchasing - Under 65s PWLD - South,Residential Permanent,Milestones Trust,5362.64, 01-Oct-2013
1775,Revenue,CCHD,Bed Purchasing - Under 65s PWLD - South,Residential Permanent,Milestones Trust,5362.64, 29-Oct-2013
1776,Revenue,CCHD,Bed Purchasing - Under 65s PWLD - South,Nursing Permanent,Milestones Trust,2784.88, 01-Oct-2013
1777,Revenue,CCHD,Bed Purchasing - Under 65s PWLD - South,Nursing Permanent,Milestones Trust,2784.88, 29-Oct-2013
1778,Revenue,CCHD,Bed purchasing - Elderly MH - North,Nursing Permanent,Milestones Trust,1434.2, 01-Oct-2013
